{"text_format":"3","workbook":"xlsx","n_sheets":5,"sheets":["INIZIO","SPESE PIANIFICATE","SPESE EFFETTIVE","SCOSTAMENTI DI SPESE","ANALISI DELLE SPESE"],"not_rendered":{"charts":3,"images":3,"defined_names":1},"read":"whole","date_system":"1900"}

{"sheet":"INIZIO","index":0,"n_rows":8,"n_cols":2,"rows_kept":8}
[null,"INFORMAZIONI SU QUESTO MODELLO"]
[null,"Utilizzare la cartella di lavoro Budget spese aziendali per tenere traccia delle spese pianificate e effettive e degli scostamenti."]
[null,"Inserire il nome della società e aggiungere il logo."]
[null,"Immettere i dettagli nelle tabelle del foglio di lavoro Spese pianificate e nel foglio di lavoro Spese effettive."]
[null,"Le tabelle vengono aggiornate automaticamente nel foglio di lavoro Scostamenti di spese e i grafici nel foglio di lavoro Analisi delle spese"]
[null,"Nota: "]
[null,"Altre istruzioni sono state fornite nella colonna A in ciascun foglio di lavoro. Questo testo è stato nascosto intenzionalmente. Per rimuovere il testo, selezionare la colonna A, quindi scegliere ELIMINA. Per visualizzare il testo, selezionare la colonna A, quindi modificare il colore del carattere."]
[null,"Per ulteriori informazioni sulle tabelle, premere MAIUSC, quindi F10 in una tabella, selezionare l'opzione TABELLA, quindi selezionare TESTO ALTERNATIVO"]

{"sheet":"SPESE PIANIFICATE","index":1,"n_rows":37,"n_cols":18,"rows_kept":37,"merged":[[1,1,2,3],[1,9,1,12],[1,13,2,14],[2,9,2,12],[3,17,12,19],[8,1,8,2],[19,1,19,2],[28,1,28,2],[33,1,33,2]]}
["Immettere i costi pianificati dei dipendenti, i costi di ufficio, i costi di marketing e i costi di formazione o di viaggio nelle rispettive tabelle di questo foglio di lavoro. I totali vengono calcolati automaticamente. Istruzioni utili per l'uso di questo foglio di lavoro si trovano nelle celle di questa colonna. Freccia verso il basso per iniziare.",{"$nulls":14}," "]
["Immettere il nome della società nella cella a destra e il logo nella cella N2. Il titolo del foglio di lavoro si trova nella cella J2.","Nome società",{"$nulls":7},"Previsioni di spesa dettagliate",{"$nulls":3},"Il segnaposto del logo si trova in questa cella."]
["Il suggerimento si trova nella cella J3.",{"$nulls":8},"Le celle ombreggiate sono calcoli."]
["L’etichetta Spese pianificate si trova nella cella a destra, i mesi nelle celle da C4 a N4, l’etichetta Anno in O4 e le istruzioni sull’uso di questo modello nella cella R4.","SPESE PIANIFICATE","GEN","FEB","MAR","APR","MAG","GIU","LUG","AGO","SET","OTT","NOV","DIC","ANNO",null,null,"Suggerimento: COME USARE QUESTO MODELLO\nInserire i dati nelle celle vuote nei fogli di lavoro di SPESE PIANIFICATE e SPESE EFFETTIVE e saranno calcolati i valori SCOSTAMENTI DI SPESE e ANALISI DELLE SPESE. Se si aggiunge una riga in un foglio, gli altri fogli devono corrispondere."]
["Immettere i costi dei dipendenti nella tabella Piano dipendenti partendo dalla cella a destra. L’ istruzione successiva si trova nella cella A10.","Costi dei dipendenti","Gen","Feb","Mar","Apr","Mag","Giu","Lug","Ago","Set","Ott","Nov","Dic","ANNO"]
[null,"Stipendi",{"v":85000,"d":"€ 85,000.00"},{"v":85000,"d":"€ 85,000.00"},{"v":85000,"d":"€ 85,000.00"},{"v":87500,"d":"€ 87,500.00"},{"v":87500,"d":"€ 87,500.00"},{"v":87500,"d":"€ 87,500.00"},{"v":87500,"d":"€ 87,500.00"},{"v":92400,"d":"€ 92,400.00"},{"v":92400,"d":"€ 92,400.00"},{"v":92400,"d":"€ 92,400.00"},{"v":92400,"d":"€ 92,400.00"},{"v":92400,"d":"€ 92,400.00"},{"$f":"SUM(C6:N6)","v":{"v":1067000,"d":"€ 1,067,000.00"}}]
[null,"Indennità",{"$f":"C6*0.27","v":{"v":22950,"d":"€ 22,950.00"}},{"v":22950,"d":"€ 22,950.00"},{"v":22950,"d":"€ 22,950.00"},{"v":23625,"d":"€ 23,625.00"},{"v":23625,"d":"€ 23,625.00"},{"v":23625,"d":"€ 23,625.00"},{"v":23625,"d":"€ 23,625.00"},{"v":24948,"d":"€ 24,948.00"},{"v":24948,"d":"€ 24,948.00"},{"v":24948,"d":"€ 24,948.00"},{"v":24948,"d":"€ 24,948.00"},{"v":24948,"d":"€ 24,948.00"},{"$f":"SUM(C7:N7)","v":{"v":288090,"d":"€ 288,090.00"}}]
[null,"Subtotale",{"$f":"SUBTOTAL(109,Piano_dipendenti[Gen])","v":{"v":107950,"d":"€ 107,950.00"}},{"$f":"SUBTOTAL(109,Piano_dipendenti[Feb])","v":{"v":107950,"d":"€ 107,950.00"}},{"$f":"SUBTOTAL(109,Piano_dipendenti[Mar])","v":{"v":107950,"d":"€ 107,950.00"}},{"$f":"SUBTOTAL(109,Piano_dipendenti[Apr])","v":{"v":111125,"d":"€ 111,125.00"}},{"$f":"SUBTOTAL(109,Piano_dipendenti[Mag])","v":{"v":111125,"d":"€ 111,125.00"}},{"$f":"SUBTOTAL(109,Piano_dipendenti[Giu])","v":{"v":111125,"d":"€ 111,125.00"}},{"$f":"SUBTOTAL(109,Piano_dipendenti[Lug])","v":{"v":111125,"d":"€ 111,125.00"}},{"$f":"SUBTOTAL(109,Piano_dipendenti[Ago])","v":{"v":117348,"d":"€ 117,348.00"}},{"$f":"SUBTOTAL(109,Piano_dipendenti[Set])","v":{"v":117348,"d":"€ 117,348.00"}},{"$f":"SUBTOTAL(109,Piano_dipendenti[Ott])","v":{"v":117348,"d":"€ 117,348.00"}},{"$f":"SUBTOTAL(109,Piano_dipendenti[Nov])","v":{"v":117348,"d":"€ 117,348.00"}},{"$f":"SUBTOTAL(109,Piano_dipendenti[Dic])","v":{"v":117348,"d":"€ 117,348.00"}},{"$f":"SUBTOTAL(109,Piano_dipendenti[ANNO])","v":{"v":1355090,"d":"€ 1,355,090.00"}}]
[]
["Immettere i costi di ufficio nella tabella Piano ufficio partendo dalla cella a destra. L'istruzione successiva si trova nella cella A21.","Costi di ufficio","Gen","Feb","Mar","Apr","Mag","Giu","Lug","Ago","Set","Ott","Nov","Dic","ANNO"]
[null,"Locazione di uffici",{"v":9800,"d":"€ 9,800.00"},{"v":9800,"d":"€ 9,800.00"},{"v":9800,"d":"€ 9,800.00"},{"v":9800,"d":"€ 9,800.00"},{"v":9800,"d":"€ 9,800.00"},{"v":9800,"d":"€ 9,800.00"},{"v":9800,"d":"€ 9,800.00"},{"v":9800,"d":"€ 9,800.00"},{"v":9800,"d":"€ 9,800.00"},{"v":9800,"d":"€ 9,800.00"},{"v":9800,"d":"€ 9,800.00"},{"v":9800,"d":"€ 9,800.00"},{"$f":"SUM(C11:N11)","v":{"v":117600,"d":"€ 117,600.00"}}]
[null,"Gas",null,{"v":400,"d":"€ 400.00"},{"v":400,"d":"€ 400.00"},{"v":100,"d":"€ 100.00"},{"v":100,"d":"€ 100.00"},{"v":100,"d":"€ 100.00"},{"v":100,"d":"€ 100.00"},{"v":100,"d":"€ 100.00"},{"v":100,"d":"€ 100.00"},{"v":100,"d":"€ 100.00"},{"v":400,"d":"€ 400.00"},{"v":400,"d":"€ 400.00"},{"v":2300,"d":"€ 2,300.00"}]
[null,"Elettricità",{"v":300,"d":"€ 300.00"},{"v":300,"d":"€ 300.00"},{"v":300,"d":"€ 300.00"},{"v":300,"d":"€ 300.00"},{"v":300,"d":"€ 300.00"},{"v":300,"d":"€ 300.00"},{"v":300,"d":"€ 300.00"},{"v":300,"d":"€ 300.00"},{"v":300,"d":"€ 300.00"},{"v":300,"d":"€ 300.00"},{"v":300,"d":"€ 300.00"},{"v":300,"d":"€ 300.00"},{"v":3600,"d":"€ 3,600.00"}]
[null,"Acqua",{"v":40,"d":"€ 40.00"},{"v":40,"d":"€ 40.00"},{"v":40,"d":"€ 40.00"},{"v":40,"d":"€ 40.00"},{"v":40,"d":"€ 40.00"},{"v":40,"d":"€ 40.00"},{"v":40,"d":"€ 40.00"},{"v":40,"d":"€ 40.00"},{"v":40,"d":"€ 40.00"},{"v":40,"d":"€ 40.00"},{"v":40,"d":"€ 40.00"},{"v":40,"d":"€ 40.00"},{"v":480,"d":"€ 480.00"}]
[null,"Telefono",{"v":250,"d":"€ 250.00"},{"v":250,"d":"€ 250.00"},{"v":250,"d":"€ 250.00"},{"v":250,"d":"€ 250.00"},{"v":250,"d":"€ 250.00"},{"v":250,"d":"€ 250.00"},{"v":250,"d":"€ 250.00"},{"v":250,"d":"€ 250.00"},{"v":250,"d":"€ 250.00"},{"v":250,"d":"€ 250.00"},{"v":250,"d":"€ 250.00"},{"v":250,"d":"€ 250.00"},{"v":3000,"d":"€ 3,000.00"}]
[null,"Accesso a Internet",{"v":180,"d":"€ 180.00"},{"v":180,"d":"€ 180.00"},{"v":180,"d":"€ 180.00"},{"v":180,"d":"€ 180.00"},{"v":180,"d":"€ 180.00"},{"v":180,"d":"€ 180.00"},{"v":180,"d":"€ 180.00"},{"v":180,"d":"€ 180.00"},{"v":180,"d":"€ 180.00"},{"v":180,"d":"€ 180.00"},{"v":180,"d":"€ 180.00"},{"v":180,"d":"€ 180.00"},{"v":2160,"d":"€ 2,160.00"}]
[null,"Forniture ufficio",{"v":200,"d":"€ 200.00"},{"v":200,"d":"€ 200.00"},{"v":200,"d":"€ 200.00"},{"v":200,"d":"€ 200.00"},{"v":200,"d":"€ 200.00"},{"v":200,"d":"€ 200.00"},{"v":200,"d":"€ 200.00"},{"v":200,"d":"€ 200.00"},{"v":200,"d":"€ 200.00"},{"v":200,"d":"€ 200.00"},{"v":200,"d":"€ 200.00"},{"v":200,"d":"€ 200.00"},{"v":2400,"d":"€ 2,400.00"}]
[null,"Sicurezza",{"v":600,"d":"€ 600.00"},{"v":600,"d":"€ 600.00"},{"v":600,"d":"€ 600.00"},{"v":600,"d":"€ 600.00"},{"v":600,"d":"€ 600.00"},{"v":600,"d":"€ 600.00"},{"v":600,"d":"€ 600.00"},{"v":600,"d":"€ 600.00"},{"v":600,"d":"€ 600.00"},{"v":600,"d":"€ 600.00"},{"v":600,"d":"€ 600.00"},{"v":600,"d":"€ 600.00"},{"v":7200,"d":"€ 7,200.00"}]
[null,"Subtotale",{"$f":"SUBTOTAL(109,Piano_ufficio[Gen])","v":{"v":11370,"d":"€ 11,370.00"}},{"$f":"SUBTOTAL(109,Piano_ufficio[Feb])","v":{"v":11770,"d":"€ 11,770.00"}},{"$f":"SUBTOTAL(109,Piano_ufficio[Mar])","v":{"v":11770,"d":"€ 11,770.00"}},{"$f":"SUBTOTAL(109,Piano_ufficio[Apr])","v":{"v":11470,"d":"€ 11,470.00"}},{"$f":"SUBTOTAL(109,Piano_ufficio[Mag])","v":{"v":11470,"d":"€ 11,470.00"}},{"$f":"SUBTOTAL(109,Piano_ufficio[Giu])","v":{"v":11470,"d":"€ 11,470.00"}},{"$f":"SUBTOTAL(109,Piano_ufficio[Lug])","v":{"v":11470,"d":"€ 11,470.00"}},{"$f":"SUBTOTAL(109,Piano_ufficio[Ago])","v":{"v":11470,"d":"€ 11,470.00"}},{"$f":"SUBTOTAL(109,Piano_ufficio[Set])","v":{"v":11470,"d":"€ 11,470.00"}},{"$f":"SUBTOTAL(109,Piano_ufficio[Ott])","v":{"v":11470,"d":"€ 11,470.00"}},{"$f":"SUBTOTAL(109,Piano_ufficio[Nov])","v":{"v":11770,"d":"€ 11,770.00"}},{"$f":"SUBTOTAL(109,Piano_ufficio[Dic])","v":{"v":11770,"d":"€ 11,770.00"}},{"$f":"SUBTOTAL(109,Piano_ufficio[ANNO])","v":{"v":138740,"d":"€ 138,740.00"}}]
[]
["Immettere i costi di marketing nella tabella Piano marketing partendo dalla cella a destra. L'istruzione successiva si trova nella cella A30.","Costi di marketing","Gen","Feb","Mar","Apr","Mag","Giu","Lug","Ago","Set","Ott","Nov","Dic","ANNO"]
[null,"Hosting di siti Web",{"v":500,"d":"€ 500.00"},{"v":500,"d":"€ 500.00"},{"v":500,"d":"€ 500.00"},{"v":500,"d":"€ 500.00"},{"v":500,"d":"€ 500.00"},{"v":500,"d":"€ 500.00"},{"v":500,"d":"€ 500.00"},{"v":500,"d":"€ 500.00"},{"v":500,"d":"€ 500.00"},{"v":500,"d":"€ 500.00"},{"v":500,"d":"€ 500.00"},{"v":500,"d":"€ 500.00"},{"$f":"SUM(C22:N22)","v":{"v":6000,"d":"€ 6,000.00"}}]
[null,"Aggiornamenti del sito Web",{"v":200,"d":"€ 200.00"},{"v":200,"d":"€ 200.00"},{"v":200,"d":"€ 200.00"},{"v":200,"d":"€ 200.00"},{"v":200,"d":"€ 200.00"},{"v":1000,"d":"€ 1,000.00"},{"v":200,"d":"€ 200.00"},{"v":200,"d":"€ 200.00"},{"v":200,"d":"€ 200.00"},{"v":200,"d":"€ 200.00"},{"v":200,"d":"€ 200.00"},{"v":1000,"d":"€ 1,000.00"},{"v":4000,"d":"€ 4,000.00"}]
[null,"Preparazione materiale",{"v":5000,"d":"€ 5,000.00"},{"v":0,"d":"€ 0.00"},{"v":0,"d":"€ 0.00"},{"v":5000,"d":"€ 5,000.00"},{"v":0,"d":"€ 0.00"},{"v":0,"d":"€ 0.00"},{"v":5000,"d":"€ 5,000.00"},{"v":0,"d":"€ 0.00"},{"v":0,"d":"€ 0.00"},{"v":5000,"d":"€ 5,000.00"},{"v":0,"d":"€ 0.00"},{"v":0,"d":"€ 0.00"},{"v":20000,"d":"€ 20,000.00"}]
[null,"Stampa materiale",{"v":200,"d":"€ 200.00"},{"v":200,"d":"€ 200.00"},{"v":200,"d":"€ 200.00"},{"v":200,"d":"€ 200.00"},{"v":200,"d":"€ 200.00"},{"v":200,"d":"€ 200.00"},{"v":200,"d":"€ 200.00"},{"v":200,"d":"€ 200.00"},{"v":200,"d":"€ 200.00"},{"v":200,"d":"€ 200.00"},{"v":200,"d":"€ 200.00"},{"v":200,"d":"€ 200.00"},{"v":2400,"d":"€ 2,400.00"}]
[null,"Eventi di marketing",{"v":2000,"d":"€ 2,000.00"},{"v":2000,"d":"€ 2,000.00"},{"v":2000,"d":"€ 2,000.00"},{"v":5000,"d":"€ 5,000.00"},{"v":2000,"d":"€ 2,000.00"},{"v":2000,"d":"€ 2,000.00"},{"v":2000,"d":"€ 2,000.00"},{"v":5000,"d":"€ 5,000.00"},{"v":2000,"d":"€ 2,000.00"},{"v":2000,"d":"€ 2,000.00"},{"v":2000,"d":"€ 2,000.00"},{"v":5000,"d":"€ 5,000.00"},{"v":33000,"d":"€ 33,000.00"}]
[null,"Spese varie",{"v":200,"d":"€ 200.00"},{"v":200,"d":"€ 200.00"},{"v":200,"d":"€ 200.00"},{"v":200,"d":"€ 200.00"},{"v":200,"d":"€ 200.00"},{"v":200,"d":"€ 200.00"},{"v":200,"d":"€ 200.00"},{"v":200,"d":"€ 200.00"},{"v":200,"d":"€ 200.00"},{"v":200,"d":"€ 200.00"},{"v":200,"d":"€ 200.00"},{"v":200,"d":"€ 200.00"},{"v":2400,"d":"€ 2,400.00"}]
[null,"Subtotale",{"$f":"SUBTOTAL(109,Piano_marketing[Gen])","v":{"v":8100,"d":"€ 8,100.00"}},{"$f":"SUBTOTAL(109,Piano_marketing[Feb])","v":{"v":3100,"d":"€ 3,100.00"}},{"$f":"SUBTOTAL(109,Piano_marketing[Mar])","v":{"v":3100,"d":"€ 3,100.00"}},{"$f":"SUBTOTAL(109,Piano_marketing[Apr])","v":{"v":11100,"d":"€ 11,100.00"}},{"$f":"SUBTOTAL(109,Piano_marketing[Mag])","v":{"v":3100,"d":"€ 3,100.00"}},{"$f":"SUBTOTAL(109,Piano_marketing[Giu])","v":{"v":3900,"d":"€ 3,900.00"}},{"$f":"SUBTOTAL(109,Piano_marketing[Lug])","v":{"v":8100,"d":"€ 8,100.00"}},{"$f":"SUBTOTAL(109,Piano_marketing[Ago])","v":{"v":6100,"d":"€ 6,100.00"}},{"$f":"SUBTOTAL(109,Piano_marketing[Set])","v":{"v":3100,"d":"€ 3,100.00"}},{"$f":"SUBTOTAL(109,Piano_marketing[Ott])","v":{"v":8100,"d":"€ 8,100.00"}},{"$f":"SUBTOTAL(109,Piano_marketing[Nov])","v":{"v":3100,"d":"€ 3,100.00"}},{"$f":"SUBTOTAL(109,Piano_marketing[Dic])","v":{"v":6900,"d":"€ 6,900.00"}},{"$f":"SUBTOTAL(109,Piano_marketing[ANNO])","v":{"v":67800,"d":"€ 67,800.00"}}]
[]
["Immettere i costi di formazione e di viaggio nella tabella Piano formazione e viaggi partendo dalla cella a destra. L'istruzione successiva si trova nella cella A35.","Formazione/viaggi","Gen","Feb","Mar","Apr","Mag","Giu","Lug","Ago","Set","Ott","Nov","Dic","ANNO"]
[null,"Corsi di formazione",{"v":2000,"d":"€ 2,000.00"},{"v":2000,"d":"€ 2,000.00"},{"v":2000,"d":"€ 2,000.00"},{"v":2000,"d":"€ 2,000.00"},{"v":2000,"d":"€ 2,000.00"},{"v":2000,"d":"€ 2,000.00"},{"v":2000,"d":"€ 2,000.00"},{"v":2000,"d":"€ 2,000.00"},{"v":2000,"d":"€ 2,000.00"},{"v":2000,"d":"€ 2,000.00"},{"v":2000,"d":"€ 2,000.00"},{"v":2000,"d":"€ 2,000.00"},{"$f":"SUM(C31:N31)","v":{"v":24000,"d":"€ 24,000.00"}}]
[null,"Costi di viaggio relativi alla formazione",{"v":2000,"d":"€ 2,000.00"},{"v":2000,"d":"€ 2,000.00"},{"v":2000,"d":"€ 2,000.00"},{"v":2000,"d":"€ 2,000.00"},{"v":2000,"d":"€ 2,000.00"},{"v":2000,"d":"€ 2,000.00"},{"v":2000,"d":"€ 2,000.00"},{"v":2000,"d":"€ 2,000.00"},{"v":2000,"d":"€ 2,000.00"},{"v":2000,"d":"€ 2,000.00"},{"v":2000,"d":"€ 2,000.00"},{"v":2000,"d":"€ 2,000.00"},{"$f":"SUM(C32:N32)","v":{"v":24000,"d":"€ 24,000.00"}}]
[null,"Subtotale",{"$f":"SUBTOTAL(109,Piano_formazione_e_viaggi[Gen])","v":{"v":4000,"d":"€ 4,000.00"}},{"$f":"SUBTOTAL(109,Piano_formazione_e_viaggi[Feb])","v":{"v":4000,"d":"€ 4,000.00"}},{"$f":"SUBTOTAL(109,Piano_formazione_e_viaggi[Mar])","v":{"v":4000,"d":"€ 4,000.00"}},{"$f":"SUBTOTAL(109,Piano_formazione_e_viaggi[Apr])","v":{"v":4000,"d":"€ 4,000.00"}},{"$f":"SUBTOTAL(109,Piano_formazione_e_viaggi[Mag])","v":{"v":4000,"d":"€ 4,000.00"}},{"$f":"SUBTOTAL(109,Piano_formazione_e_viaggi[Giu])","v":{"v":4000,"d":"€ 4,000.00"}},{"$f":"SUBTOTAL(109,Piano_formazione_e_viaggi[Lug])","v":{"v":4000,"d":"€ 4,000.00"}},{"$f":"SUBTOTAL(109,Piano_formazione_e_viaggi[Ago])","v":{"v":4000,"d":"€ 4,000.00"}},{"$f":"SUBTOTAL(109,Piano_formazione_e_viaggi[Set])","v":{"v":4000,"d":"€ 4,000.00"}},{"$f":"SUBTOTAL(109,Piano_formazione_e_viaggi[Ott])","v":{"v":4000,"d":"€ 4,000.00"}},{"$f":"SUBTOTAL(109,Piano_formazione_e_viaggi[Nov])","v":{"v":4000,"d":"€ 4,000.00"}},{"$f":"SUBTOTAL(109,Piano_formazione_e_viaggi[Dic])","v":{"v":4000,"d":"€ 4,000.00"}},{"$f":"SUBTOTAL(109,Piano_formazione_e_viaggi[ANNO])","v":{"v":48000,"d":"€ 48,000.00"}}]
[]
["I totali vengono calcolati automaticamente nella tabella Totale pianificato partendo dalla cella a destra.","TOTALI","Gen","Feb","Mar","Apr","Mag","Giu","Lug","Ago","Set","Ott","Nov","Dic","Anno"]
[null,"Spese pianificate mensili",{"$f":"Piano_formazione_e_viaggi[[#Totals],[Gen]]+Piano_marketing[[#Totals],[Gen]]+Piano_ufficio[[#Totals],[Gen]]+Piano_dipendenti[[#Totals],[Gen]]","v":{"v":131420,"d":"€ 131,420.00"}},{"$f":"Piano_formazione_e_viaggi[[#Totals],[Feb]]+Piano_marketing[[#Totals],[Feb]]+Piano_ufficio[[#Totals],[Feb]]+Piano_dipendenti[[#Totals],[Feb]]","v":{"v":126820,"d":"€ 126,820.00"}},{"$f":"Piano_formazione_e_viaggi[[#Totals],[Mar]]+Piano_marketing[[#Totals],[Mar]]+Piano_ufficio[[#Totals],[Mar]]+Piano_dipendenti[[#Totals],[Mar]]","v":{"v":126820,"d":"€ 126,820.00"}},{"$f":"Piano_formazione_e_viaggi[[#Totals],[Apr]]+Piano_marketing[[#Totals],[Apr]]+Piano_ufficio[[#Totals],[Apr]]+Piano_dipendenti[[#Totals],[Apr]]","v":{"v":137695,"d":"€ 137,695.00"}},{"$f":"Piano_formazione_e_viaggi[[#Totals],[Mag]]+Piano_marketing[[#Totals],[Mag]]+Piano_ufficio[[#Totals],[Mag]]+Piano_dipendenti[[#Totals],[Mag]]","v":{"v":129695,"d":"€ 129,695.00"}},{"$f":"Piano_formazione_e_viaggi[[#Totals],[Giu]]+Piano_marketing[[#Totals],[Giu]]+Piano_ufficio[[#Totals],[Giu]]+Piano_dipendenti[[#Totals],[Giu]]","v":{"v":130495,"d":"€ 130,495.00"}},{"$f":"Piano_formazione_e_viaggi[[#Totals],[Lug]]+Piano_marketing[[#Totals],[Lug]]+Piano_ufficio[[#Totals],[Lug]]+Piano_dipendenti[[#Totals],[Lug]]","v":{"v":134695,"d":"€ 134,695.00"}},{"$f":"Piano_formazione_e_viaggi[[#Totals],[Ago]]+Piano_marketing[[#Totals],[Ago]]+Piano_ufficio[[#Totals],[Ago]]+Piano_dipendenti[[#Totals],[Ago]]","v":{"v":138918,"d":"€ 138,918.00"}},{"$f":"Piano_formazione_e_viaggi[[#Totals],[Set]]+Piano_marketing[[#Totals],[Set]]+Piano_ufficio[[#Totals],[Set]]+Piano_dipendenti[[#Totals],[Set]]","v":{"v":135918,"d":"€ 135,918.00"}},{"$f":"Piano_formazione_e_viaggi[[#Totals],[Ott]]+Piano_marketing[[#Totals],[Ott]]+Piano_ufficio[[#Totals],[Ott]]+Piano_dipendenti[[#Totals],[Ott]]","v":{"v":140918,"d":"€ 140,918.00"}},{"$f":"Piano_formazione_e_viaggi[[#Totals],[Nov]]+Piano_marketing[[#Totals],[Nov]]+Piano_ufficio[[#Totals],[Nov]]+Piano_dipendenti[[#Totals],[Nov]]","v":{"v":136218,"d":"€ 136,218.00"}},{"$f":"Piano_formazione_e_viaggi[[#Totals],[Dic]]+Piano_marketing[[#Totals],[Dic]]+Piano_ufficio[[#Totals],[Dic]]+Piano_dipendenti[[#Totals],[Dic]]","v":{"v":140018,"d":"€ 140,018.00"}},{"$f":"Piano_formazione_e_viaggi[[#Totals],[ANNO]]+Piano_marketing[[#Totals],[ANNO]]+Piano_ufficio[[#Totals],[ANNO]]+Piano_dipendenti[[#Totals],[ANNO]]","v":{"v":1609630,"d":"€ 1,609,630.00"}}]
[null,"Spese pianificate TOTALI",{"$f":"SUM($C$36:C36)","v":{"v":131420,"d":"€ 131,420.00"}},{"$f":"SUM($C$36:D36)","v":{"v":258240,"d":"€ 258,240.00"}},{"$f":"SUM($C$36:E36)","v":{"v":385060,"d":"€ 385,060.00"}},{"$f":"SUM($C$36:F36)","v":{"v":522755,"d":"€ 522,755.00"}},{"$f":"SUM($C$36:G36)","v":{"v":652450,"d":"€ 652,450.00"}},{"$f":"SUM($C$36:H36)","v":{"v":782945,"d":"€ 782,945.00"}},{"$f":"SUM($C$36:I36)","v":{"v":917640,"d":"€ 917,640.00"}},{"$f":"SUM($C$36:J36)","v":{"v":1056558,"d":"€ 1,056,558.00"}},{"$f":"SUM($C$36:K36)","v":{"v":1192476,"d":"€ 1,192,476.00"}},{"$f":"SUM($C$36:L36)","v":{"v":1333394,"d":"€ 1,333,394.00"}},{"$f":"SUM($C$36:M36)","v":{"v":1469612,"d":"€ 1,469,612.00"}},{"$f":"SUM($C$36:N36)","v":{"v":1609630,"d":"€ 1,609,630.00"}}]

{"sheet":"SPESE EFFETTIVE","index":2,"n_rows":37,"n_cols":16,"rows_kept":37,"merged":[[1,1,2,3],[1,9,1,12],[1,13,2,14],[2,9,2,12],[8,1,8,2],[19,1,19,2],[28,1,28,2],[33,1,33,2]]}
["Immettere i costi effettivi dei dipendenti, i costi di ufficio, i costi di marketing e i costi di formazione o di viaggio nelle rispettive tabelle di questo foglio di lavoro. I totali vengono calcolati automaticamente. Istruzioni utili per l'uso di questo foglio di lavoro si trovano nelle celle di questa colonna. Freccia verso il basso per iniziare.",{"$nulls":14}," "]
["Il nome della società viene aggiornato automaticamente nella cella a destra. Il titolo del foglio di lavoro si trova nella cella J2. Immettere il logo nella cella N2.",{"$f":"'SPESE PIANIFICATE'!B2:D3","v":"Nome società"},{"$nulls":7},{"$f":"worksheet_title","v":"Previsioni di spesa dettagliate"},{"$nulls":3},"Il segnaposto del logo si trova in questa cella."]
["Il suggerimento si trova nella cella J3.",{"$nulls":8},"Le celle ombreggiate sono calcoli."]
["L’etichetta Spese effettive si trova nella cella a destra, i mesi nelle celle da C4 a N4 e l’etichetta Anno in O4.","SPESE EFFETTIVE","GEN","FEB","MAR","APR","MAG","GIU","LUG","AGO","SET","OTT","NOV","DIC","ANNO"]
["Immettere i costi dei dipendenti nella tabella Costi effettivi dei dipendenti partendo dalla cella a destra. L’ istruzione successiva si trova nella cella A10.","Costi dei dipendenti","Gen","Feb","Mar","Apr","Mag","Giu","Lug","Ago","Set","Ott","Nov","Dic","ANNO"]
[null,"Stipendi",{"v":85000,"d":"€ 85,000.00"},{"v":85000,"d":"€ 85,000.00"},{"v":85000,"d":"€ 85,000.00"},{"v":88000,"d":"€ 88,000.00"},{"v":88000,"d":"€ 88,000.00"},{"v":88000,"d":"€ 88,000.00"},{"$nulls":6},{"$f":"SUM(C6:N6)","v":{"v":519000,"d":"€ 519,000.00"}}]
[null,"Indennità",{"$f":"C6*0.27","v":{"v":22950,"d":"€ 22,950.00"}},{"v":22950,"d":"€ 22,950.00"},{"v":22950,"d":"€ 22,950.00"},{"v":23760,"d":"€ 23,760.00"},{"v":23760,"d":"€ 23,760.00"},{"v":23760,"d":"€ 23,760.00"},{"v":0,"d":"€ 0.00"},{"v":0,"d":"€ 0.00"},{"v":0,"d":"€ 0.00"},{"v":0,"d":"€ 0.00"},{"v":0,"d":"€ 0.00"},{"v":0,"d":"€ 0.00"},{"$f":"SUM(C7:N7)","v":{"v":140130,"d":"€ 140,130.00"}}]
[null,"Subtotale",{"$f":"SUBTOTAL(109,Costi_effettivi_dei_dipendenti[Gen])","v":{"v":107950,"d":"€ 107,950.00"}},{"$f":"SUBTOTAL(109,Costi_effettivi_dei_dipendenti[Feb])","v":{"v":107950,"d":"€ 107,950.00"}},{"$f":"SUBTOTAL(109,Costi_effettivi_dei_dipendenti[Mar])","v":{"v":107950,"d":"€ 107,950.00"}},{"$f":"SUBTOTAL(109,Costi_effettivi_dei_dipendenti[Apr])","v":{"v":111760,"d":"€ 111,760.00"}},{"$f":"SUBTOTAL(109,Costi_effettivi_dei_dipendenti[Mag])","v":{"v":111760,"d":"€ 111,760.00"}},{"$f":"SUBTOTAL(109,Costi_effettivi_dei_dipendenti[Giu])","v":{"v":111760,"d":"€ 111,760.00"}},{"$f":"SUBTOTAL(109,Costi_effettivi_dei_dipendenti[Lug])","v":{"v":0,"d":"€ 0.00"}},{"$f":"SUBTOTAL(109,Costi_effettivi_dei_dipendenti[Ago])","v":{"v":0,"d":"€ 0.00"}},{"$f":"SUBTOTAL(109,Costi_effettivi_dei_dipendenti[Set])","v":{"v":0,"d":"€ 0.00"}},{"$f":"SUBTOTAL(109,Costi_effettivi_dei_dipendenti[Ott])","v":{"v":0,"d":"€ 0.00"}},{"$f":"SUBTOTAL(109,Costi_effettivi_dei_dipendenti[Nov])","v":{"v":0,"d":"€ 0.00"}},{"$f":"SUBTOTAL(109,Costi_effettivi_dei_dipendenti[Dic])","v":{"v":0,"d":"€ 0.00"}},{"$f":"SUBTOTAL(109,Costi_effettivi_dei_dipendenti[ANNO])","v":{"v":659130,"d":"€ 659,130.00"}}]
[]
["Immettere i costi di ufficio nella tabella Costi di ufficio effettivi partendo dalla cella a destra. L'istruzione successiva si trova nella cella A21.","Costi di ufficio","Gen","Feb","Mar","Apr","Mag","Giu","Lug","Ago","Set","Ott","Nov","Dic","ANNO"]
[null,"Locazione di uffici",{"v":9800,"d":"€ 9,800.00"},{"v":9800,"d":"€ 9,800.00"},{"v":9800,"d":"€ 9,800.00"},{"v":9800,"d":"€ 9,800.00"},{"v":9800,"d":"€ 9,800.00"},{"v":9800,"d":"€ 9,800.00"},{"$nulls":6},{"$f":"SUM(C11:N11)","v":{"v":58800,"d":"€ 58,800.00"}}]
[null,"Gas",{"v":4,"d":"€ 4.00"},{"v":430,"d":"€ 430.00"},{"v":385,"d":"€ 385.00"},{"v":230,"d":"€ 230.00"},{"v":87,"d":"€ 87.00"},{"v":88,"d":"€ 88.00"},{"$nulls":6},{"v":1224,"d":"€ 1,224.00"}]
[null,"Elettricità",{"v":288,"d":"€ 288.00"},{"v":278,"d":"€ 278.00"},{"v":268,"d":"€ 268.00"},{"v":299,"d":"€ 299.00"},{"v":306,"d":"€ 306.00"},{"v":290,"d":"€ 290.00"},{"$nulls":6},{"v":1729,"d":"€ 1,729.00"}]
[null,"Acqua",{"v":35,"d":"€ 35.00"},{"v":33,"d":"€ 33.00"},{"v":34,"d":"€ 34.00"},{"v":36,"d":"€ 36.00"},{"v":34,"d":"€ 34.00"},{"v":36,"d":"€ 36.00"},{"$nulls":6},{"v":208,"d":"€ 208.00"}]
[null,"Telefono",{"v":224,"d":"€ 224.00"},{"v":235,"d":"€ 235.00"},{"v":265,"d":"€ 265.00"},{"v":245,"d":"€ 245.00"},{"v":245,"d":"€ 245.00"},{"v":220,"d":"€ 220.00"},{"$nulls":6},{"v":1434,"d":"€ 1,434.00"}]
[null,"Accesso a Internet",{"v":180,"d":"€ 180.00"},{"v":180,"d":"€ 180.00"},{"v":180,"d":"€ 180.00"},{"v":180,"d":"€ 180.00"},{"v":180,"d":"€ 180.00"},{"v":180,"d":"€ 180.00"},{"$nulls":6},{"v":1080,"d":"€ 1,080.00"}]
[null,"Forniture ufficio",{"v":256,"d":"€ 256.00"},{"v":142,"d":"€ 142.00"},{"v":160,"d":"€ 160.00"},{"v":221,"d":"€ 221.00"},{"v":256,"d":"€ 256.00"},{"v":240,"d":"€ 240.00"},{"$nulls":6},{"v":1275,"d":"€ 1,275.00"}]
[null,"Sicurezza",{"v":600,"d":"€ 600.00"},{"v":600,"d":"€ 600.00"},{"v":600,"d":"€ 600.00"},{"v":600,"d":"€ 600.00"},{"v":600,"d":"€ 600.00"},{"v":600,"d":"€ 600.00"},{"$nulls":6},{"v":3600,"d":"€ 3,600.00"}]
[null,"Subtotale",{"$f":"SUBTOTAL(109,Costi_di_ufficio_effettivi[Gen])","v":{"v":11387,"d":"€ 11,387.00"}},{"$f":"SUBTOTAL(109,Costi_di_ufficio_effettivi[Feb])","v":{"v":11698,"d":"€ 11,698.00"}},{"$f":"SUBTOTAL(109,Costi_di_ufficio_effettivi[Mar])","v":{"v":11692,"d":"€ 11,692.00"}},{"$f":"SUBTOTAL(109,Costi_di_ufficio_effettivi[Apr])","v":{"v":11611,"d":"€ 11,611.00"}},{"$f":"SUBTOTAL(109,Costi_di_ufficio_effettivi[Mag])","v":{"v":11508,"d":"€ 11,508.00"}},{"$f":"SUBTOTAL(109,Costi_di_ufficio_effettivi[Giu])","v":{"v":11454,"d":"€ 11,454.00"}},{"$f":"SUBTOTAL(109,Costi_di_ufficio_effettivi[Lug])","v":{"v":0,"d":"€ 0.00"}},{"$f":"SUBTOTAL(109,Costi_di_ufficio_effettivi[Ago])","v":{"v":0,"d":"€ 0.00"}},{"$f":"SUBTOTAL(109,Costi_di_ufficio_effettivi[Set])","v":{"v":0,"d":"€ 0.00"}},{"$f":"SUBTOTAL(109,Costi_di_ufficio_effettivi[Ott])","v":{"v":0,"d":"€ 0.00"}},{"$f":"SUBTOTAL(109,Costi_di_ufficio_effettivi[Nov])","v":{"v":0,"d":"€ 0.00"}},{"$f":"SUBTOTAL(109,Costi_di_ufficio_effettivi[Dic])","v":{"v":0,"d":"€ 0.00"}},{"$f":"SUBTOTAL(109,Costi_di_ufficio_effettivi[ANNO])","v":{"v":69350,"d":"€ 69,350.00"}}]
[]
["Immettere i costi di marketing nella tabella Costi di marketing effettivi partendo dalla cella a destra. L'istruzione successiva si trova nella cella A30.","Costi di marketing","Gen","Feb","Mar","Apr","Mag","Giu","Lug","Ago","Set","Ott","Nov","Dic","ANNO"]
[null,"Hosting di siti Web",{"v":500,"d":"€ 500.00"},{"v":500,"d":"€ 500.00"},{"v":500,"d":"€ 500.00"},{"v":500,"d":"€ 500.00"},{"v":500,"d":"€ 500.00"},{"v":500,"d":"€ 500.00"},{"$nulls":6},{"$f":"SUM(C22:N22)","v":{"v":3000,"d":"€ 3,000.00"}}]
[null,"Aggiornamenti del sito Web",{"v":200,"d":"€ 200.00"},{"v":200,"d":"€ 200.00"},{"v":200,"d":"€ 200.00"},{"v":200,"d":"€ 200.00"},{"v":200,"d":"€ 200.00"},{"v":1500,"d":"€ 1,500.00"},{"$nulls":6},{"v":2500,"d":"€ 2,500.00"}]
[null,"Preparazione materiale",{"v":4800,"d":"€ 4,800.00"},{"v":0,"d":"€ 0.00"},{"v":0,"d":"€ 0.00"},{"v":5500,"d":"€ 5,500.00"},{"v":0,"d":"€ 0.00"},{"v":0,"d":"€ 0.00"},{"$nulls":6},{"v":10300,"d":"€ 10,300.00"}]
[null,"Stampa materiale",{"v":100,"d":"€ 100.00"},{"v":500,"d":"€ 500.00"},{"v":100,"d":"€ 100.00"},{"v":100,"d":"€ 100.00"},{"v":600,"d":"€ 600.00"},{"v":180,"d":"€ 180.00"},{"$nulls":6},{"v":1580,"d":"€ 1,580.00"}]
[null,"Eventi di marketing",{"v":1800,"d":"€ 1,800.00"},{"v":2200,"d":"€ 2,200.00"},{"v":2200,"d":"€ 2,200.00"},{"v":4700,"d":"€ 4,700.00"},{"v":1500,"d":"€ 1,500.00"},{"v":2300,"d":"€ 2,300.00"},{"$nulls":6},{"v":14700,"d":"€ 14,700.00"}]
[null,"Spese varie",{"v":145,"d":"€ 145.00"},{"v":156,"d":"€ 156.00"},{"v":123,"d":"€ 123.00"},{"v":223,"d":"€ 223.00"},{"v":187,"d":"€ 187.00"},{"v":245,"d":"€ 245.00"},{"$nulls":6},{"v":1079,"d":"€ 1,079.00"}]
[null,"Subtotale",{"$f":"SUBTOTAL(109,Costi_di_marketing_effettivi[Gen])","v":{"v":7545,"d":"€ 7,545.00"}},{"$f":"SUBTOTAL(109,Costi_di_marketing_effettivi[Feb])","v":{"v":3556,"d":"€ 3,556.00"}},{"$f":"SUBTOTAL(109,Costi_di_marketing_effettivi[Mar])","v":{"v":3123,"d":"€ 3,123.00"}},{"$f":"SUBTOTAL(109,Costi_di_marketing_effettivi[Apr])","v":{"v":11223,"d":"€ 11,223.00"}},{"$f":"SUBTOTAL(109,Costi_di_marketing_effettivi[Mag])","v":{"v":2987,"d":"€ 2,987.00"}},{"$f":"SUBTOTAL(109,Costi_di_marketing_effettivi[Giu])","v":{"v":4725,"d":"€ 4,725.00"}},{"$f":"SUBTOTAL(109,Costi_di_marketing_effettivi[Lug])","v":{"v":0,"d":"€ 0.00"}},{"$f":"SUBTOTAL(109,Costi_di_marketing_effettivi[Ago])","v":{"v":0,"d":"€ 0.00"}},{"$f":"SUBTOTAL(109,Costi_di_marketing_effettivi[Set])","v":{"v":0,"d":"€ 0.00"}},{"$f":"SUBTOTAL(109,Costi_di_marketing_effettivi[Ott])","v":{"v":0,"d":"€ 0.00"}},{"$f":"SUBTOTAL(109,Costi_di_marketing_effettivi[Nov])","v":{"v":0,"d":"€ 0.00"}},{"$f":"SUBTOTAL(109,Costi_di_marketing_effettivi[Dic])","v":{"v":0,"d":"€ 0.00"}},{"$f":"SUBTOTAL(109,Costi_di_marketing_effettivi[ANNO])","v":{"v":33159,"d":"€ 33,159.00"}}]
[]
["Immettere i costi di formazione o di viaggio nella tabella Costi di formazione e di viaggio effettivi partendo dalla cella a destra. L'istruzione successiva si trova nella cella A35.","Formazione/viaggi","Gen","Feb","Mar","Apr","Mag","Giu","Lug","Ago","Set","Ott","Nov","Dic","ANNO"]
[null,"Corsi di formazione",{"v":1600,"d":"€ 1,600.00"},{"v":2400,"d":"€ 2,400.00"},{"v":1400,"d":"€ 1,400.00"},{"v":1600,"d":"€ 1,600.00"},{"v":1200,"d":"€ 1,200.00"},{"v":2800,"d":"€ 2,800.00"},{"$nulls":6},{"$f":"SUM(C31:N31)","v":{"v":11000,"d":"€ 11,000.00"}}]
[null,"Costi di viaggio relativi alla formazione",{"v":1200,"d":"€ 1,200.00"},{"v":2200,"d":"€ 2,200.00"},{"v":1400,"d":"€ 1,400.00"},{"v":1200,"d":"€ 1,200.00"},{"v":800,"d":"€ 800.00"},{"v":3500,"d":"€ 3,500.00"},{"$nulls":6},{"$f":"SUM(C32:N32)","v":{"v":10300,"d":"€ 10,300.00"}}]
[null,"Subtotale",{"$f":"SUBTOTAL(109,Costi_di_formazione_e_di_viaggio_effettivi[Gen])","v":{"v":2800,"d":"€ 2,800.00"}},{"$f":"SUBTOTAL(109,Costi_di_formazione_e_di_viaggio_effettivi[Feb])","v":{"v":4600,"d":"€ 4,600.00"}},{"$f":"SUBTOTAL(109,Costi_di_formazione_e_di_viaggio_effettivi[Mar])","v":{"v":2800,"d":"€ 2,800.00"}},{"$f":"SUBTOTAL(109,Costi_di_formazione_e_di_viaggio_effettivi[Apr])","v":{"v":2800,"d":"€ 2,800.00"}},{"$f":"SUBTOTAL(109,Costi_di_formazione_e_di_viaggio_effettivi[Mag])","v":{"v":2000,"d":"€ 2,000.00"}},{"$f":"SUBTOTAL(109,Costi_di_formazione_e_di_viaggio_effettivi[Giu])","v":{"v":6300,"d":"€ 6,300.00"}},{"$f":"SUBTOTAL(109,Costi_di_formazione_e_di_viaggio_effettivi[Lug])","v":{"v":0,"d":"€ 0.00"}},{"$f":"SUBTOTAL(109,Costi_di_formazione_e_di_viaggio_effettivi[Ago])","v":{"v":0,"d":"€ 0.00"}},{"$f":"SUBTOTAL(109,Costi_di_formazione_e_di_viaggio_effettivi[Set])","v":{"v":0,"d":"€ 0.00"}},{"$f":"SUBTOTAL(109,Costi_di_formazione_e_di_viaggio_effettivi[Ott])","v":{"v":0,"d":"€ 0.00"}},{"$f":"SUBTOTAL(109,Costi_di_formazione_e_di_viaggio_effettivi[Nov])","v":{"v":0,"d":"€ 0.00"}},{"$f":"SUBTOTAL(109,Costi_di_formazione_e_di_viaggio_effettivi[Dic])","v":{"v":0,"d":"€ 0.00"}},{"$f":"SUBTOTAL(109,Costi_di_formazione_e_di_viaggio_effettivi[ANNO])","v":{"v":21300,"d":"€ 21,300.00"}}]
[]
["Le spese effettive totali vengono calcolate automaticamente nella tabella Spese totali effettive partendo dalla cella a destra.","Spese pianificate TOTALI","Gen","Feb","Mar","Apr","Mag","Giu","Lug","Ago","Set","Ott","Nov","Dic","Anno"]
[null,"Spese effettive mensili",{"$f":"Costi_di_formazione_e_di_viaggio_effettivi[[#Totals],[Gen]]+Costi_di_marketing_effettivi[[#Totals],[Gen]]+Costi_di_ufficio_effettivi[[#Totals],[Gen]]+Costi_effettivi_dei_dipendenti[[#Totals],[Gen]]","v":{"v":129682,"d":"€ 129,682.00"}},{"$f":"Costi_di_formazione_e_di_viaggio_effettivi[[#Totals],[Feb]]+Costi_di_marketing_effettivi[[#Totals],[Feb]]+Costi_di_ufficio_effettivi[[#Totals],[Feb]]+Costi_effettivi_dei_dipendenti[[#Totals],[Feb]]","v":{"v":127804,"d":"€ 127,804.00"}},{"$f":"Costi_di_formazione_e_di_viaggio_effettivi[[#Totals],[Mar]]+Costi_di_marketing_effettivi[[#Totals],[Mar]]+Costi_di_ufficio_effettivi[[#Totals],[Mar]]+Costi_effettivi_dei_dipendenti[[#Totals],[Mar]]","v":{"v":125565,"d":"€ 125,565.00"}},{"$f":"Costi_di_formazione_e_di_viaggio_effettivi[[#Totals],[Apr]]+Costi_di_marketing_effettivi[[#Totals],[Apr]]+Costi_di_ufficio_effettivi[[#Totals],[Apr]]+Costi_effettivi_dei_dipendenti[[#Totals],[Apr]]","v":{"v":137394,"d":"€ 137,394.00"}},{"$f":"Costi_di_formazione_e_di_viaggio_effettivi[[#Totals],[Mag]]+Costi_di_marketing_effettivi[[#Totals],[Mag]]+Costi_di_ufficio_effettivi[[#Totals],[Mag]]+Costi_effettivi_dei_dipendenti[[#Totals],[Mag]]","v":{"v":128255,"d":"€ 128,255.00"}},{"$f":"Costi_di_formazione_e_di_viaggio_effettivi[[#Totals],[Giu]]+Costi_di_marketing_effettivi[[#Totals],[Giu]]+Costi_di_ufficio_effettivi[[#Totals],[Giu]]+Costi_effettivi_dei_dipendenti[[#Totals],[Giu]]","v":{"v":134239,"d":"€ 134,239.00"}},{"$f":"Costi_di_formazione_e_di_viaggio_effettivi[[#Totals],[Lug]]+Costi_di_marketing_effettivi[[#Totals],[Lug]]+Costi_di_ufficio_effettivi[[#Totals],[Lug]]+Costi_effettivi_dei_dipendenti[[#Totals],[Lug]]","v":{"v":0,"d":"€ 0.00"}},{"$f":"Costi_di_formazione_e_di_viaggio_effettivi[[#Totals],[Ago]]+Costi_di_marketing_effettivi[[#Totals],[Ago]]+Costi_di_ufficio_effettivi[[#Totals],[Ago]]+Costi_effettivi_dei_dipendenti[[#Totals],[Ago]]","v":{"v":0,"d":"€ 0.00"}},{"$f":"Costi_di_formazione_e_di_viaggio_effettivi[[#Totals],[Set]]+Costi_di_marketing_effettivi[[#Totals],[Set]]+Costi_di_ufficio_effettivi[[#Totals],[Set]]+Costi_effettivi_dei_dipendenti[[#Totals],[Set]]","v":{"v":0,"d":"€ 0.00"}},{"$f":"Costi_di_formazione_e_di_viaggio_effettivi[[#Totals],[Ott]]+Costi_di_marketing_effettivi[[#Totals],[Ott]]+Costi_di_ufficio_effettivi[[#Totals],[Ott]]+Costi_effettivi_dei_dipendenti[[#Totals],[Ott]]","v":{"v":0,"d":"€ 0.00"}},{"$f":"Costi_di_formazione_e_di_viaggio_effettivi[[#Totals],[Nov]]+Costi_di_marketing_effettivi[[#Totals],[Nov]]+Costi_di_ufficio_effettivi[[#Totals],[Nov]]+Costi_effettivi_dei_dipendenti[[#Totals],[Nov]]","v":{"v":0,"d":"€ 0.00"}},{"$f":"Costi_di_formazione_e_di_viaggio_effettivi[[#Totals],[Dic]]+Costi_di_marketing_effettivi[[#Totals],[Dic]]+Costi_di_ufficio_effettivi[[#Totals],[Dic]]+Costi_effettivi_dei_dipendenti[[#Totals],[Dic]]","v":{"v":0,"d":"€ 0.00"}},{"$f":"Costi_di_formazione_e_di_viaggio_effettivi[[#Totals],[ANNO]]+Costi_di_marketing_effettivi[[#Totals],[ANNO]]+Costi_di_ufficio_effettivi[[#Totals],[ANNO]]+Costi_effettivi_dei_dipendenti[[#Totals],[ANNO]]","v":{"v":782939,"d":"€ 782,939.00"}}]
[null,"Spese effettive TOTALI",{"$f":"SUM($C$36:C36)","v":{"v":129682,"d":"€ 129,682.00"}},{"$f":"SUM($C$36:D36)","v":{"v":257486,"d":"€ 257,486.00"}},{"$f":"SUM($C$36:E36)","v":{"v":383051,"d":"€ 383,051.00"}},{"$f":"SUM($C$36:F36)","v":{"v":520445,"d":"€ 520,445.00"}},{"$f":"SUM($C$36:G36)","v":{"v":648700,"d":"€ 648,700.00"}},{"$f":"SUM($C$36:H36)","v":{"v":782939,"d":"€ 782,939.00"}},{"$f":"SUM($C$36:I36)","v":{"v":782939,"d":"€ 782,939.00"}},{"$f":"SUM($C$36:J36)","v":{"v":782939,"d":"€ 782,939.00"}},{"$f":"SUM($C$36:K36)","v":{"v":782939,"d":"€ 782,939.00"}},{"$f":"SUM($C$36:L36)","v":{"v":782939,"d":"€ 782,939.00"}},{"$f":"SUM($C$36:M36)","v":{"v":782939,"d":"€ 782,939.00"}},{"$f":"SUM($C$36:N36)","v":{"v":782939,"d":"€ 782,939.00"}}]

{"sheet":"SCOSTAMENTI DI SPESE","index":3,"n_rows":37,"n_cols":16,"rows_kept":37,"merged":[[1,1,2,3],[1,9,1,12],[1,13,2,14],[2,9,2,12],[8,1,8,2],[19,1,19,2],[28,1,28,2],[33,1,33,2]]}
["Gli scostamenti di spese vengono calcolati automaticamente in questo foglio di lavoro per i costi dei dipendenti, i costi di ufficio, i costi di marketing e i costi di formazione o di viaggio nelle rispettive tabelle di questo foglio di lavoro. Istruzioni utili per l'uso di questo foglio di lavoro si trovano nelle celle di questa colonna. Freccia verso il basso per iniziare.",{"$nulls":14}," "]
["Il nome della società viene aggiornato automaticamente nella cella a destra. Il titolo del foglio di lavoro si trova nella cella J2. Immettere il logo nella cella N2.",{"$f":"'SPESE PIANIFICATE'!B2:D3","v":"Nome società"},{"$nulls":7},{"$f":"worksheet_title","v":"Previsioni di spesa dettagliate"},{"$nulls":3},"Il segnaposto del logo si trova in questa cella."]
["Il suggerimento si trova nella cella J3.",{"$nulls":8},"Le celle ombreggiate sono calcoli."]
["L’etichetta Scostamenti di spese si trova nella cella a destra, i mesi nelle celle da C4 a N4 e l’etichetta Anno in O4.","SCOSTAMENTI DI SPESE","GEN","FEB","MAR","APR","MAG","GIU","LUG","AGO","SET","OTT","NOV","DIC","ANNO"]
["Lo scostamento in Costi dei dipendenti viene calcolato automaticamente nella tabella Scostamenti dei dipendenti partendo dalla cella a destra. L’ istruzione successiva si trova nella cella A10.","Costi dei dipendenti","Gen","Feb","Mar","Apr","Mag","Giu","Lug","Ago","Set","Ott","Nov","Dic","ANNO"]
[null,"Stipendi",{"$f":"INDEX(Piano_dipendenti[],MATCH(INDEX(Scostamenti_dei_dipendenti[],ROW()-ROW(Scostamenti_dei_dipendenti[[#Headers],[Gen]]),1),INDEX(Piano_dipendenti[],,1),0),MATCH(Scostamenti_dei_dipendenti[[#Headers],[Gen]],Piano_dipendenti[#Headers],0))-INDEX(Costi_effettivi_dei_dipendenti[],MATCH(INDEX(Scostamenti_dei_dipendenti[],ROW()-ROW(Scostamenti_dei_dipendenti[[#Headers],[Gen]]),1),INDEX(Piano_dipendenti[],,1),0),MATCH(Scostamenti_dei_dipendenti[[#Headers],[Gen]],Costi_effettivi_dei_dipendenti[#Headers],0))","v":{"v":0,"d":"€ 0.00"}},{"$f":"INDEX(Piano_dipendenti[],MATCH(INDEX(Scostamenti_dei_dipendenti[],ROW()-ROW(Scostamenti_dei_dipendenti[[#Headers],[Feb]]),1),INDEX(Piano_dipendenti[],,1),0),MATCH(Scostamenti_dei_dipendenti[[#Headers],[Feb]],Piano_dipendenti[#Headers],0))-INDEX(Costi_effettivi_dei_dipendenti[],MATCH(INDEX(Scostamenti_dei_dipendenti[],ROW()-ROW(Scostamenti_dei_dipendenti[[#Headers],[Feb]]),1),INDEX(Piano_dipendenti[],,1),0),MATCH(Scostamenti_dei_dipendenti[[#Headers],[Feb]],Costi_effettivi_dei_dipendenti[#Headers],0))","v":{"v":0,"d":"€ 0.00"}},{"$f":"INDEX(Piano_dipendenti[],MATCH(INDEX(Scostamenti_dei_dipendenti[],ROW()-ROW(Scostamenti_dei_dipendenti[[#Headers],[Mar]]),1),INDEX(Piano_dipendenti[],,1),0),MATCH(Scostamenti_dei_dipendenti[[#Headers],[Mar]],Piano_dipendenti[#Headers],0))-INDEX(Costi_effettivi_dei_dipendenti[],MATCH(INDEX(Scostamenti_dei_dipendenti[],ROW()-ROW(Scostamenti_dei_dipendenti[[#Headers],[Mar]]),1),INDEX(Piano_dipendenti[],,1),0),MATCH(Scostamenti_dei_dipendenti[[#Headers],[Mar]],Costi_effettivi_dei_dipendenti[#Headers],0))","v":{"v":0,"d":"€ 0.00"}},{"$f":"INDEX(Piano_dipendenti[],MATCH(INDEX(Scostamenti_dei_dipendenti[],ROW()-ROW(Scostamenti_dei_dipendenti[[#Headers],[Apr]]),1),INDEX(Piano_dipendenti[],,1),0),MATCH(Scostamenti_dei_dipendenti[[#Headers],[Apr]],Piano_dipendenti[#Headers],0))-INDEX(Costi_effettivi_dei_dipendenti[],MATCH(INDEX(Scostamenti_dei_dipendenti[],ROW()-ROW(Scostamenti_dei_dipendenti[[#Headers],[Apr]]),1),INDEX(Piano_dipendenti[],,1),0),MATCH(Scostamenti_dei_dipendenti[[#Headers],[Apr]],Costi_effettivi_dei_dipendenti[#Headers],0))","v":{"v":-500,"d":"-€ 500.00"}},{"$f":"INDEX(Piano_dipendenti[],MATCH(INDEX(Scostamenti_dei_dipendenti[],ROW()-ROW(Scostamenti_dei_dipendenti[[#Headers],[Mag]]),1),INDEX(Piano_dipendenti[],,1),0),MATCH(Scostamenti_dei_dipendenti[[#Headers],[Mag]],Piano_dipendenti[#Headers],0))-INDEX(Costi_effettivi_dei_dipendenti[],MATCH(INDEX(Scostamenti_dei_dipendenti[],ROW()-ROW(Scostamenti_dei_dipendenti[[#Headers],[Mag]]),1),INDEX(Piano_dipendenti[],,1),0),MATCH(Scostamenti_dei_dipendenti[[#Headers],[Mag]],Costi_effettivi_dei_dipendenti[#Headers],0))","v":{"v":-500,"d":"-€ 500.00"}},{"$f":"INDEX(Piano_dipendenti[],MATCH(INDEX(Scostamenti_dei_dipendenti[],ROW()-ROW(Scostamenti_dei_dipendenti[[#Headers],[Giu]]),1),INDEX(Piano_dipendenti[],,1),0),MATCH(Scostamenti_dei_dipendenti[[#Headers],[Giu]],Piano_dipendenti[#Headers],0))-INDEX(Costi_effettivi_dei_dipendenti[],MATCH(INDEX(Scostamenti_dei_dipendenti[],ROW()-ROW(Scostamenti_dei_dipendenti[[#Headers],[Giu]]),1),INDEX(Piano_dipendenti[],,1),0),MATCH(Scostamenti_dei_dipendenti[[#Headers],[Giu]],Costi_effettivi_dei_dipendenti[#Headers],0))","v":{"v":-500,"d":"-€ 500.00"}},{"$f":"INDEX(Piano_dipendenti[],MATCH(INDEX(Scostamenti_dei_dipendenti[],ROW()-ROW(Scostamenti_dei_dipendenti[[#Headers],[Lug]]),1),INDEX(Piano_dipendenti[],,1),0),MATCH(Scostamenti_dei_dipendenti[[#Headers],[Lug]],Piano_dipendenti[#Headers],0))-INDEX(Costi_effettivi_dei_dipendenti[],MATCH(INDEX(Scostamenti_dei_dipendenti[],ROW()-ROW(Scostamenti_dei_dipendenti[[#Headers],[Lug]]),1),INDEX(Piano_dipendenti[],,1),0),MATCH(Scostamenti_dei_dipendenti[[#Headers],[Lug]],Costi_effettivi_dei_dipendenti[#Headers],0))","v":{"v":87500,"d":"€ 87,500.00"}},{"$f":"INDEX(Piano_dipendenti[],MATCH(INDEX(Scostamenti_dei_dipendenti[],ROW()-ROW(Scostamenti_dei_dipendenti[[#Headers],[Ago]]),1),INDEX(Piano_dipendenti[],,1),0),MATCH(Scostamenti_dei_dipendenti[[#Headers],[Ago]],Piano_dipendenti[#Headers],0))-INDEX(Costi_effettivi_dei_dipendenti[],MATCH(INDEX(Scostamenti_dei_dipendenti[],ROW()-ROW(Scostamenti_dei_dipendenti[[#Headers],[Ago]]),1),INDEX(Piano_dipendenti[],,1),0),MATCH(Scostamenti_dei_dipendenti[[#Headers],[Ago]],Costi_effettivi_dei_dipendenti[#Headers],0))","v":{"v":92400,"d":"€ 92,400.00"}},{"$f":"INDEX(Piano_dipendenti[],MATCH(INDEX(Scostamenti_dei_dipendenti[],ROW()-ROW(Scostamenti_dei_dipendenti[[#Headers],[Set]]),1),INDEX(Piano_dipendenti[],,1),0),MATCH(Scostamenti_dei_dipendenti[[#Headers],[Set]],Piano_dipendenti[#Headers],0))-INDEX(Costi_effettivi_dei_dipendenti[],MATCH(INDEX(Scostamenti_dei_dipendenti[],ROW()-ROW(Scostamenti_dei_dipendenti[[#Headers],[Set]]),1),INDEX(Piano_dipendenti[],,1),0),MATCH(Scostamenti_dei_dipendenti[[#Headers],[Set]],Costi_effettivi_dei_dipendenti[#Headers],0))","v":{"v":92400,"d":"€ 92,400.00"}},{"$f":"INDEX(Piano_dipendenti[],MATCH(INDEX(Scostamenti_dei_dipendenti[],ROW()-ROW(Scostamenti_dei_dipendenti[[#Headers],[Ott]]),1),INDEX(Piano_dipendenti[],,1),0),MATCH(Scostamenti_dei_dipendenti[[#Headers],[Ott]],Piano_dipendenti[#Headers],0))-INDEX(Costi_effettivi_dei_dipendenti[],MATCH(INDEX(Scostamenti_dei_dipendenti[],ROW()-ROW(Scostamenti_dei_dipendenti[[#Headers],[Ott]]),1),INDEX(Piano_dipendenti[],,1),0),MATCH(Scostamenti_dei_dipendenti[[#Headers],[Ott]],Costi_effettivi_dei_dipendenti[#Headers],0))","v":{"v":92400,"d":"€ 92,400.00"}},{"$f":"INDEX(Piano_dipendenti[],MATCH(INDEX(Scostamenti_dei_dipendenti[],ROW()-ROW(Scostamenti_dei_dipendenti[[#Headers],[Nov]]),1),INDEX(Piano_dipendenti[],,1),0),MATCH(Scostamenti_dei_dipendenti[[#Headers],[Nov]],Piano_dipendenti[#Headers],0))-INDEX(Costi_effettivi_dei_dipendenti[],MATCH(INDEX(Scostamenti_dei_dipendenti[],ROW()-ROW(Scostamenti_dei_dipendenti[[#Headers],[Nov]]),1),INDEX(Piano_dipendenti[],,1),0),MATCH(Scostamenti_dei_dipendenti[[#Headers],[Nov]],Costi_effettivi_dei_dipendenti[#Headers],0))","v":{"v":92400,"d":"€ 92,400.00"}},{"$f":"INDEX(Piano_dipendenti[],MATCH(INDEX(Scostamenti_dei_dipendenti[],ROW()-ROW(Scostamenti_dei_dipendenti[[#Headers],[Dic]]),1),INDEX(Piano_dipendenti[],,1),0),MATCH(Scostamenti_dei_dipendenti[[#Headers],[Dic]],Piano_dipendenti[#Headers],0))-INDEX(Costi_effettivi_dei_dipendenti[],MATCH(INDEX(Scostamenti_dei_dipendenti[],ROW()-ROW(Scostamenti_dei_dipendenti[[#Headers],[Dic]]),1),INDEX(Piano_dipendenti[],,1),0),MATCH(Scostamenti_dei_dipendenti[[#Headers],[Dic]],Costi_effettivi_dei_dipendenti[#Headers],0))","v":{"v":92400,"d":"€ 92,400.00"}},{"$f":"SUM(Scostamenti_dei_dipendenti[[#This Row],[Gen]:[Dic]])","v":{"v":548000,"d":"€ 548,000.00"}}]
[null,"Indennità",{"$f":"INDEX(Piano_dipendenti[],MATCH(INDEX(Scostamenti_dei_dipendenti[],ROW()-ROW(Scostamenti_dei_dipendenti[[#Headers],[Gen]]),1),INDEX(Piano_dipendenti[],,1),0),MATCH(Scostamenti_dei_dipendenti[[#Headers],[Gen]],Piano_dipendenti[#Headers],0))-INDEX(Costi_effettivi_dei_dipendenti[],MATCH(INDEX(Scostamenti_dei_dipendenti[],ROW()-ROW(Scostamenti_dei_dipendenti[[#Headers],[Gen]]),1),INDEX(Piano_dipendenti[],,1),0),MATCH(Scostamenti_dei_dipendenti[[#Headers],[Gen]],Costi_effettivi_dei_dipendenti[#Headers],0))","v":{"v":0,"d":"€ 0.00"}},{"$f":"INDEX(Piano_dipendenti[],MATCH(INDEX(Scostamenti_dei_dipendenti[],ROW()-ROW(Scostamenti_dei_dipendenti[[#Headers],[Feb]]),1),INDEX(Piano_dipendenti[],,1),0),MATCH(Scostamenti_dei_dipendenti[[#Headers],[Feb]],Piano_dipendenti[#Headers],0))-INDEX(Costi_effettivi_dei_dipendenti[],MATCH(INDEX(Scostamenti_dei_dipendenti[],ROW()-ROW(Scostamenti_dei_dipendenti[[#Headers],[Feb]]),1),INDEX(Piano_dipendenti[],,1),0),MATCH(Scostamenti_dei_dipendenti[[#Headers],[Feb]],Costi_effettivi_dei_dipendenti[#Headers],0))","v":{"v":0,"d":"€ 0.00"}},{"$f":"INDEX(Piano_dipendenti[],MATCH(INDEX(Scostamenti_dei_dipendenti[],ROW()-ROW(Scostamenti_dei_dipendenti[[#Headers],[Mar]]),1),INDEX(Piano_dipendenti[],,1),0),MATCH(Scostamenti_dei_dipendenti[[#Headers],[Mar]],Piano_dipendenti[#Headers],0))-INDEX(Costi_effettivi_dei_dipendenti[],MATCH(INDEX(Scostamenti_dei_dipendenti[],ROW()-ROW(Scostamenti_dei_dipendenti[[#Headers],[Mar]]),1),INDEX(Piano_dipendenti[],,1),0),MATCH(Scostamenti_dei_dipendenti[[#Headers],[Mar]],Costi_effettivi_dei_dipendenti[#Headers],0))","v":{"v":0,"d":"€ 0.00"}},{"$f":"INDEX(Piano_dipendenti[],MATCH(INDEX(Scostamenti_dei_dipendenti[],ROW()-ROW(Scostamenti_dei_dipendenti[[#Headers],[Apr]]),1),INDEX(Piano_dipendenti[],,1),0),MATCH(Scostamenti_dei_dipendenti[[#Headers],[Apr]],Piano_dipendenti[#Headers],0))-INDEX(Costi_effettivi_dei_dipendenti[],MATCH(INDEX(Scostamenti_dei_dipendenti[],ROW()-ROW(Scostamenti_dei_dipendenti[[#Headers],[Apr]]),1),INDEX(Piano_dipendenti[],,1),0),MATCH(Scostamenti_dei_dipendenti[[#Headers],[Apr]],Costi_effettivi_dei_dipendenti[#Headers],0))","v":{"v":-135,"d":"-€ 135.00"}},{"$f":"INDEX(Piano_dipendenti[],MATCH(INDEX(Scostamenti_dei_dipendenti[],ROW()-ROW(Scostamenti_dei_dipendenti[[#Headers],[Mag]]),1),INDEX(Piano_dipendenti[],,1),0),MATCH(Scostamenti_dei_dipendenti[[#Headers],[Mag]],Piano_dipendenti[#Headers],0))-INDEX(Costi_effettivi_dei_dipendenti[],MATCH(INDEX(Scostamenti_dei_dipendenti[],ROW()-ROW(Scostamenti_dei_dipendenti[[#Headers],[Mag]]),1),INDEX(Piano_dipendenti[],,1),0),MATCH(Scostamenti_dei_dipendenti[[#Headers],[Mag]],Costi_effettivi_dei_dipendenti[#Headers],0))","v":{"v":-135,"d":"-€ 135.00"}},{"$f":"INDEX(Piano_dipendenti[],MATCH(INDEX(Scostamenti_dei_dipendenti[],ROW()-ROW(Scostamenti_dei_dipendenti[[#Headers],[Giu]]),1),INDEX(Piano_dipendenti[],,1),0),MATCH(Scostamenti_dei_dipendenti[[#Headers],[Giu]],Piano_dipendenti[#Headers],0))-INDEX(Costi_effettivi_dei_dipendenti[],MATCH(INDEX(Scostamenti_dei_dipendenti[],ROW()-ROW(Scostamenti_dei_dipendenti[[#Headers],[Giu]]),1),INDEX(Piano_dipendenti[],,1),0),MATCH(Scostamenti_dei_dipendenti[[#Headers],[Giu]],Costi_effettivi_dei_dipendenti[#Headers],0))","v":{"v":-135,"d":"-€ 135.00"}},{"$f":"INDEX(Piano_dipendenti[],MATCH(INDEX(Scostamenti_dei_dipendenti[],ROW()-ROW(Scostamenti_dei_dipendenti[[#Headers],[Lug]]),1),INDEX(Piano_dipendenti[],,1),0),MATCH(Scostamenti_dei_dipendenti[[#Headers],[Lug]],Piano_dipendenti[#Headers],0))-INDEX(Costi_effettivi_dei_dipendenti[],MATCH(INDEX(Scostamenti_dei_dipendenti[],ROW()-ROW(Scostamenti_dei_dipendenti[[#Headers],[Lug]]),1),INDEX(Piano_dipendenti[],,1),0),MATCH(Scostamenti_dei_dipendenti[[#Headers],[Lug]],Costi_effettivi_dei_dipendenti[#Headers],0))","v":{"v":23625,"d":"€ 23,625.00"}},{"$f":"INDEX(Piano_dipendenti[],MATCH(INDEX(Scostamenti_dei_dipendenti[],ROW()-ROW(Scostamenti_dei_dipendenti[[#Headers],[Ago]]),1),INDEX(Piano_dipendenti[],,1),0),MATCH(Scostamenti_dei_dipendenti[[#Headers],[Ago]],Piano_dipendenti[#Headers],0))-INDEX(Costi_effettivi_dei_dipendenti[],MATCH(INDEX(Scostamenti_dei_dipendenti[],ROW()-ROW(Scostamenti_dei_dipendenti[[#Headers],[Ago]]),1),INDEX(Piano_dipendenti[],,1),0),MATCH(Scostamenti_dei_dipendenti[[#Headers],[Ago]],Costi_effettivi_dei_dipendenti[#Headers],0))","v":{"v":24948,"d":"€ 24,948.00"}},{"$f":"INDEX(Piano_dipendenti[],MATCH(INDEX(Scostamenti_dei_dipendenti[],ROW()-ROW(Scostamenti_dei_dipendenti[[#Headers],[Set]]),1),INDEX(Piano_dipendenti[],,1),0),MATCH(Scostamenti_dei_dipendenti[[#Headers],[Set]],Piano_dipendenti[#Headers],0))-INDEX(Costi_effettivi_dei_dipendenti[],MATCH(INDEX(Scostamenti_dei_dipendenti[],ROW()-ROW(Scostamenti_dei_dipendenti[[#Headers],[Set]]),1),INDEX(Piano_dipendenti[],,1),0),MATCH(Scostamenti_dei_dipendenti[[#Headers],[Set]],Costi_effettivi_dei_dipendenti[#Headers],0))","v":{"v":24948,"d":"€ 24,948.00"}},{"$f":"INDEX(Piano_dipendenti[],MATCH(INDEX(Scostamenti_dei_dipendenti[],ROW()-ROW(Scostamenti_dei_dipendenti[[#Headers],[Ott]]),1),INDEX(Piano_dipendenti[],,1),0),MATCH(Scostamenti_dei_dipendenti[[#Headers],[Ott]],Piano_dipendenti[#Headers],0))-INDEX(Costi_effettivi_dei_dipendenti[],MATCH(INDEX(Scostamenti_dei_dipendenti[],ROW()-ROW(Scostamenti_dei_dipendenti[[#Headers],[Ott]]),1),INDEX(Piano_dipendenti[],,1),0),MATCH(Scostamenti_dei_dipendenti[[#Headers],[Ott]],Costi_effettivi_dei_dipendenti[#Headers],0))","v":{"v":24948,"d":"€ 24,948.00"}},{"$f":"INDEX(Piano_dipendenti[],MATCH(INDEX(Scostamenti_dei_dipendenti[],ROW()-ROW(Scostamenti_dei_dipendenti[[#Headers],[Nov]]),1),INDEX(Piano_dipendenti[],,1),0),MATCH(Scostamenti_dei_dipendenti[[#Headers],[Nov]],Piano_dipendenti[#Headers],0))-INDEX(Costi_effettivi_dei_dipendenti[],MATCH(INDEX(Scostamenti_dei_dipendenti[],ROW()-ROW(Scostamenti_dei_dipendenti[[#Headers],[Nov]]),1),INDEX(Piano_dipendenti[],,1),0),MATCH(Scostamenti_dei_dipendenti[[#Headers],[Nov]],Costi_effettivi_dei_dipendenti[#Headers],0))","v":{"v":24948,"d":"€ 24,948.00"}},{"$f":"INDEX(Piano_dipendenti[],MATCH(INDEX(Scostamenti_dei_dipendenti[],ROW()-ROW(Scostamenti_dei_dipendenti[[#Headers],[Dic]]),1),INDEX(Piano_dipendenti[],,1),0),MATCH(Scostamenti_dei_dipendenti[[#Headers],[Dic]],Piano_dipendenti[#Headers],0))-INDEX(Costi_effettivi_dei_dipendenti[],MATCH(INDEX(Scostamenti_dei_dipendenti[],ROW()-ROW(Scostamenti_dei_dipendenti[[#Headers],[Dic]]),1),INDEX(Piano_dipendenti[],,1),0),MATCH(Scostamenti_dei_dipendenti[[#Headers],[Dic]],Costi_effettivi_dei_dipendenti[#Headers],0))","v":{"v":24948,"d":"€ 24,948.00"}},{"$f":"SUM(Scostamenti_dei_dipendenti[[#This Row],[Gen]:[Dic]])","v":{"v":147960,"d":"€ 147,960.00"}}]
[null,"Subtotale",{"$f":"SUBTOTAL(109,Scostamenti_dei_dipendenti[Gen])","v":{"v":0,"d":"€ 0.00"}},{"$f":"SUBTOTAL(109,Scostamenti_dei_dipendenti[Feb])","v":{"v":0,"d":"€ 0.00"}},{"$f":"SUBTOTAL(109,Scostamenti_dei_dipendenti[Mar])","v":{"v":0,"d":"€ 0.00"}},{"$f":"SUBTOTAL(109,Scostamenti_dei_dipendenti[Apr])","v":{"v":-635,"d":"-€ 635.00"}},{"$f":"SUBTOTAL(109,Scostamenti_dei_dipendenti[Mag])","v":{"v":-635,"d":"-€ 635.00"}},{"$f":"SUBTOTAL(109,Scostamenti_dei_dipendenti[Giu])","v":{"v":-635,"d":"-€ 635.00"}},{"$f":"SUBTOTAL(109,Scostamenti_dei_dipendenti[Lug])","v":{"v":111125,"d":"€ 111,125.00"}},{"$f":"SUBTOTAL(109,Scostamenti_dei_dipendenti[Ago])","v":{"v":117348,"d":"€ 117,348.00"}},{"$f":"SUBTOTAL(109,Scostamenti_dei_dipendenti[Set])","v":{"v":117348,"d":"€ 117,348.00"}},{"$f":"SUBTOTAL(109,Scostamenti_dei_dipendenti[Ott])","v":{"v":117348,"d":"€ 117,348.00"}},{"$f":"SUBTOTAL(109,Scostamenti_dei_dipendenti[Nov])","v":{"v":117348,"d":"€ 117,348.00"}},{"$f":"SUBTOTAL(109,Scostamenti_dei_dipendenti[Dic])","v":{"v":117348,"d":"€ 117,348.00"}},{"$f":"SUBTOTAL(109,Scostamenti_dei_dipendenti[ANNO])","v":{"v":695960,"d":"€ 695,960.00"}}]
[]
["Lo scostamento in Costi di ufficio viene calcolato automaticamente nella tabella Scostamenti di ufficio partendo dalla cella a destra. L'istruzione successiva si trova nella cella A21.","Costi di ufficio","Gen","Feb","Mar","Apr","Mag","Giu","Lug","Ago","Set","Ott","Nov","Dic","ANNO"]
[null,"Locazione di uffici",{"$f":"INDEX(Piano_ufficio[],MATCH(INDEX(Scostamenti_di_ufficio[],ROW()-ROW(Scostamenti_di_ufficio[[#Headers],[Gen]]),1),INDEX(Piano_ufficio[],,1),0),MATCH(Scostamenti_di_ufficio[[#Headers],[Gen]],Piano_ufficio[#Headers],0))-INDEX(Costi_di_ufficio_effettivi[],MATCH(INDEX(Scostamenti_di_ufficio[],ROW()-ROW(Scostamenti_di_ufficio[[#Headers],[Gen]]),1),INDEX(Piano_ufficio[],,1),0),MATCH(Scostamenti_di_ufficio[[#Headers],[Gen]],Costi_di_ufficio_effettivi[#Headers],0))","v":{"v":0,"d":"€ 0.00"}},{"$f":"INDEX(Piano_ufficio[],MATCH(INDEX(Scostamenti_di_ufficio[],ROW()-ROW(Scostamenti_di_ufficio[[#Headers],[Feb]]),1),INDEX(Piano_ufficio[],,1),0),MATCH(Scostamenti_di_ufficio[[#Headers],[Feb]],Piano_ufficio[#Headers],0))-INDEX(Costi_di_ufficio_effettivi[],MATCH(INDEX(Scostamenti_di_ufficio[],ROW()-ROW(Scostamenti_di_ufficio[[#Headers],[Feb]]),1),INDEX(Piano_ufficio[],,1),0),MATCH(Scostamenti_di_ufficio[[#Headers],[Feb]],Costi_di_ufficio_effettivi[#Headers],0))","v":{"v":0,"d":"€ 0.00"}},{"$f":"INDEX(Piano_ufficio[],MATCH(INDEX(Scostamenti_di_ufficio[],ROW()-ROW(Scostamenti_di_ufficio[[#Headers],[Mar]]),1),INDEX(Piano_ufficio[],,1),0),MATCH(Scostamenti_di_ufficio[[#Headers],[Mar]],Piano_ufficio[#Headers],0))-INDEX(Costi_di_ufficio_effettivi[],MATCH(INDEX(Scostamenti_di_ufficio[],ROW()-ROW(Scostamenti_di_ufficio[[#Headers],[Mar]]),1),INDEX(Piano_ufficio[],,1),0),MATCH(Scostamenti_di_ufficio[[#Headers],[Mar]],Costi_di_ufficio_effettivi[#Headers],0))","v":{"v":0,"d":"€ 0.00"}},{"$f":"INDEX(Piano_ufficio[],MATCH(INDEX(Scostamenti_di_ufficio[],ROW()-ROW(Scostamenti_di_ufficio[[#Headers],[Apr]]),1),INDEX(Piano_ufficio[],,1),0),MATCH(Scostamenti_di_ufficio[[#Headers],[Apr]],Piano_ufficio[#Headers],0))-INDEX(Costi_di_ufficio_effettivi[],MATCH(INDEX(Scostamenti_di_ufficio[],ROW()-ROW(Scostamenti_di_ufficio[[#Headers],[Apr]]),1),INDEX(Piano_ufficio[],,1),0),MATCH(Scostamenti_di_ufficio[[#Headers],[Apr]],Costi_di_ufficio_effettivi[#Headers],0))","v":{"v":0,"d":"€ 0.00"}},{"$f":"INDEX(Piano_ufficio[],MATCH(INDEX(Scostamenti_di_ufficio[],ROW()-ROW(Scostamenti_di_ufficio[[#Headers],[Mag]]),1),INDEX(Piano_ufficio[],,1),0),MATCH(Scostamenti_di_ufficio[[#Headers],[Mag]],Piano_ufficio[#Headers],0))-INDEX(Costi_di_ufficio_effettivi[],MATCH(INDEX(Scostamenti_di_ufficio[],ROW()-ROW(Scostamenti_di_ufficio[[#Headers],[Mag]]),1),INDEX(Piano_ufficio[],,1),0),MATCH(Scostamenti_di_ufficio[[#Headers],[Mag]],Costi_di_ufficio_effettivi[#Headers],0))","v":{"v":0,"d":"€ 0.00"}},{"$f":"INDEX(Piano_ufficio[],MATCH(INDEX(Scostamenti_di_ufficio[],ROW()-ROW(Scostamenti_di_ufficio[[#Headers],[Giu]]),1),INDEX(Piano_ufficio[],,1),0),MATCH(Scostamenti_di_ufficio[[#Headers],[Giu]],Piano_ufficio[#Headers],0))-INDEX(Costi_di_ufficio_effettivi[],MATCH(INDEX(Scostamenti_di_ufficio[],ROW()-ROW(Scostamenti_di_ufficio[[#Headers],[Giu]]),1),INDEX(Piano_ufficio[],,1),0),MATCH(Scostamenti_di_ufficio[[#Headers],[Giu]],Costi_di_ufficio_effettivi[#Headers],0))","v":{"v":0,"d":"€ 0.00"}},{"$f":"INDEX(Piano_ufficio[],MATCH(INDEX(Scostamenti_di_ufficio[],ROW()-ROW(Scostamenti_di_ufficio[[#Headers],[Lug]]),1),INDEX(Piano_ufficio[],,1),0),MATCH(Scostamenti_di_ufficio[[#Headers],[Lug]],Piano_ufficio[#Headers],0))-INDEX(Costi_di_ufficio_effettivi[],MATCH(INDEX(Scostamenti_di_ufficio[],ROW()-ROW(Scostamenti_di_ufficio[[#Headers],[Lug]]),1),INDEX(Piano_ufficio[],,1),0),MATCH(Scostamenti_di_ufficio[[#Headers],[Lug]],Costi_di_ufficio_effettivi[#Headers],0))","v":{"v":9800,"d":"€ 9,800.00"}},{"$f":"INDEX(Piano_ufficio[],MATCH(INDEX(Scostamenti_di_ufficio[],ROW()-ROW(Scostamenti_di_ufficio[[#Headers],[Ago]]),1),INDEX(Piano_ufficio[],,1),0),MATCH(Scostamenti_di_ufficio[[#Headers],[Ago]],Piano_ufficio[#Headers],0))-INDEX(Costi_di_ufficio_effettivi[],MATCH(INDEX(Scostamenti_di_ufficio[],ROW()-ROW(Scostamenti_di_ufficio[[#Headers],[Ago]]),1),INDEX(Piano_ufficio[],,1),0),MATCH(Scostamenti_di_ufficio[[#Headers],[Ago]],Costi_di_ufficio_effettivi[#Headers],0))","v":{"v":9800,"d":"€ 9,800.00"}},{"$f":"INDEX(Piano_ufficio[],MATCH(INDEX(Scostamenti_di_ufficio[],ROW()-ROW(Scostamenti_di_ufficio[[#Headers],[Set]]),1),INDEX(Piano_ufficio[],,1),0),MATCH(Scostamenti_di_ufficio[[#Headers],[Set]],Piano_ufficio[#Headers],0))-INDEX(Costi_di_ufficio_effettivi[],MATCH(INDEX(Scostamenti_di_ufficio[],ROW()-ROW(Scostamenti_di_ufficio[[#Headers],[Set]]),1),INDEX(Piano_ufficio[],,1),0),MATCH(Scostamenti_di_ufficio[[#Headers],[Set]],Costi_di_ufficio_effettivi[#Headers],0))","v":{"v":9800,"d":"€ 9,800.00"}},{"$f":"INDEX(Piano_ufficio[],MATCH(INDEX(Scostamenti_di_ufficio[],ROW()-ROW(Scostamenti_di_ufficio[[#Headers],[Ott]]),1),INDEX(Piano_ufficio[],,1),0),MATCH(Scostamenti_di_ufficio[[#Headers],[Ott]],Piano_ufficio[#Headers],0))-INDEX(Costi_di_ufficio_effettivi[],MATCH(INDEX(Scostamenti_di_ufficio[],ROW()-ROW(Scostamenti_di_ufficio[[#Headers],[Ott]]),1),INDEX(Piano_ufficio[],,1),0),MATCH(Scostamenti_di_ufficio[[#Headers],[Ott]],Costi_di_ufficio_effettivi[#Headers],0))","v":{"v":9800,"d":"€ 9,800.00"}},{"$f":"INDEX(Piano_ufficio[],MATCH(INDEX(Scostamenti_di_ufficio[],ROW()-ROW(Scostamenti_di_ufficio[[#Headers],[Nov]]),1),INDEX(Piano_ufficio[],,1),0),MATCH(Scostamenti_di_ufficio[[#Headers],[Nov]],Piano_ufficio[#Headers],0))-INDEX(Costi_di_ufficio_effettivi[],MATCH(INDEX(Scostamenti_di_ufficio[],ROW()-ROW(Scostamenti_di_ufficio[[#Headers],[Nov]]),1),INDEX(Piano_ufficio[],,1),0),MATCH(Scostamenti_di_ufficio[[#Headers],[Nov]],Costi_di_ufficio_effettivi[#Headers],0))","v":{"v":9800,"d":"€ 9,800.00"}},{"$f":"INDEX(Piano_ufficio[],MATCH(INDEX(Scostamenti_di_ufficio[],ROW()-ROW(Scostamenti_di_ufficio[[#Headers],[Dic]]),1),INDEX(Piano_ufficio[],,1),0),MATCH(Scostamenti_di_ufficio[[#Headers],[Dic]],Piano_ufficio[#Headers],0))-INDEX(Costi_di_ufficio_effettivi[],MATCH(INDEX(Scostamenti_di_ufficio[],ROW()-ROW(Scostamenti_di_ufficio[[#Headers],[Dic]]),1),INDEX(Piano_ufficio[],,1),0),MATCH(Scostamenti_di_ufficio[[#Headers],[Dic]],Costi_di_ufficio_effettivi[#Headers],0))","v":{"v":9800,"d":"€ 9,800.00"}},{"$f":"SUM(Scostamenti_di_ufficio[[#This Row],[Gen]:[Dic]])","v":{"v":58800,"d":"€ 58,800.00"}}]
[null,"Gas",{"$f":"INDEX(Piano_ufficio[],MATCH(INDEX(Scostamenti_di_ufficio[],ROW()-ROW(Scostamenti_di_ufficio[[#Headers],[Gen]]),1),INDEX(Piano_ufficio[],,1),0),MATCH(Scostamenti_di_ufficio[[#Headers],[Gen]],Piano_ufficio[#Headers],0))-INDEX(Costi_di_ufficio_effettivi[],MATCH(INDEX(Scostamenti_di_ufficio[],ROW()-ROW(Scostamenti_di_ufficio[[#Headers],[Gen]]),1),INDEX(Piano_ufficio[],,1),0),MATCH(Scostamenti_di_ufficio[[#Headers],[Gen]],Costi_di_ufficio_effettivi[#Headers],0))","v":{"v":-4,"d":"-€ 4.00"}},{"$f":"INDEX(Piano_ufficio[],MATCH(INDEX(Scostamenti_di_ufficio[],ROW()-ROW(Scostamenti_di_ufficio[[#Headers],[Feb]]),1),INDEX(Piano_ufficio[],,1),0),MATCH(Scostamenti_di_ufficio[[#Headers],[Feb]],Piano_ufficio[#Headers],0))-INDEX(Costi_di_ufficio_effettivi[],MATCH(INDEX(Scostamenti_di_ufficio[],ROW()-ROW(Scostamenti_di_ufficio[[#Headers],[Feb]]),1),INDEX(Piano_ufficio[],,1),0),MATCH(Scostamenti_di_ufficio[[#Headers],[Feb]],Costi_di_ufficio_effettivi[#Headers],0))","v":{"v":-30,"d":"-€ 30.00"}},{"$f":"INDEX(Piano_ufficio[],MATCH(INDEX(Scostamenti_di_ufficio[],ROW()-ROW(Scostamenti_di_ufficio[[#Headers],[Mar]]),1),INDEX(Piano_ufficio[],,1),0),MATCH(Scostamenti_di_ufficio[[#Headers],[Mar]],Piano_ufficio[#Headers],0))-INDEX(Costi_di_ufficio_effettivi[],MATCH(INDEX(Scostamenti_di_ufficio[],ROW()-ROW(Scostamenti_di_ufficio[[#Headers],[Mar]]),1),INDEX(Piano_ufficio[],,1),0),MATCH(Scostamenti_di_ufficio[[#Headers],[Mar]],Costi_di_ufficio_effettivi[#Headers],0))","v":{"v":15,"d":"€ 15.00"}},{"$f":"INDEX(Piano_ufficio[],MATCH(INDEX(Scostamenti_di_ufficio[],ROW()-ROW(Scostamenti_di_ufficio[[#Headers],[Apr]]),1),INDEX(Piano_ufficio[],,1),0),MATCH(Scostamenti_di_ufficio[[#Headers],[Apr]],Piano_ufficio[#Headers],0))-INDEX(Costi_di_ufficio_effettivi[],MATCH(INDEX(Scostamenti_di_ufficio[],ROW()-ROW(Scostamenti_di_ufficio[[#Headers],[Apr]]),1),INDEX(Piano_ufficio[],,1),0),MATCH(Scostamenti_di_ufficio[[#Headers],[Apr]],Costi_di_ufficio_effettivi[#Headers],0))","v":{"v":-130,"d":"-€ 130.00"}},{"$f":"INDEX(Piano_ufficio[],MATCH(INDEX(Scostamenti_di_ufficio[],ROW()-ROW(Scostamenti_di_ufficio[[#Headers],[Mag]]),1),INDEX(Piano_ufficio[],,1),0),MATCH(Scostamenti_di_ufficio[[#Headers],[Mag]],Piano_ufficio[#Headers],0))-INDEX(Costi_di_ufficio_effettivi[],MATCH(INDEX(Scostamenti_di_ufficio[],ROW()-ROW(Scostamenti_di_ufficio[[#Headers],[Mag]]),1),INDEX(Piano_ufficio[],,1),0),MATCH(Scostamenti_di_ufficio[[#Headers],[Mag]],Costi_di_ufficio_effettivi[#Headers],0))","v":{"v":13,"d":"€ 13.00"}},{"$f":"INDEX(Piano_ufficio[],MATCH(INDEX(Scostamenti_di_ufficio[],ROW()-ROW(Scostamenti_di_ufficio[[#Headers],[Giu]]),1),INDEX(Piano_ufficio[],,1),0),MATCH(Scostamenti_di_ufficio[[#Headers],[Giu]],Piano_ufficio[#Headers],0))-INDEX(Costi_di_ufficio_effettivi[],MATCH(INDEX(Scostamenti_di_ufficio[],ROW()-ROW(Scostamenti_di_ufficio[[#Headers],[Giu]]),1),INDEX(Piano_ufficio[],,1),0),MATCH(Scostamenti_di_ufficio[[#Headers],[Giu]],Costi_di_ufficio_effettivi[#Headers],0))","v":{"v":12,"d":"€ 12.00"}},{"$f":"INDEX(Piano_ufficio[],MATCH(INDEX(Scostamenti_di_ufficio[],ROW()-ROW(Scostamenti_di_ufficio[[#Headers],[Lug]]),1),INDEX(Piano_ufficio[],,1),0),MATCH(Scostamenti_di_ufficio[[#Headers],[Lug]],Piano_ufficio[#Headers],0))-INDEX(Costi_di_ufficio_effettivi[],MATCH(INDEX(Scostamenti_di_ufficio[],ROW()-ROW(Scostamenti_di_ufficio[[#Headers],[Lug]]),1),INDEX(Piano_ufficio[],,1),0),MATCH(Scostamenti_di_ufficio[[#Headers],[Lug]],Costi_di_ufficio_effettivi[#Headers],0))","v":{"v":100,"d":"€ 100.00"}},{"$f":"INDEX(Piano_ufficio[],MATCH(INDEX(Scostamenti_di_ufficio[],ROW()-ROW(Scostamenti_di_ufficio[[#Headers],[Ago]]),1),INDEX(Piano_ufficio[],,1),0),MATCH(Scostamenti_di_ufficio[[#Headers],[Ago]],Piano_ufficio[#Headers],0))-INDEX(Costi_di_ufficio_effettivi[],MATCH(INDEX(Scostamenti_di_ufficio[],ROW()-ROW(Scostamenti_di_ufficio[[#Headers],[Ago]]),1),INDEX(Piano_ufficio[],,1),0),MATCH(Scostamenti_di_ufficio[[#Headers],[Ago]],Costi_di_ufficio_effettivi[#Headers],0))","v":{"v":100,"d":"€ 100.00"}},{"$f":"INDEX(Piano_ufficio[],MATCH(INDEX(Scostamenti_di_ufficio[],ROW()-ROW(Scostamenti_di_ufficio[[#Headers],[Set]]),1),INDEX(Piano_ufficio[],,1),0),MATCH(Scostamenti_di_ufficio[[#Headers],[Set]],Piano_ufficio[#Headers],0))-INDEX(Costi_di_ufficio_effettivi[],MATCH(INDEX(Scostamenti_di_ufficio[],ROW()-ROW(Scostamenti_di_ufficio[[#Headers],[Set]]),1),INDEX(Piano_ufficio[],,1),0),MATCH(Scostamenti_di_ufficio[[#Headers],[Set]],Costi_di_ufficio_effettivi[#Headers],0))","v":{"v":100,"d":"€ 100.00"}},{"$f":"INDEX(Piano_ufficio[],MATCH(INDEX(Scostamenti_di_ufficio[],ROW()-ROW(Scostamenti_di_ufficio[[#Headers],[Ott]]),1),INDEX(Piano_ufficio[],,1),0),MATCH(Scostamenti_di_ufficio[[#Headers],[Ott]],Piano_ufficio[#Headers],0))-INDEX(Costi_di_ufficio_effettivi[],MATCH(INDEX(Scostamenti_di_ufficio[],ROW()-ROW(Scostamenti_di_ufficio[[#Headers],[Ott]]),1),INDEX(Piano_ufficio[],,1),0),MATCH(Scostamenti_di_ufficio[[#Headers],[Ott]],Costi_di_ufficio_effettivi[#Headers],0))","v":{"v":100,"d":"€ 100.00"}},{"$f":"INDEX(Piano_ufficio[],MATCH(INDEX(Scostamenti_di_ufficio[],ROW()-ROW(Scostamenti_di_ufficio[[#Headers],[Nov]]),1),INDEX(Piano_ufficio[],,1),0),MATCH(Scostamenti_di_ufficio[[#Headers],[Nov]],Piano_ufficio[#Headers],0))-INDEX(Costi_di_ufficio_effettivi[],MATCH(INDEX(Scostamenti_di_ufficio[],ROW()-ROW(Scostamenti_di_ufficio[[#Headers],[Nov]]),1),INDEX(Piano_ufficio[],,1),0),MATCH(Scostamenti_di_ufficio[[#Headers],[Nov]],Costi_di_ufficio_effettivi[#Headers],0))","v":{"v":400,"d":"€ 400.00"}},{"$f":"INDEX(Piano_ufficio[],MATCH(INDEX(Scostamenti_di_ufficio[],ROW()-ROW(Scostamenti_di_ufficio[[#Headers],[Dic]]),1),INDEX(Piano_ufficio[],,1),0),MATCH(Scostamenti_di_ufficio[[#Headers],[Dic]],Piano_ufficio[#Headers],0))-INDEX(Costi_di_ufficio_effettivi[],MATCH(INDEX(Scostamenti_di_ufficio[],ROW()-ROW(Scostamenti_di_ufficio[[#Headers],[Dic]]),1),INDEX(Piano_ufficio[],,1),0),MATCH(Scostamenti_di_ufficio[[#Headers],[Dic]],Costi_di_ufficio_effettivi[#Headers],0))","v":{"v":400,"d":"€ 400.00"}},{"$f":"SUM(Scostamenti_di_ufficio[[#This Row],[Gen]:[Dic]])","v":{"v":1076,"d":"€ 1,076.00"}}]
[null,"Elettricità",{"$f":"INDEX(Piano_ufficio[],MATCH(INDEX(Scostamenti_di_ufficio[],ROW()-ROW(Scostamenti_di_ufficio[[#Headers],[Gen]]),1),INDEX(Piano_ufficio[],,1),0),MATCH(Scostamenti_di_ufficio[[#Headers],[Gen]],Piano_ufficio[#Headers],0))-INDEX(Costi_di_ufficio_effettivi[],MATCH(INDEX(Scostamenti_di_ufficio[],ROW()-ROW(Scostamenti_di_ufficio[[#Headers],[Gen]]),1),INDEX(Piano_ufficio[],,1),0),MATCH(Scostamenti_di_ufficio[[#Headers],[Gen]],Costi_di_ufficio_effettivi[#Headers],0))","v":{"v":12,"d":"€ 12.00"}},{"$f":"INDEX(Piano_ufficio[],MATCH(INDEX(Scostamenti_di_ufficio[],ROW()-ROW(Scostamenti_di_ufficio[[#Headers],[Feb]]),1),INDEX(Piano_ufficio[],,1),0),MATCH(Scostamenti_di_ufficio[[#Headers],[Feb]],Piano_ufficio[#Headers],0))-INDEX(Costi_di_ufficio_effettivi[],MATCH(INDEX(Scostamenti_di_ufficio[],ROW()-ROW(Scostamenti_di_ufficio[[#Headers],[Feb]]),1),INDEX(Piano_ufficio[],,1),0),MATCH(Scostamenti_di_ufficio[[#Headers],[Feb]],Costi_di_ufficio_effettivi[#Headers],0))","v":{"v":22,"d":"€ 22.00"}},{"$f":"INDEX(Piano_ufficio[],MATCH(INDEX(Scostamenti_di_ufficio[],ROW()-ROW(Scostamenti_di_ufficio[[#Headers],[Mar]]),1),INDEX(Piano_ufficio[],,1),0),MATCH(Scostamenti_di_ufficio[[#Headers],[Mar]],Piano_ufficio[#Headers],0))-INDEX(Costi_di_ufficio_effettivi[],MATCH(INDEX(Scostamenti_di_ufficio[],ROW()-ROW(Scostamenti_di_ufficio[[#Headers],[Mar]]),1),INDEX(Piano_ufficio[],,1),0),MATCH(Scostamenti_di_ufficio[[#Headers],[Mar]],Costi_di_ufficio_effettivi[#Headers],0))","v":{"v":32,"d":"€ 32.00"}},{"$f":"INDEX(Piano_ufficio[],MATCH(INDEX(Scostamenti_di_ufficio[],ROW()-ROW(Scostamenti_di_ufficio[[#Headers],[Apr]]),1),INDEX(Piano_ufficio[],,1),0),MATCH(Scostamenti_di_ufficio[[#Headers],[Apr]],Piano_ufficio[#Headers],0))-INDEX(Costi_di_ufficio_effettivi[],MATCH(INDEX(Scostamenti_di_ufficio[],ROW()-ROW(Scostamenti_di_ufficio[[#Headers],[Apr]]),1),INDEX(Piano_ufficio[],,1),0),MATCH(Scostamenti_di_ufficio[[#Headers],[Apr]],Costi_di_ufficio_effettivi[#Headers],0))","v":{"v":1,"d":"€ 1.00"}},{"$f":"INDEX(Piano_ufficio[],MATCH(INDEX(Scostamenti_di_ufficio[],ROW()-ROW(Scostamenti_di_ufficio[[#Headers],[Mag]]),1),INDEX(Piano_ufficio[],,1),0),MATCH(Scostamenti_di_ufficio[[#Headers],[Mag]],Piano_ufficio[#Headers],0))-INDEX(Costi_di_ufficio_effettivi[],MATCH(INDEX(Scostamenti_di_ufficio[],ROW()-ROW(Scostamenti_di_ufficio[[#Headers],[Mag]]),1),INDEX(Piano_ufficio[],,1),0),MATCH(Scostamenti_di_ufficio[[#Headers],[Mag]],Costi_di_ufficio_effettivi[#Headers],0))","v":{"v":-6,"d":"-€ 6.00"}},{"$f":"INDEX(Piano_ufficio[],MATCH(INDEX(Scostamenti_di_ufficio[],ROW()-ROW(Scostamenti_di_ufficio[[#Headers],[Giu]]),1),INDEX(Piano_ufficio[],,1),0),MATCH(Scostamenti_di_ufficio[[#Headers],[Giu]],Piano_ufficio[#Headers],0))-INDEX(Costi_di_ufficio_effettivi[],MATCH(INDEX(Scostamenti_di_ufficio[],ROW()-ROW(Scostamenti_di_ufficio[[#Headers],[Giu]]),1),INDEX(Piano_ufficio[],,1),0),MATCH(Scostamenti_di_ufficio[[#Headers],[Giu]],Costi_di_ufficio_effettivi[#Headers],0))","v":{"v":10,"d":"€ 10.00"}},{"$f":"INDEX(Piano_ufficio[],MATCH(INDEX(Scostamenti_di_ufficio[],ROW()-ROW(Scostamenti_di_ufficio[[#Headers],[Lug]]),1),INDEX(Piano_ufficio[],,1),0),MATCH(Scostamenti_di_ufficio[[#Headers],[Lug]],Piano_ufficio[#Headers],0))-INDEX(Costi_di_ufficio_effettivi[],MATCH(INDEX(Scostamenti_di_ufficio[],ROW()-ROW(Scostamenti_di_ufficio[[#Headers],[Lug]]),1),INDEX(Piano_ufficio[],,1),0),MATCH(Scostamenti_di_ufficio[[#Headers],[Lug]],Costi_di_ufficio_effettivi[#Headers],0))","v":{"v":300,"d":"€ 300.00"}},{"$f":"INDEX(Piano_ufficio[],MATCH(INDEX(Scostamenti_di_ufficio[],ROW()-ROW(Scostamenti_di_ufficio[[#Headers],[Ago]]),1),INDEX(Piano_ufficio[],,1),0),MATCH(Scostamenti_di_ufficio[[#Headers],[Ago]],Piano_ufficio[#Headers],0))-INDEX(Costi_di_ufficio_effettivi[],MATCH(INDEX(Scostamenti_di_ufficio[],ROW()-ROW(Scostamenti_di_ufficio[[#Headers],[Ago]]),1),INDEX(Piano_ufficio[],,1),0),MATCH(Scostamenti_di_ufficio[[#Headers],[Ago]],Costi_di_ufficio_effettivi[#Headers],0))","v":{"v":300,"d":"€ 300.00"}},{"$f":"INDEX(Piano_ufficio[],MATCH(INDEX(Scostamenti_di_ufficio[],ROW()-ROW(Scostamenti_di_ufficio[[#Headers],[Set]]),1),INDEX(Piano_ufficio[],,1),0),MATCH(Scostamenti_di_ufficio[[#Headers],[Set]],Piano_ufficio[#Headers],0))-INDEX(Costi_di_ufficio_effettivi[],MATCH(INDEX(Scostamenti_di_ufficio[],ROW()-ROW(Scostamenti_di_ufficio[[#Headers],[Set]]),1),INDEX(Piano_ufficio[],,1),0),MATCH(Scostamenti_di_ufficio[[#Headers],[Set]],Costi_di_ufficio_effettivi[#Headers],0))","v":{"v":300,"d":"€ 300.00"}},{"$f":"INDEX(Piano_ufficio[],MATCH(INDEX(Scostamenti_di_ufficio[],ROW()-ROW(Scostamenti_di_ufficio[[#Headers],[Ott]]),1),INDEX(Piano_ufficio[],,1),0),MATCH(Scostamenti_di_ufficio[[#Headers],[Ott]],Piano_ufficio[#Headers],0))-INDEX(Costi_di_ufficio_effettivi[],MATCH(INDEX(Scostamenti_di_ufficio[],ROW()-ROW(Scostamenti_di_ufficio[[#Headers],[Ott]]),1),INDEX(Piano_ufficio[],,1),0),MATCH(Scostamenti_di_ufficio[[#Headers],[Ott]],Costi_di_ufficio_effettivi[#Headers],0))","v":{"v":300,"d":"€ 300.00"}},{"$f":"INDEX(Piano_ufficio[],MATCH(INDEX(Scostamenti_di_ufficio[],ROW()-ROW(Scostamenti_di_ufficio[[#Headers],[Nov]]),1),INDEX(Piano_ufficio[],,1),0),MATCH(Scostamenti_di_ufficio[[#Headers],[Nov]],Piano_ufficio[#Headers],0))-INDEX(Costi_di_ufficio_effettivi[],MATCH(INDEX(Scostamenti_di_ufficio[],ROW()-ROW(Scostamenti_di_ufficio[[#Headers],[Nov]]),1),INDEX(Piano_ufficio[],,1),0),MATCH(Scostamenti_di_ufficio[[#Headers],[Nov]],Costi_di_ufficio_effettivi[#Headers],0))","v":{"v":300,"d":"€ 300.00"}},{"$f":"INDEX(Piano_ufficio[],MATCH(INDEX(Scostamenti_di_ufficio[],ROW()-ROW(Scostamenti_di_ufficio[[#Headers],[Dic]]),1),INDEX(Piano_ufficio[],,1),0),MATCH(Scostamenti_di_ufficio[[#Headers],[Dic]],Piano_ufficio[#Headers],0))-INDEX(Costi_di_ufficio_effettivi[],MATCH(INDEX(Scostamenti_di_ufficio[],ROW()-ROW(Scostamenti_di_ufficio[[#Headers],[Dic]]),1),INDEX(Piano_ufficio[],,1),0),MATCH(Scostamenti_di_ufficio[[#Headers],[Dic]],Costi_di_ufficio_effettivi[#Headers],0))","v":{"v":300,"d":"€ 300.00"}},{"$f":"SUM(Scostamenti_di_ufficio[[#This Row],[Gen]:[Dic]])","v":{"v":1871,"d":"€ 1,871.00"}}]
[null,"Acqua",{"$f":"INDEX(Piano_ufficio[],MATCH(INDEX(Scostamenti_di_ufficio[],ROW()-ROW(Scostamenti_di_ufficio[[#Headers],[Gen]]),1),INDEX(Piano_ufficio[],,1),0),MATCH(Scostamenti_di_ufficio[[#Headers],[Gen]],Piano_ufficio[#Headers],0))-INDEX(Costi_di_ufficio_effettivi[],MATCH(INDEX(Scostamenti_di_ufficio[],ROW()-ROW(Scostamenti_di_ufficio[[#Headers],[Gen]]),1),INDEX(Piano_ufficio[],,1),0),MATCH(Scostamenti_di_ufficio[[#Headers],[Gen]],Costi_di_ufficio_effettivi[#Headers],0))","v":{"v":5,"d":"€ 5.00"}},{"$f":"INDEX(Piano_ufficio[],MATCH(INDEX(Scostamenti_di_ufficio[],ROW()-ROW(Scostamenti_di_ufficio[[#Headers],[Feb]]),1),INDEX(Piano_ufficio[],,1),0),MATCH(Scostamenti_di_ufficio[[#Headers],[Feb]],Piano_ufficio[#Headers],0))-INDEX(Costi_di_ufficio_effettivi[],MATCH(INDEX(Scostamenti_di_ufficio[],ROW()-ROW(Scostamenti_di_ufficio[[#Headers],[Feb]]),1),INDEX(Piano_ufficio[],,1),0),MATCH(Scostamenti_di_ufficio[[#Headers],[Feb]],Costi_di_ufficio_effettivi[#Headers],0))","v":{"v":7,"d":"€ 7.00"}},{"$f":"INDEX(Piano_ufficio[],MATCH(INDEX(Scostamenti_di_ufficio[],ROW()-ROW(Scostamenti_di_ufficio[[#Headers],[Mar]]),1),INDEX(Piano_ufficio[],,1),0),MATCH(Scostamenti_di_ufficio[[#Headers],[Mar]],Piano_ufficio[#Headers],0))-INDEX(Costi_di_ufficio_effettivi[],MATCH(INDEX(Scostamenti_di_ufficio[],ROW()-ROW(Scostamenti_di_ufficio[[#Headers],[Mar]]),1),INDEX(Piano_ufficio[],,1),0),MATCH(Scostamenti_di_ufficio[[#Headers],[Mar]],Costi_di_ufficio_effettivi[#Headers],0))","v":{"v":6,"d":"€ 6.00"}},{"$f":"INDEX(Piano_ufficio[],MATCH(INDEX(Scostamenti_di_ufficio[],ROW()-ROW(Scostamenti_di_ufficio[[#Headers],[Apr]]),1),INDEX(Piano_ufficio[],,1),0),MATCH(Scostamenti_di_ufficio[[#Headers],[Apr]],Piano_ufficio[#Headers],0))-INDEX(Costi_di_ufficio_effettivi[],MATCH(INDEX(Scostamenti_di_ufficio[],ROW()-ROW(Scostamenti_di_ufficio[[#Headers],[Apr]]),1),INDEX(Piano_ufficio[],,1),0),MATCH(Scostamenti_di_ufficio[[#Headers],[Apr]],Costi_di_ufficio_effettivi[#Headers],0))","v":{"v":4,"d":"€ 4.00"}},{"$f":"INDEX(Piano_ufficio[],MATCH(INDEX(Scostamenti_di_ufficio[],ROW()-ROW(Scostamenti_di_ufficio[[#Headers],[Mag]]),1),INDEX(Piano_ufficio[],,1),0),MATCH(Scostamenti_di_ufficio[[#Headers],[Mag]],Piano_ufficio[#Headers],0))-INDEX(Costi_di_ufficio_effettivi[],MATCH(INDEX(Scostamenti_di_ufficio[],ROW()-ROW(Scostamenti_di_ufficio[[#Headers],[Mag]]),1),INDEX(Piano_ufficio[],,1),0),MATCH(Scostamenti_di_ufficio[[#Headers],[Mag]],Costi_di_ufficio_effettivi[#Headers],0))","v":{"v":6,"d":"€ 6.00"}},{"$f":"INDEX(Piano_ufficio[],MATCH(INDEX(Scostamenti_di_ufficio[],ROW()-ROW(Scostamenti_di_ufficio[[#Headers],[Giu]]),1),INDEX(Piano_ufficio[],,1),0),MATCH(Scostamenti_di_ufficio[[#Headers],[Giu]],Piano_ufficio[#Headers],0))-INDEX(Costi_di_ufficio_effettivi[],MATCH(INDEX(Scostamenti_di_ufficio[],ROW()-ROW(Scostamenti_di_ufficio[[#Headers],[Giu]]),1),INDEX(Piano_ufficio[],,1),0),MATCH(Scostamenti_di_ufficio[[#Headers],[Giu]],Costi_di_ufficio_effettivi[#Headers],0))","v":{"v":4,"d":"€ 4.00"}},{"$f":"INDEX(Piano_ufficio[],MATCH(INDEX(Scostamenti_di_ufficio[],ROW()-ROW(Scostamenti_di_ufficio[[#Headers],[Lug]]),1),INDEX(Piano_ufficio[],,1),0),MATCH(Scostamenti_di_ufficio[[#Headers],[Lug]],Piano_ufficio[#Headers],0))-INDEX(Costi_di_ufficio_effettivi[],MATCH(INDEX(Scostamenti_di_ufficio[],ROW()-ROW(Scostamenti_di_ufficio[[#Headers],[Lug]]),1),INDEX(Piano_ufficio[],,1),0),MATCH(Scostamenti_di_ufficio[[#Headers],[Lug]],Costi_di_ufficio_effettivi[#Headers],0))","v":{"v":40,"d":"€ 40.00"}},{"$f":"INDEX(Piano_ufficio[],MATCH(INDEX(Scostamenti_di_ufficio[],ROW()-ROW(Scostamenti_di_ufficio[[#Headers],[Ago]]),1),INDEX(Piano_ufficio[],,1),0),MATCH(Scostamenti_di_ufficio[[#Headers],[Ago]],Piano_ufficio[#Headers],0))-INDEX(Costi_di_ufficio_effettivi[],MATCH(INDEX(Scostamenti_di_ufficio[],ROW()-ROW(Scostamenti_di_ufficio[[#Headers],[Ago]]),1),INDEX(Piano_ufficio[],,1),0),MATCH(Scostamenti_di_ufficio[[#Headers],[Ago]],Costi_di_ufficio_effettivi[#Headers],0))","v":{"v":40,"d":"€ 40.00"}},{"$f":"INDEX(Piano_ufficio[],MATCH(INDEX(Scostamenti_di_ufficio[],ROW()-ROW(Scostamenti_di_ufficio[[#Headers],[Set]]),1),INDEX(Piano_ufficio[],,1),0),MATCH(Scostamenti_di_ufficio[[#Headers],[Set]],Piano_ufficio[#Headers],0))-INDEX(Costi_di_ufficio_effettivi[],MATCH(INDEX(Scostamenti_di_ufficio[],ROW()-ROW(Scostamenti_di_ufficio[[#Headers],[Set]]),1),INDEX(Piano_ufficio[],,1),0),MATCH(Scostamenti_di_ufficio[[#Headers],[Set]],Costi_di_ufficio_effettivi[#Headers],0))","v":{"v":40,"d":"€ 40.00"}},{"$f":"INDEX(Piano_ufficio[],MATCH(INDEX(Scostamenti_di_ufficio[],ROW()-ROW(Scostamenti_di_ufficio[[#Headers],[Ott]]),1),INDEX(Piano_ufficio[],,1),0),MATCH(Scostamenti_di_ufficio[[#Headers],[Ott]],Piano_ufficio[#Headers],0))-INDEX(Costi_di_ufficio_effettivi[],MATCH(INDEX(Scostamenti_di_ufficio[],ROW()-ROW(Scostamenti_di_ufficio[[#Headers],[Ott]]),1),INDEX(Piano_ufficio[],,1),0),MATCH(Scostamenti_di_ufficio[[#Headers],[Ott]],Costi_di_ufficio_effettivi[#Headers],0))","v":{"v":40,"d":"€ 40.00"}},{"$f":"INDEX(Piano_ufficio[],MATCH(INDEX(Scostamenti_di_ufficio[],ROW()-ROW(Scostamenti_di_ufficio[[#Headers],[Nov]]),1),INDEX(Piano_ufficio[],,1),0),MATCH(Scostamenti_di_ufficio[[#Headers],[Nov]],Piano_ufficio[#Headers],0))-INDEX(Costi_di_ufficio_effettivi[],MATCH(INDEX(Scostamenti_di_ufficio[],ROW()-ROW(Scostamenti_di_ufficio[[#Headers],[Nov]]),1),INDEX(Piano_ufficio[],,1),0),MATCH(Scostamenti_di_ufficio[[#Headers],[Nov]],Costi_di_ufficio_effettivi[#Headers],0))","v":{"v":40,"d":"€ 40.00"}},{"$f":"INDEX(Piano_ufficio[],MATCH(INDEX(Scostamenti_di_ufficio[],ROW()-ROW(Scostamenti_di_ufficio[[#Headers],[Dic]]),1),INDEX(Piano_ufficio[],,1),0),MATCH(Scostamenti_di_ufficio[[#Headers],[Dic]],Piano_ufficio[#Headers],0))-INDEX(Costi_di_ufficio_effettivi[],MATCH(INDEX(Scostamenti_di_ufficio[],ROW()-ROW(Scostamenti_di_ufficio[[#Headers],[Dic]]),1),INDEX(Piano_ufficio[],,1),0),MATCH(Scostamenti_di_ufficio[[#Headers],[Dic]],Costi_di_ufficio_effettivi[#Headers],0))","v":{"v":40,"d":"€ 40.00"}},{"$f":"SUM(Scostamenti_di_ufficio[[#This Row],[Gen]:[Dic]])","v":{"v":272,"d":"€ 272.00"}}]
[null,"Telefono",{"$f":"INDEX(Piano_ufficio[],MATCH(INDEX(Scostamenti_di_ufficio[],ROW()-ROW(Scostamenti_di_ufficio[[#Headers],[Gen]]),1),INDEX(Piano_ufficio[],,1),0),MATCH(Scostamenti_di_ufficio[[#Headers],[Gen]],Piano_ufficio[#Headers],0))-INDEX(Costi_di_ufficio_effettivi[],MATCH(INDEX(Scostamenti_di_ufficio[],ROW()-ROW(Scostamenti_di_ufficio[[#Headers],[Gen]]),1),INDEX(Piano_ufficio[],,1),0),MATCH(Scostamenti_di_ufficio[[#Headers],[Gen]],Costi_di_ufficio_effettivi[#Headers],0))","v":{"v":26,"d":"€ 26.00"}},{"$f":"INDEX(Piano_ufficio[],MATCH(INDEX(Scostamenti_di_ufficio[],ROW()-ROW(Scostamenti_di_ufficio[[#Headers],[Feb]]),1),INDEX(Piano_ufficio[],,1),0),MATCH(Scostamenti_di_ufficio[[#Headers],[Feb]],Piano_ufficio[#Headers],0))-INDEX(Costi_di_ufficio_effettivi[],MATCH(INDEX(Scostamenti_di_ufficio[],ROW()-ROW(Scostamenti_di_ufficio[[#Headers],[Feb]]),1),INDEX(Piano_ufficio[],,1),0),MATCH(Scostamenti_di_ufficio[[#Headers],[Feb]],Costi_di_ufficio_effettivi[#Headers],0))","v":{"v":15,"d":"€ 15.00"}},{"$f":"INDEX(Piano_ufficio[],MATCH(INDEX(Scostamenti_di_ufficio[],ROW()-ROW(Scostamenti_di_ufficio[[#Headers],[Mar]]),1),INDEX(Piano_ufficio[],,1),0),MATCH(Scostamenti_di_ufficio[[#Headers],[Mar]],Piano_ufficio[#Headers],0))-INDEX(Costi_di_ufficio_effettivi[],MATCH(INDEX(Scostamenti_di_ufficio[],ROW()-ROW(Scostamenti_di_ufficio[[#Headers],[Mar]]),1),INDEX(Piano_ufficio[],,1),0),MATCH(Scostamenti_di_ufficio[[#Headers],[Mar]],Costi_di_ufficio_effettivi[#Headers],0))","v":{"v":-15,"d":"-€ 15.00"}},{"$f":"INDEX(Piano_ufficio[],MATCH(INDEX(Scostamenti_di_ufficio[],ROW()-ROW(Scostamenti_di_ufficio[[#Headers],[Apr]]),1),INDEX(Piano_ufficio[],,1),0),MATCH(Scostamenti_di_ufficio[[#Headers],[Apr]],Piano_ufficio[#Headers],0))-INDEX(Costi_di_ufficio_effettivi[],MATCH(INDEX(Scostamenti_di_ufficio[],ROW()-ROW(Scostamenti_di_ufficio[[#Headers],[Apr]]),1),INDEX(Piano_ufficio[],,1),0),MATCH(Scostamenti_di_ufficio[[#Headers],[Apr]],Costi_di_ufficio_effettivi[#Headers],0))","v":{"v":5,"d":"€ 5.00"}},{"$f":"INDEX(Piano_ufficio[],MATCH(INDEX(Scostamenti_di_ufficio[],ROW()-ROW(Scostamenti_di_ufficio[[#Headers],[Mag]]),1),INDEX(Piano_ufficio[],,1),0),MATCH(Scostamenti_di_ufficio[[#Headers],[Mag]],Piano_ufficio[#Headers],0))-INDEX(Costi_di_ufficio_effettivi[],MATCH(INDEX(Scostamenti_di_ufficio[],ROW()-ROW(Scostamenti_di_ufficio[[#Headers],[Mag]]),1),INDEX(Piano_ufficio[],,1),0),MATCH(Scostamenti_di_ufficio[[#Headers],[Mag]],Costi_di_ufficio_effettivi[#Headers],0))","v":{"v":5,"d":"€ 5.00"}},{"$f":"INDEX(Piano_ufficio[],MATCH(INDEX(Scostamenti_di_ufficio[],ROW()-ROW(Scostamenti_di_ufficio[[#Headers],[Giu]]),1),INDEX(Piano_ufficio[],,1),0),MATCH(Scostamenti_di_ufficio[[#Headers],[Giu]],Piano_ufficio[#Headers],0))-INDEX(Costi_di_ufficio_effettivi[],MATCH(INDEX(Scostamenti_di_ufficio[],ROW()-ROW(Scostamenti_di_ufficio[[#Headers],[Giu]]),1),INDEX(Piano_ufficio[],,1),0),MATCH(Scostamenti_di_ufficio[[#Headers],[Giu]],Costi_di_ufficio_effettivi[#Headers],0))","v":{"v":30,"d":"€ 30.00"}},{"$f":"INDEX(Piano_ufficio[],MATCH(INDEX(Scostamenti_di_ufficio[],ROW()-ROW(Scostamenti_di_ufficio[[#Headers],[Lug]]),1),INDEX(Piano_ufficio[],,1),0),MATCH(Scostamenti_di_ufficio[[#Headers],[Lug]],Piano_ufficio[#Headers],0))-INDEX(Costi_di_ufficio_effettivi[],MATCH(INDEX(Scostamenti_di_ufficio[],ROW()-ROW(Scostamenti_di_ufficio[[#Headers],[Lug]]),1),INDEX(Piano_ufficio[],,1),0),MATCH(Scostamenti_di_ufficio[[#Headers],[Lug]],Costi_di_ufficio_effettivi[#Headers],0))","v":{"v":250,"d":"€ 250.00"}},{"$f":"INDEX(Piano_ufficio[],MATCH(INDEX(Scostamenti_di_ufficio[],ROW()-ROW(Scostamenti_di_ufficio[[#Headers],[Ago]]),1),INDEX(Piano_ufficio[],,1),0),MATCH(Scostamenti_di_ufficio[[#Headers],[Ago]],Piano_ufficio[#Headers],0))-INDEX(Costi_di_ufficio_effettivi[],MATCH(INDEX(Scostamenti_di_ufficio[],ROW()-ROW(Scostamenti_di_ufficio[[#Headers],[Ago]]),1),INDEX(Piano_ufficio[],,1),0),MATCH(Scostamenti_di_ufficio[[#Headers],[Ago]],Costi_di_ufficio_effettivi[#Headers],0))","v":{"v":250,"d":"€ 250.00"}},{"$f":"INDEX(Piano_ufficio[],MATCH(INDEX(Scostamenti_di_ufficio[],ROW()-ROW(Scostamenti_di_ufficio[[#Headers],[Set]]),1),INDEX(Piano_ufficio[],,1),0),MATCH(Scostamenti_di_ufficio[[#Headers],[Set]],Piano_ufficio[#Headers],0))-INDEX(Costi_di_ufficio_effettivi[],MATCH(INDEX(Scostamenti_di_ufficio[],ROW()-ROW(Scostamenti_di_ufficio[[#Headers],[Set]]),1),INDEX(Piano_ufficio[],,1),0),MATCH(Scostamenti_di_ufficio[[#Headers],[Set]],Costi_di_ufficio_effettivi[#Headers],0))","v":{"v":250,"d":"€ 250.00"}},{"$f":"INDEX(Piano_ufficio[],MATCH(INDEX(Scostamenti_di_ufficio[],ROW()-ROW(Scostamenti_di_ufficio[[#Headers],[Ott]]),1),INDEX(Piano_ufficio[],,1),0),MATCH(Scostamenti_di_ufficio[[#Headers],[Ott]],Piano_ufficio[#Headers],0))-INDEX(Costi_di_ufficio_effettivi[],MATCH(INDEX(Scostamenti_di_ufficio[],ROW()-ROW(Scostamenti_di_ufficio[[#Headers],[Ott]]),1),INDEX(Piano_ufficio[],,1),0),MATCH(Scostamenti_di_ufficio[[#Headers],[Ott]],Costi_di_ufficio_effettivi[#Headers],0))","v":{"v":250,"d":"€ 250.00"}},{"$f":"INDEX(Piano_ufficio[],MATCH(INDEX(Scostamenti_di_ufficio[],ROW()-ROW(Scostamenti_di_ufficio[[#Headers],[Nov]]),1),INDEX(Piano_ufficio[],,1),0),MATCH(Scostamenti_di_ufficio[[#Headers],[Nov]],Piano_ufficio[#Headers],0))-INDEX(Costi_di_ufficio_effettivi[],MATCH(INDEX(Scostamenti_di_ufficio[],ROW()-ROW(Scostamenti_di_ufficio[[#Headers],[Nov]]),1),INDEX(Piano_ufficio[],,1),0),MATCH(Scostamenti_di_ufficio[[#Headers],[Nov]],Costi_di_ufficio_effettivi[#Headers],0))","v":{"v":250,"d":"€ 250.00"}},{"$f":"INDEX(Piano_ufficio[],MATCH(INDEX(Scostamenti_di_ufficio[],ROW()-ROW(Scostamenti_di_ufficio[[#Headers],[Dic]]),1),INDEX(Piano_ufficio[],,1),0),MATCH(Scostamenti_di_ufficio[[#Headers],[Dic]],Piano_ufficio[#Headers],0))-INDEX(Costi_di_ufficio_effettivi[],MATCH(INDEX(Scostamenti_di_ufficio[],ROW()-ROW(Scostamenti_di_ufficio[[#Headers],[Dic]]),1),INDEX(Piano_ufficio[],,1),0),MATCH(Scostamenti_di_ufficio[[#Headers],[Dic]],Costi_di_ufficio_effettivi[#Headers],0))","v":{"v":250,"d":"€ 250.00"}},{"$f":"SUM(Scostamenti_di_ufficio[[#This Row],[Gen]:[Dic]])","v":{"v":1566,"d":"€ 1,566.00"}}]
[null,"Accesso a Internet",{"$f":"INDEX(Piano_ufficio[],MATCH(INDEX(Scostamenti_di_ufficio[],ROW()-ROW(Scostamenti_di_ufficio[[#Headers],[Gen]]),1),INDEX(Piano_ufficio[],,1),0),MATCH(Scostamenti_di_ufficio[[#Headers],[Gen]],Piano_ufficio[#Headers],0))-INDEX(Costi_di_ufficio_effettivi[],MATCH(INDEX(Scostamenti_di_ufficio[],ROW()-ROW(Scostamenti_di_ufficio[[#Headers],[Gen]]),1),INDEX(Piano_ufficio[],,1),0),MATCH(Scostamenti_di_ufficio[[#Headers],[Gen]],Costi_di_ufficio_effettivi[#Headers],0))","v":{"v":0,"d":"€ 0.00"}},{"$f":"INDEX(Piano_ufficio[],MATCH(INDEX(Scostamenti_di_ufficio[],ROW()-ROW(Scostamenti_di_ufficio[[#Headers],[Feb]]),1),INDEX(Piano_ufficio[],,1),0),MATCH(Scostamenti_di_ufficio[[#Headers],[Feb]],Piano_ufficio[#Headers],0))-INDEX(Costi_di_ufficio_effettivi[],MATCH(INDEX(Scostamenti_di_ufficio[],ROW()-ROW(Scostamenti_di_ufficio[[#Headers],[Feb]]),1),INDEX(Piano_ufficio[],,1),0),MATCH(Scostamenti_di_ufficio[[#Headers],[Feb]],Costi_di_ufficio_effettivi[#Headers],0))","v":{"v":0,"d":"€ 0.00"}},{"$f":"INDEX(Piano_ufficio[],MATCH(INDEX(Scostamenti_di_ufficio[],ROW()-ROW(Scostamenti_di_ufficio[[#Headers],[Mar]]),1),INDEX(Piano_ufficio[],,1),0),MATCH(Scostamenti_di_ufficio[[#Headers],[Mar]],Piano_ufficio[#Headers],0))-INDEX(Costi_di_ufficio_effettivi[],MATCH(INDEX(Scostamenti_di_ufficio[],ROW()-ROW(Scostamenti_di_ufficio[[#Headers],[Mar]]),1),INDEX(Piano_ufficio[],,1),0),MATCH(Scostamenti_di_ufficio[[#Headers],[Mar]],Costi_di_ufficio_effettivi[#Headers],0))","v":{"v":0,"d":"€ 0.00"}},{"$f":"INDEX(Piano_ufficio[],MATCH(INDEX(Scostamenti_di_ufficio[],ROW()-ROW(Scostamenti_di_ufficio[[#Headers],[Apr]]),1),INDEX(Piano_ufficio[],,1),0),MATCH(Scostamenti_di_ufficio[[#Headers],[Apr]],Piano_ufficio[#Headers],0))-INDEX(Costi_di_ufficio_effettivi[],MATCH(INDEX(Scostamenti_di_ufficio[],ROW()-ROW(Scostamenti_di_ufficio[[#Headers],[Apr]]),1),INDEX(Piano_ufficio[],,1),0),MATCH(Scostamenti_di_ufficio[[#Headers],[Apr]],Costi_di_ufficio_effettivi[#Headers],0))","v":{"v":0,"d":"€ 0.00"}},{"$f":"INDEX(Piano_ufficio[],MATCH(INDEX(Scostamenti_di_ufficio[],ROW()-ROW(Scostamenti_di_ufficio[[#Headers],[Mag]]),1),INDEX(Piano_ufficio[],,1),0),MATCH(Scostamenti_di_ufficio[[#Headers],[Mag]],Piano_ufficio[#Headers],0))-INDEX(Costi_di_ufficio_effettivi[],MATCH(INDEX(Scostamenti_di_ufficio[],ROW()-ROW(Scostamenti_di_ufficio[[#Headers],[Mag]]),1),INDEX(Piano_ufficio[],,1),0),MATCH(Scostamenti_di_ufficio[[#Headers],[Mag]],Costi_di_ufficio_effettivi[#Headers],0))","v":{"v":0,"d":"€ 0.00"}},{"$f":"INDEX(Piano_ufficio[],MATCH(INDEX(Scostamenti_di_ufficio[],ROW()-ROW(Scostamenti_di_ufficio[[#Headers],[Giu]]),1),INDEX(Piano_ufficio[],,1),0),MATCH(Scostamenti_di_ufficio[[#Headers],[Giu]],Piano_ufficio[#Headers],0))-INDEX(Costi_di_ufficio_effettivi[],MATCH(INDEX(Scostamenti_di_ufficio[],ROW()-ROW(Scostamenti_di_ufficio[[#Headers],[Giu]]),1),INDEX(Piano_ufficio[],,1),0),MATCH(Scostamenti_di_ufficio[[#Headers],[Giu]],Costi_di_ufficio_effettivi[#Headers],0))","v":{"v":0,"d":"€ 0.00"}},{"$f":"INDEX(Piano_ufficio[],MATCH(INDEX(Scostamenti_di_ufficio[],ROW()-ROW(Scostamenti_di_ufficio[[#Headers],[Lug]]),1),INDEX(Piano_ufficio[],,1),0),MATCH(Scostamenti_di_ufficio[[#Headers],[Lug]],Piano_ufficio[#Headers],0))-INDEX(Costi_di_ufficio_effettivi[],MATCH(INDEX(Scostamenti_di_ufficio[],ROW()-ROW(Scostamenti_di_ufficio[[#Headers],[Lug]]),1),INDEX(Piano_ufficio[],,1),0),MATCH(Scostamenti_di_ufficio[[#Headers],[Lug]],Costi_di_ufficio_effettivi[#Headers],0))","v":{"v":180,"d":"€ 180.00"}},{"$f":"INDEX(Piano_ufficio[],MATCH(INDEX(Scostamenti_di_ufficio[],ROW()-ROW(Scostamenti_di_ufficio[[#Headers],[Ago]]),1),INDEX(Piano_ufficio[],,1),0),MATCH(Scostamenti_di_ufficio[[#Headers],[Ago]],Piano_ufficio[#Headers],0))-INDEX(Costi_di_ufficio_effettivi[],MATCH(INDEX(Scostamenti_di_ufficio[],ROW()-ROW(Scostamenti_di_ufficio[[#Headers],[Ago]]),1),INDEX(Piano_ufficio[],,1),0),MATCH(Scostamenti_di_ufficio[[#Headers],[Ago]],Costi_di_ufficio_effettivi[#Headers],0))","v":{"v":180,"d":"€ 180.00"}},{"$f":"INDEX(Piano_ufficio[],MATCH(INDEX(Scostamenti_di_ufficio[],ROW()-ROW(Scostamenti_di_ufficio[[#Headers],[Set]]),1),INDEX(Piano_ufficio[],,1),0),MATCH(Scostamenti_di_ufficio[[#Headers],[Set]],Piano_ufficio[#Headers],0))-INDEX(Costi_di_ufficio_effettivi[],MATCH(INDEX(Scostamenti_di_ufficio[],ROW()-ROW(Scostamenti_di_ufficio[[#Headers],[Set]]),1),INDEX(Piano_ufficio[],,1),0),MATCH(Scostamenti_di_ufficio[[#Headers],[Set]],Costi_di_ufficio_effettivi[#Headers],0))","v":{"v":180,"d":"€ 180.00"}},{"$f":"INDEX(Piano_ufficio[],MATCH(INDEX(Scostamenti_di_ufficio[],ROW()-ROW(Scostamenti_di_ufficio[[#Headers],[Ott]]),1),INDEX(Piano_ufficio[],,1),0),MATCH(Scostamenti_di_ufficio[[#Headers],[Ott]],Piano_ufficio[#Headers],0))-INDEX(Costi_di_ufficio_effettivi[],MATCH(INDEX(Scostamenti_di_ufficio[],ROW()-ROW(Scostamenti_di_ufficio[[#Headers],[Ott]]),1),INDEX(Piano_ufficio[],,1),0),MATCH(Scostamenti_di_ufficio[[#Headers],[Ott]],Costi_di_ufficio_effettivi[#Headers],0))","v":{"v":180,"d":"€ 180.00"}},{"$f":"INDEX(Piano_ufficio[],MATCH(INDEX(Scostamenti_di_ufficio[],ROW()-ROW(Scostamenti_di_ufficio[[#Headers],[Nov]]),1),INDEX(Piano_ufficio[],,1),0),MATCH(Scostamenti_di_ufficio[[#Headers],[Nov]],Piano_ufficio[#Headers],0))-INDEX(Costi_di_ufficio_effettivi[],MATCH(INDEX(Scostamenti_di_ufficio[],ROW()-ROW(Scostamenti_di_ufficio[[#Headers],[Nov]]),1),INDEX(Piano_ufficio[],,1),0),MATCH(Scostamenti_di_ufficio[[#Headers],[Nov]],Costi_di_ufficio_effettivi[#Headers],0))","v":{"v":180,"d":"€ 180.00"}},{"$f":"INDEX(Piano_ufficio[],MATCH(INDEX(Scostamenti_di_ufficio[],ROW()-ROW(Scostamenti_di_ufficio[[#Headers],[Dic]]),1),INDEX(Piano_ufficio[],,1),0),MATCH(Scostamenti_di_ufficio[[#Headers],[Dic]],Piano_ufficio[#Headers],0))-INDEX(Costi_di_ufficio_effettivi[],MATCH(INDEX(Scostamenti_di_ufficio[],ROW()-ROW(Scostamenti_di_ufficio[[#Headers],[Dic]]),1),INDEX(Piano_ufficio[],,1),0),MATCH(Scostamenti_di_ufficio[[#Headers],[Dic]],Costi_di_ufficio_effettivi[#Headers],0))","v":{"v":180,"d":"€ 180.00"}},{"$f":"SUM(Scostamenti_di_ufficio[[#This Row],[Gen]:[Dic]])","v":{"v":1080,"d":"€ 1,080.00"}}]
[null,"Forniture ufficio",{"$f":"INDEX(Piano_ufficio[],MATCH(INDEX(Scostamenti_di_ufficio[],ROW()-ROW(Scostamenti_di_ufficio[[#Headers],[Gen]]),1),INDEX(Piano_ufficio[],,1),0),MATCH(Scostamenti_di_ufficio[[#Headers],[Gen]],Piano_ufficio[#Headers],0))-INDEX(Costi_di_ufficio_effettivi[],MATCH(INDEX(Scostamenti_di_ufficio[],ROW()-ROW(Scostamenti_di_ufficio[[#Headers],[Gen]]),1),INDEX(Piano_ufficio[],,1),0),MATCH(Scostamenti_di_ufficio[[#Headers],[Gen]],Costi_di_ufficio_effettivi[#Headers],0))","v":{"v":-56,"d":"-€ 56.00"}},{"$f":"INDEX(Piano_ufficio[],MATCH(INDEX(Scostamenti_di_ufficio[],ROW()-ROW(Scostamenti_di_ufficio[[#Headers],[Feb]]),1),INDEX(Piano_ufficio[],,1),0),MATCH(Scostamenti_di_ufficio[[#Headers],[Feb]],Piano_ufficio[#Headers],0))-INDEX(Costi_di_ufficio_effettivi[],MATCH(INDEX(Scostamenti_di_ufficio[],ROW()-ROW(Scostamenti_di_ufficio[[#Headers],[Feb]]),1),INDEX(Piano_ufficio[],,1),0),MATCH(Scostamenti_di_ufficio[[#Headers],[Feb]],Costi_di_ufficio_effettivi[#Headers],0))","v":{"v":58,"d":"€ 58.00"}},{"$f":"INDEX(Piano_ufficio[],MATCH(INDEX(Scostamenti_di_ufficio[],ROW()-ROW(Scostamenti_di_ufficio[[#Headers],[Mar]]),1),INDEX(Piano_ufficio[],,1),0),MATCH(Scostamenti_di_ufficio[[#Headers],[Mar]],Piano_ufficio[#Headers],0))-INDEX(Costi_di_ufficio_effettivi[],MATCH(INDEX(Scostamenti_di_ufficio[],ROW()-ROW(Scostamenti_di_ufficio[[#Headers],[Mar]]),1),INDEX(Piano_ufficio[],,1),0),MATCH(Scostamenti_di_ufficio[[#Headers],[Mar]],Costi_di_ufficio_effettivi[#Headers],0))","v":{"v":40,"d":"€ 40.00"}},{"$f":"INDEX(Piano_ufficio[],MATCH(INDEX(Scostamenti_di_ufficio[],ROW()-ROW(Scostamenti_di_ufficio[[#Headers],[Apr]]),1),INDEX(Piano_ufficio[],,1),0),MATCH(Scostamenti_di_ufficio[[#Headers],[Apr]],Piano_ufficio[#Headers],0))-INDEX(Costi_di_ufficio_effettivi[],MATCH(INDEX(Scostamenti_di_ufficio[],ROW()-ROW(Scostamenti_di_ufficio[[#Headers],[Apr]]),1),INDEX(Piano_ufficio[],,1),0),MATCH(Scostamenti_di_ufficio[[#Headers],[Apr]],Costi_di_ufficio_effettivi[#Headers],0))","v":{"v":-21,"d":"-€ 21.00"}},{"$f":"INDEX(Piano_ufficio[],MATCH(INDEX(Scostamenti_di_ufficio[],ROW()-ROW(Scostamenti_di_ufficio[[#Headers],[Mag]]),1),INDEX(Piano_ufficio[],,1),0),MATCH(Scostamenti_di_ufficio[[#Headers],[Mag]],Piano_ufficio[#Headers],0))-INDEX(Costi_di_ufficio_effettivi[],MATCH(INDEX(Scostamenti_di_ufficio[],ROW()-ROW(Scostamenti_di_ufficio[[#Headers],[Mag]]),1),INDEX(Piano_ufficio[],,1),0),MATCH(Scostamenti_di_ufficio[[#Headers],[Mag]],Costi_di_ufficio_effettivi[#Headers],0))","v":{"v":-56,"d":"-€ 56.00"}},{"$f":"INDEX(Piano_ufficio[],MATCH(INDEX(Scostamenti_di_ufficio[],ROW()-ROW(Scostamenti_di_ufficio[[#Headers],[Giu]]),1),INDEX(Piano_ufficio[],,1),0),MATCH(Scostamenti_di_ufficio[[#Headers],[Giu]],Piano_ufficio[#Headers],0))-INDEX(Costi_di_ufficio_effettivi[],MATCH(INDEX(Scostamenti_di_ufficio[],ROW()-ROW(Scostamenti_di_ufficio[[#Headers],[Giu]]),1),INDEX(Piano_ufficio[],,1),0),MATCH(Scostamenti_di_ufficio[[#Headers],[Giu]],Costi_di_ufficio_effettivi[#Headers],0))","v":{"v":-40,"d":"-€ 40.00"}},{"$f":"INDEX(Piano_ufficio[],MATCH(INDEX(Scostamenti_di_ufficio[],ROW()-ROW(Scostamenti_di_ufficio[[#Headers],[Lug]]),1),INDEX(Piano_ufficio[],,1),0),MATCH(Scostamenti_di_ufficio[[#Headers],[Lug]],Piano_ufficio[#Headers],0))-INDEX(Costi_di_ufficio_effettivi[],MATCH(INDEX(Scostamenti_di_ufficio[],ROW()-ROW(Scostamenti_di_ufficio[[#Headers],[Lug]]),1),INDEX(Piano_ufficio[],,1),0),MATCH(Scostamenti_di_ufficio[[#Headers],[Lug]],Costi_di_ufficio_effettivi[#Headers],0))","v":{"v":200,"d":"€ 200.00"}},{"$f":"INDEX(Piano_ufficio[],MATCH(INDEX(Scostamenti_di_ufficio[],ROW()-ROW(Scostamenti_di_ufficio[[#Headers],[Ago]]),1),INDEX(Piano_ufficio[],,1),0),MATCH(Scostamenti_di_ufficio[[#Headers],[Ago]],Piano_ufficio[#Headers],0))-INDEX(Costi_di_ufficio_effettivi[],MATCH(INDEX(Scostamenti_di_ufficio[],ROW()-ROW(Scostamenti_di_ufficio[[#Headers],[Ago]]),1),INDEX(Piano_ufficio[],,1),0),MATCH(Scostamenti_di_ufficio[[#Headers],[Ago]],Costi_di_ufficio_effettivi[#Headers],0))","v":{"v":200,"d":"€ 200.00"}},{"$f":"INDEX(Piano_ufficio[],MATCH(INDEX(Scostamenti_di_ufficio[],ROW()-ROW(Scostamenti_di_ufficio[[#Headers],[Set]]),1),INDEX(Piano_ufficio[],,1),0),MATCH(Scostamenti_di_ufficio[[#Headers],[Set]],Piano_ufficio[#Headers],0))-INDEX(Costi_di_ufficio_effettivi[],MATCH(INDEX(Scostamenti_di_ufficio[],ROW()-ROW(Scostamenti_di_ufficio[[#Headers],[Set]]),1),INDEX(Piano_ufficio[],,1),0),MATCH(Scostamenti_di_ufficio[[#Headers],[Set]],Costi_di_ufficio_effettivi[#Headers],0))","v":{"v":200,"d":"€ 200.00"}},{"$f":"INDEX(Piano_ufficio[],MATCH(INDEX(Scostamenti_di_ufficio[],ROW()-ROW(Scostamenti_di_ufficio[[#Headers],[Ott]]),1),INDEX(Piano_ufficio[],,1),0),MATCH(Scostamenti_di_ufficio[[#Headers],[Ott]],Piano_ufficio[#Headers],0))-INDEX(Costi_di_ufficio_effettivi[],MATCH(INDEX(Scostamenti_di_ufficio[],ROW()-ROW(Scostamenti_di_ufficio[[#Headers],[Ott]]),1),INDEX(Piano_ufficio[],,1),0),MATCH(Scostamenti_di_ufficio[[#Headers],[Ott]],Costi_di_ufficio_effettivi[#Headers],0))","v":{"v":200,"d":"€ 200.00"}},{"$f":"INDEX(Piano_ufficio[],MATCH(INDEX(Scostamenti_di_ufficio[],ROW()-ROW(Scostamenti_di_ufficio[[#Headers],[Nov]]),1),INDEX(Piano_ufficio[],,1),0),MATCH(Scostamenti_di_ufficio[[#Headers],[Nov]],Piano_ufficio[#Headers],0))-INDEX(Costi_di_ufficio_effettivi[],MATCH(INDEX(Scostamenti_di_ufficio[],ROW()-ROW(Scostamenti_di_ufficio[[#Headers],[Nov]]),1),INDEX(Piano_ufficio[],,1),0),MATCH(Scostamenti_di_ufficio[[#Headers],[Nov]],Costi_di_ufficio_effettivi[#Headers],0))","v":{"v":200,"d":"€ 200.00"}},{"$f":"INDEX(Piano_ufficio[],MATCH(INDEX(Scostamenti_di_ufficio[],ROW()-ROW(Scostamenti_di_ufficio[[#Headers],[Dic]]),1),INDEX(Piano_ufficio[],,1),0),MATCH(Scostamenti_di_ufficio[[#Headers],[Dic]],Piano_ufficio[#Headers],0))-INDEX(Costi_di_ufficio_effettivi[],MATCH(INDEX(Scostamenti_di_ufficio[],ROW()-ROW(Scostamenti_di_ufficio[[#Headers],[Dic]]),1),INDEX(Piano_ufficio[],,1),0),MATCH(Scostamenti_di_ufficio[[#Headers],[Dic]],Costi_di_ufficio_effettivi[#Headers],0))","v":{"v":200,"d":"€ 200.00"}},{"$f":"SUM(Scostamenti_di_ufficio[[#This Row],[Gen]:[Dic]])","v":{"v":1125,"d":"€ 1,125.00"}}]
[null,"Sicurezza",{"$f":"INDEX(Piano_ufficio[],MATCH(INDEX(Scostamenti_di_ufficio[],ROW()-ROW(Scostamenti_di_ufficio[[#Headers],[Gen]]),1),INDEX(Piano_ufficio[],,1),0),MATCH(Scostamenti_di_ufficio[[#Headers],[Gen]],Piano_ufficio[#Headers],0))-INDEX(Costi_di_ufficio_effettivi[],MATCH(INDEX(Scostamenti_di_ufficio[],ROW()-ROW(Scostamenti_di_ufficio[[#Headers],[Gen]]),1),INDEX(Piano_ufficio[],,1),0),MATCH(Scostamenti_di_ufficio[[#Headers],[Gen]],Costi_di_ufficio_effettivi[#Headers],0))","v":{"v":0,"d":"€ 0.00"}},{"$f":"INDEX(Piano_ufficio[],MATCH(INDEX(Scostamenti_di_ufficio[],ROW()-ROW(Scostamenti_di_ufficio[[#Headers],[Feb]]),1),INDEX(Piano_ufficio[],,1),0),MATCH(Scostamenti_di_ufficio[[#Headers],[Feb]],Piano_ufficio[#Headers],0))-INDEX(Costi_di_ufficio_effettivi[],MATCH(INDEX(Scostamenti_di_ufficio[],ROW()-ROW(Scostamenti_di_ufficio[[#Headers],[Feb]]),1),INDEX(Piano_ufficio[],,1),0),MATCH(Scostamenti_di_ufficio[[#Headers],[Feb]],Costi_di_ufficio_effettivi[#Headers],0))","v":{"v":0,"d":"€ 0.00"}},{"$f":"INDEX(Piano_ufficio[],MATCH(INDEX(Scostamenti_di_ufficio[],ROW()-ROW(Scostamenti_di_ufficio[[#Headers],[Mar]]),1),INDEX(Piano_ufficio[],,1),0),MATCH(Scostamenti_di_ufficio[[#Headers],[Mar]],Piano_ufficio[#Headers],0))-INDEX(Costi_di_ufficio_effettivi[],MATCH(INDEX(Scostamenti_di_ufficio[],ROW()-ROW(Scostamenti_di_ufficio[[#Headers],[Mar]]),1),INDEX(Piano_ufficio[],,1),0),MATCH(Scostamenti_di_ufficio[[#Headers],[Mar]],Costi_di_ufficio_effettivi[#Headers],0))","v":{"v":0,"d":"€ 0.00"}},{"$f":"INDEX(Piano_ufficio[],MATCH(INDEX(Scostamenti_di_ufficio[],ROW()-ROW(Scostamenti_di_ufficio[[#Headers],[Apr]]),1),INDEX(Piano_ufficio[],,1),0),MATCH(Scostamenti_di_ufficio[[#Headers],[Apr]],Piano_ufficio[#Headers],0))-INDEX(Costi_di_ufficio_effettivi[],MATCH(INDEX(Scostamenti_di_ufficio[],ROW()-ROW(Scostamenti_di_ufficio[[#Headers],[Apr]]),1),INDEX(Piano_ufficio[],,1),0),MATCH(Scostamenti_di_ufficio[[#Headers],[Apr]],Costi_di_ufficio_effettivi[#Headers],0))","v":{"v":0,"d":"€ 0.00"}},{"$f":"INDEX(Piano_ufficio[],MATCH(INDEX(Scostamenti_di_ufficio[],ROW()-ROW(Scostamenti_di_ufficio[[#Headers],[Mag]]),1),INDEX(Piano_ufficio[],,1),0),MATCH(Scostamenti_di_ufficio[[#Headers],[Mag]],Piano_ufficio[#Headers],0))-INDEX(Costi_di_ufficio_effettivi[],MATCH(INDEX(Scostamenti_di_ufficio[],ROW()-ROW(Scostamenti_di_ufficio[[#Headers],[Mag]]),1),INDEX(Piano_ufficio[],,1),0),MATCH(Scostamenti_di_ufficio[[#Headers],[Mag]],Costi_di_ufficio_effettivi[#Headers],0))","v":{"v":0,"d":"€ 0.00"}},{"$f":"INDEX(Piano_ufficio[],MATCH(INDEX(Scostamenti_di_ufficio[],ROW()-ROW(Scostamenti_di_ufficio[[#Headers],[Giu]]),1),INDEX(Piano_ufficio[],,1),0),MATCH(Scostamenti_di_ufficio[[#Headers],[Giu]],Piano_ufficio[#Headers],0))-INDEX(Costi_di_ufficio_effettivi[],MATCH(INDEX(Scostamenti_di_ufficio[],ROW()-ROW(Scostamenti_di_ufficio[[#Headers],[Giu]]),1),INDEX(Piano_ufficio[],,1),0),MATCH(Scostamenti_di_ufficio[[#Headers],[Giu]],Costi_di_ufficio_effettivi[#Headers],0))","v":{"v":0,"d":"€ 0.00"}},{"$f":"INDEX(Piano_ufficio[],MATCH(INDEX(Scostamenti_di_ufficio[],ROW()-ROW(Scostamenti_di_ufficio[[#Headers],[Lug]]),1),INDEX(Piano_ufficio[],,1),0),MATCH(Scostamenti_di_ufficio[[#Headers],[Lug]],Piano_ufficio[#Headers],0))-INDEX(Costi_di_ufficio_effettivi[],MATCH(INDEX(Scostamenti_di_ufficio[],ROW()-ROW(Scostamenti_di_ufficio[[#Headers],[Lug]]),1),INDEX(Piano_ufficio[],,1),0),MATCH(Scostamenti_di_ufficio[[#Headers],[Lug]],Costi_di_ufficio_effettivi[#Headers],0))","v":{"v":600,"d":"€ 600.00"}},{"$f":"INDEX(Piano_ufficio[],MATCH(INDEX(Scostamenti_di_ufficio[],ROW()-ROW(Scostamenti_di_ufficio[[#Headers],[Ago]]),1),INDEX(Piano_ufficio[],,1),0),MATCH(Scostamenti_di_ufficio[[#Headers],[Ago]],Piano_ufficio[#Headers],0))-INDEX(Costi_di_ufficio_effettivi[],MATCH(INDEX(Scostamenti_di_ufficio[],ROW()-ROW(Scostamenti_di_ufficio[[#Headers],[Ago]]),1),INDEX(Piano_ufficio[],,1),0),MATCH(Scostamenti_di_ufficio[[#Headers],[Ago]],Costi_di_ufficio_effettivi[#Headers],0))","v":{"v":600,"d":"€ 600.00"}},{"$f":"INDEX(Piano_ufficio[],MATCH(INDEX(Scostamenti_di_ufficio[],ROW()-ROW(Scostamenti_di_ufficio[[#Headers],[Set]]),1),INDEX(Piano_ufficio[],,1),0),MATCH(Scostamenti_di_ufficio[[#Headers],[Set]],Piano_ufficio[#Headers],0))-INDEX(Costi_di_ufficio_effettivi[],MATCH(INDEX(Scostamenti_di_ufficio[],ROW()-ROW(Scostamenti_di_ufficio[[#Headers],[Set]]),1),INDEX(Piano_ufficio[],,1),0),MATCH(Scostamenti_di_ufficio[[#Headers],[Set]],Costi_di_ufficio_effettivi[#Headers],0))","v":{"v":600,"d":"€ 600.00"}},{"$f":"INDEX(Piano_ufficio[],MATCH(INDEX(Scostamenti_di_ufficio[],ROW()-ROW(Scostamenti_di_ufficio[[#Headers],[Ott]]),1),INDEX(Piano_ufficio[],,1),0),MATCH(Scostamenti_di_ufficio[[#Headers],[Ott]],Piano_ufficio[#Headers],0))-INDEX(Costi_di_ufficio_effettivi[],MATCH(INDEX(Scostamenti_di_ufficio[],ROW()-ROW(Scostamenti_di_ufficio[[#Headers],[Ott]]),1),INDEX(Piano_ufficio[],,1),0),MATCH(Scostamenti_di_ufficio[[#Headers],[Ott]],Costi_di_ufficio_effettivi[#Headers],0))","v":{"v":600,"d":"€ 600.00"}},{"$f":"INDEX(Piano_ufficio[],MATCH(INDEX(Scostamenti_di_ufficio[],ROW()-ROW(Scostamenti_di_ufficio[[#Headers],[Nov]]),1),INDEX(Piano_ufficio[],,1),0),MATCH(Scostamenti_di_ufficio[[#Headers],[Nov]],Piano_ufficio[#Headers],0))-INDEX(Costi_di_ufficio_effettivi[],MATCH(INDEX(Scostamenti_di_ufficio[],ROW()-ROW(Scostamenti_di_ufficio[[#Headers],[Nov]]),1),INDEX(Piano_ufficio[],,1),0),MATCH(Scostamenti_di_ufficio[[#Headers],[Nov]],Costi_di_ufficio_effettivi[#Headers],0))","v":{"v":600,"d":"€ 600.00"}},{"$f":"INDEX(Piano_ufficio[],MATCH(INDEX(Scostamenti_di_ufficio[],ROW()-ROW(Scostamenti_di_ufficio[[#Headers],[Dic]]),1),INDEX(Piano_ufficio[],,1),0),MATCH(Scostamenti_di_ufficio[[#Headers],[Dic]],Piano_ufficio[#Headers],0))-INDEX(Costi_di_ufficio_effettivi[],MATCH(INDEX(Scostamenti_di_ufficio[],ROW()-ROW(Scostamenti_di_ufficio[[#Headers],[Dic]]),1),INDEX(Piano_ufficio[],,1),0),MATCH(Scostamenti_di_ufficio[[#Headers],[Dic]],Costi_di_ufficio_effettivi[#Headers],0))","v":{"v":600,"d":"€ 600.00"}},{"$f":"SUM(Scostamenti_di_ufficio[[#This Row],[Gen]:[Dic]])","v":{"v":3600,"d":"€ 3,600.00"}}]
[null,"Subtotale",{"$f":"SUBTOTAL(109,Scostamenti_di_ufficio[Gen])","v":{"v":-17,"d":"-€ 17.00"}},{"$f":"SUBTOTAL(109,Scostamenti_di_ufficio[Feb])","v":{"v":72,"d":"€ 72.00"}},{"$f":"SUBTOTAL(109,Scostamenti_di_ufficio[Mar])","v":{"v":78,"d":"€ 78.00"}},{"$f":"SUBTOTAL(109,Scostamenti_di_ufficio[Apr])","v":{"v":-141,"d":"-€ 141.00"}},{"$f":"SUBTOTAL(109,Scostamenti_di_ufficio[Mag])","v":{"v":-38,"d":"-€ 38.00"}},{"$f":"SUBTOTAL(109,Scostamenti_di_ufficio[Giu])","v":{"v":16,"d":"€ 16.00"}},{"$f":"SUBTOTAL(109,Scostamenti_di_ufficio[Lug])","v":{"v":11470,"d":"€ 11,470.00"}},{"$f":"SUBTOTAL(109,Scostamenti_di_ufficio[Ago])","v":{"v":11470,"d":"€ 11,470.00"}},{"$f":"SUBTOTAL(109,Scostamenti_di_ufficio[Set])","v":{"v":11470,"d":"€ 11,470.00"}},{"$f":"SUBTOTAL(109,Scostamenti_di_ufficio[Ott])","v":{"v":11470,"d":"€ 11,470.00"}},{"$f":"SUBTOTAL(109,Scostamenti_di_ufficio[Nov])","v":{"v":11770,"d":"€ 11,770.00"}},{"$f":"SUBTOTAL(109,Scostamenti_di_ufficio[Dic])","v":{"v":11770,"d":"€ 11,770.00"}},{"$f":"SUBTOTAL(109,Scostamenti_di_ufficio[ANNO])","v":{"v":69390,"d":"€ 69,390.00"}}]
[]
["Lo scostamento in Costi di marketing viene calcolato automaticamente nella tabella Scostamenti di marketing partendo dalla cella a destra. L'istruzione successiva si trova nella cella A30.","Costi di marketing","Gen","Feb","Mar","Apr","Mag","Giu","Lug","Ago","Set","Ott","Nov","Dic","ANNO"]
[null,"Hosting di siti Web",{"$f":"INDEX(Piano_marketing[],MATCH(INDEX(Scostamenti_di_marketing[],ROW()-ROW(Scostamenti_di_marketing[[#Headers],[Gen]]),1),INDEX(Piano_marketing[],,1),0),MATCH(Scostamenti_di_marketing[[#Headers],[Gen]],Piano_marketing[#Headers],0))-INDEX(Costi_di_marketing_effettivi[],MATCH(INDEX(Scostamenti_di_marketing[],ROW()-ROW(Scostamenti_di_marketing[[#Headers],[Gen]]),1),INDEX(Piano_marketing[],,1),0),MATCH(Scostamenti_di_marketing[[#Headers],[Gen]],Costi_di_marketing_effettivi[#Headers],0))","v":{"v":0,"d":"€ 0.00"}},{"$f":"INDEX(Piano_marketing[],MATCH(INDEX(Scostamenti_di_marketing[],ROW()-ROW(Scostamenti_di_marketing[[#Headers],[Feb]]),1),INDEX(Piano_marketing[],,1),0),MATCH(Scostamenti_di_marketing[[#Headers],[Feb]],Piano_marketing[#Headers],0))-INDEX(Costi_di_marketing_effettivi[],MATCH(INDEX(Scostamenti_di_marketing[],ROW()-ROW(Scostamenti_di_marketing[[#Headers],[Feb]]),1),INDEX(Piano_marketing[],,1),0),MATCH(Scostamenti_di_marketing[[#Headers],[Feb]],Costi_di_marketing_effettivi[#Headers],0))","v":{"v":0,"d":"€ 0.00"}},{"$f":"INDEX(Piano_marketing[],MATCH(INDEX(Scostamenti_di_marketing[],ROW()-ROW(Scostamenti_di_marketing[[#Headers],[Mar]]),1),INDEX(Piano_marketing[],,1),0),MATCH(Scostamenti_di_marketing[[#Headers],[Mar]],Piano_marketing[#Headers],0))-INDEX(Costi_di_marketing_effettivi[],MATCH(INDEX(Scostamenti_di_marketing[],ROW()-ROW(Scostamenti_di_marketing[[#Headers],[Mar]]),1),INDEX(Piano_marketing[],,1),0),MATCH(Scostamenti_di_marketing[[#Headers],[Mar]],Costi_di_marketing_effettivi[#Headers],0))","v":{"v":0,"d":"€ 0.00"}},{"$f":"INDEX(Piano_marketing[],MATCH(INDEX(Scostamenti_di_marketing[],ROW()-ROW(Scostamenti_di_marketing[[#Headers],[Apr]]),1),INDEX(Piano_marketing[],,1),0),MATCH(Scostamenti_di_marketing[[#Headers],[Apr]],Piano_marketing[#Headers],0))-INDEX(Costi_di_marketing_effettivi[],MATCH(INDEX(Scostamenti_di_marketing[],ROW()-ROW(Scostamenti_di_marketing[[#Headers],[Apr]]),1),INDEX(Piano_marketing[],,1),0),MATCH(Scostamenti_di_marketing[[#Headers],[Apr]],Costi_di_marketing_effettivi[#Headers],0))","v":{"v":0,"d":"€ 0.00"}},{"$f":"INDEX(Piano_marketing[],MATCH(INDEX(Scostamenti_di_marketing[],ROW()-ROW(Scostamenti_di_marketing[[#Headers],[Mag]]),1),INDEX(Piano_marketing[],,1),0),MATCH(Scostamenti_di_marketing[[#Headers],[Mag]],Piano_marketing[#Headers],0))-INDEX(Costi_di_marketing_effettivi[],MATCH(INDEX(Scostamenti_di_marketing[],ROW()-ROW(Scostamenti_di_marketing[[#Headers],[Mag]]),1),INDEX(Piano_marketing[],,1),0),MATCH(Scostamenti_di_marketing[[#Headers],[Mag]],Costi_di_marketing_effettivi[#Headers],0))","v":{"v":0,"d":"€ 0.00"}},{"$f":"INDEX(Piano_marketing[],MATCH(INDEX(Scostamenti_di_marketing[],ROW()-ROW(Scostamenti_di_marketing[[#Headers],[Giu]]),1),INDEX(Piano_marketing[],,1),0),MATCH(Scostamenti_di_marketing[[#Headers],[Giu]],Piano_marketing[#Headers],0))-INDEX(Costi_di_marketing_effettivi[],MATCH(INDEX(Scostamenti_di_marketing[],ROW()-ROW(Scostamenti_di_marketing[[#Headers],[Giu]]),1),INDEX(Piano_marketing[],,1),0),MATCH(Scostamenti_di_marketing[[#Headers],[Giu]],Costi_di_marketing_effettivi[#Headers],0))","v":{"v":0,"d":"€ 0.00"}},{"$f":"INDEX(Piano_marketing[],MATCH(INDEX(Scostamenti_di_marketing[],ROW()-ROW(Scostamenti_di_marketing[[#Headers],[Lug]]),1),INDEX(Piano_marketing[],,1),0),MATCH(Scostamenti_di_marketing[[#Headers],[Lug]],Piano_marketing[#Headers],0))-INDEX(Costi_di_marketing_effettivi[],MATCH(INDEX(Scostamenti_di_marketing[],ROW()-ROW(Scostamenti_di_marketing[[#Headers],[Lug]]),1),INDEX(Piano_marketing[],,1),0),MATCH(Scostamenti_di_marketing[[#Headers],[Lug]],Costi_di_marketing_effettivi[#Headers],0))","v":{"v":500,"d":"€ 500.00"}},{"$f":"INDEX(Piano_marketing[],MATCH(INDEX(Scostamenti_di_marketing[],ROW()-ROW(Scostamenti_di_marketing[[#Headers],[Ago]]),1),INDEX(Piano_marketing[],,1),0),MATCH(Scostamenti_di_marketing[[#Headers],[Ago]],Piano_marketing[#Headers],0))-INDEX(Costi_di_marketing_effettivi[],MATCH(INDEX(Scostamenti_di_marketing[],ROW()-ROW(Scostamenti_di_marketing[[#Headers],[Ago]]),1),INDEX(Piano_marketing[],,1),0),MATCH(Scostamenti_di_marketing[[#Headers],[Ago]],Costi_di_marketing_effettivi[#Headers],0))","v":{"v":500,"d":"€ 500.00"}},{"$f":"INDEX(Piano_marketing[],MATCH(INDEX(Scostamenti_di_marketing[],ROW()-ROW(Scostamenti_di_marketing[[#Headers],[Set]]),1),INDEX(Piano_marketing[],,1),0),MATCH(Scostamenti_di_marketing[[#Headers],[Set]],Piano_marketing[#Headers],0))-INDEX(Costi_di_marketing_effettivi[],MATCH(INDEX(Scostamenti_di_marketing[],ROW()-ROW(Scostamenti_di_marketing[[#Headers],[Set]]),1),INDEX(Piano_marketing[],,1),0),MATCH(Scostamenti_di_marketing[[#Headers],[Set]],Costi_di_marketing_effettivi[#Headers],0))","v":{"v":500,"d":"€ 500.00"}},{"$f":"INDEX(Piano_marketing[],MATCH(INDEX(Scostamenti_di_marketing[],ROW()-ROW(Scostamenti_di_marketing[[#Headers],[Ott]]),1),INDEX(Piano_marketing[],,1),0),MATCH(Scostamenti_di_marketing[[#Headers],[Ott]],Piano_marketing[#Headers],0))-INDEX(Costi_di_marketing_effettivi[],MATCH(INDEX(Scostamenti_di_marketing[],ROW()-ROW(Scostamenti_di_marketing[[#Headers],[Ott]]),1),INDEX(Piano_marketing[],,1),0),MATCH(Scostamenti_di_marketing[[#Headers],[Ott]],Costi_di_marketing_effettivi[#Headers],0))","v":{"v":500,"d":"€ 500.00"}},{"$f":"INDEX(Piano_marketing[],MATCH(INDEX(Scostamenti_di_marketing[],ROW()-ROW(Scostamenti_di_marketing[[#Headers],[Nov]]),1),INDEX(Piano_marketing[],,1),0),MATCH(Scostamenti_di_marketing[[#Headers],[Nov]],Piano_marketing[#Headers],0))-INDEX(Costi_di_marketing_effettivi[],MATCH(INDEX(Scostamenti_di_marketing[],ROW()-ROW(Scostamenti_di_marketing[[#Headers],[Nov]]),1),INDEX(Piano_marketing[],,1),0),MATCH(Scostamenti_di_marketing[[#Headers],[Nov]],Costi_di_marketing_effettivi[#Headers],0))","v":{"v":500,"d":"€ 500.00"}},{"$f":"INDEX(Piano_marketing[],MATCH(INDEX(Scostamenti_di_marketing[],ROW()-ROW(Scostamenti_di_marketing[[#Headers],[Dic]]),1),INDEX(Piano_marketing[],,1),0),MATCH(Scostamenti_di_marketing[[#Headers],[Dic]],Piano_marketing[#Headers],0))-INDEX(Costi_di_marketing_effettivi[],MATCH(INDEX(Scostamenti_di_marketing[],ROW()-ROW(Scostamenti_di_marketing[[#Headers],[Dic]]),1),INDEX(Piano_marketing[],,1),0),MATCH(Scostamenti_di_marketing[[#Headers],[Dic]],Costi_di_marketing_effettivi[#Headers],0))","v":{"v":500,"d":"€ 500.00"}},{"$f":"SUM(Scostamenti_di_marketing[[#This Row],[Gen]:[Dic]])","v":{"v":3000,"d":"€ 3,000.00"}}]
[null,"Aggiornamenti del sito Web",{"$f":"INDEX(Piano_marketing[],MATCH(INDEX(Scostamenti_di_marketing[],ROW()-ROW(Scostamenti_di_marketing[[#Headers],[Gen]]),1),INDEX(Piano_marketing[],,1),0),MATCH(Scostamenti_di_marketing[[#Headers],[Gen]],Piano_marketing[#Headers],0))-INDEX(Costi_di_marketing_effettivi[],MATCH(INDEX(Scostamenti_di_marketing[],ROW()-ROW(Scostamenti_di_marketing[[#Headers],[Gen]]),1),INDEX(Piano_marketing[],,1),0),MATCH(Scostamenti_di_marketing[[#Headers],[Gen]],Costi_di_marketing_effettivi[#Headers],0))","v":{"v":0,"d":"€ 0.00"}},{"$f":"INDEX(Piano_marketing[],MATCH(INDEX(Scostamenti_di_marketing[],ROW()-ROW(Scostamenti_di_marketing[[#Headers],[Feb]]),1),INDEX(Piano_marketing[],,1),0),MATCH(Scostamenti_di_marketing[[#Headers],[Feb]],Piano_marketing[#Headers],0))-INDEX(Costi_di_marketing_effettivi[],MATCH(INDEX(Scostamenti_di_marketing[],ROW()-ROW(Scostamenti_di_marketing[[#Headers],[Feb]]),1),INDEX(Piano_marketing[],,1),0),MATCH(Scostamenti_di_marketing[[#Headers],[Feb]],Costi_di_marketing_effettivi[#Headers],0))","v":{"v":0,"d":"€ 0.00"}},{"$f":"INDEX(Piano_marketing[],MATCH(INDEX(Scostamenti_di_marketing[],ROW()-ROW(Scostamenti_di_marketing[[#Headers],[Mar]]),1),INDEX(Piano_marketing[],,1),0),MATCH(Scostamenti_di_marketing[[#Headers],[Mar]],Piano_marketing[#Headers],0))-INDEX(Costi_di_marketing_effettivi[],MATCH(INDEX(Scostamenti_di_marketing[],ROW()-ROW(Scostamenti_di_marketing[[#Headers],[Mar]]),1),INDEX(Piano_marketing[],,1),0),MATCH(Scostamenti_di_marketing[[#Headers],[Mar]],Costi_di_marketing_effettivi[#Headers],0))","v":{"v":0,"d":"€ 0.00"}},{"$f":"INDEX(Piano_marketing[],MATCH(INDEX(Scostamenti_di_marketing[],ROW()-ROW(Scostamenti_di_marketing[[#Headers],[Apr]]),1),INDEX(Piano_marketing[],,1),0),MATCH(Scostamenti_di_marketing[[#Headers],[Apr]],Piano_marketing[#Headers],0))-INDEX(Costi_di_marketing_effettivi[],MATCH(INDEX(Scostamenti_di_marketing[],ROW()-ROW(Scostamenti_di_marketing[[#Headers],[Apr]]),1),INDEX(Piano_marketing[],,1),0),MATCH(Scostamenti_di_marketing[[#Headers],[Apr]],Costi_di_marketing_effettivi[#Headers],0))","v":{"v":0,"d":"€ 0.00"}},{"$f":"INDEX(Piano_marketing[],MATCH(INDEX(Scostamenti_di_marketing[],ROW()-ROW(Scostamenti_di_marketing[[#Headers],[Mag]]),1),INDEX(Piano_marketing[],,1),0),MATCH(Scostamenti_di_marketing[[#Headers],[Mag]],Piano_marketing[#Headers],0))-INDEX(Costi_di_marketing_effettivi[],MATCH(INDEX(Scostamenti_di_marketing[],ROW()-ROW(Scostamenti_di_marketing[[#Headers],[Mag]]),1),INDEX(Piano_marketing[],,1),0),MATCH(Scostamenti_di_marketing[[#Headers],[Mag]],Costi_di_marketing_effettivi[#Headers],0))","v":{"v":0,"d":"€ 0.00"}},{"$f":"INDEX(Piano_marketing[],MATCH(INDEX(Scostamenti_di_marketing[],ROW()-ROW(Scostamenti_di_marketing[[#Headers],[Giu]]),1),INDEX(Piano_marketing[],,1),0),MATCH(Scostamenti_di_marketing[[#Headers],[Giu]],Piano_marketing[#Headers],0))-INDEX(Costi_di_marketing_effettivi[],MATCH(INDEX(Scostamenti_di_marketing[],ROW()-ROW(Scostamenti_di_marketing[[#Headers],[Giu]]),1),INDEX(Piano_marketing[],,1),0),MATCH(Scostamenti_di_marketing[[#Headers],[Giu]],Costi_di_marketing_effettivi[#Headers],0))","v":{"v":-500,"d":"-€ 500.00"}},{"$f":"INDEX(Piano_marketing[],MATCH(INDEX(Scostamenti_di_marketing[],ROW()-ROW(Scostamenti_di_marketing[[#Headers],[Lug]]),1),INDEX(Piano_marketing[],,1),0),MATCH(Scostamenti_di_marketing[[#Headers],[Lug]],Piano_marketing[#Headers],0))-INDEX(Costi_di_marketing_effettivi[],MATCH(INDEX(Scostamenti_di_marketing[],ROW()-ROW(Scostamenti_di_marketing[[#Headers],[Lug]]),1),INDEX(Piano_marketing[],,1),0),MATCH(Scostamenti_di_marketing[[#Headers],[Lug]],Costi_di_marketing_effettivi[#Headers],0))","v":{"v":200,"d":"€ 200.00"}},{"$f":"INDEX(Piano_marketing[],MATCH(INDEX(Scostamenti_di_marketing[],ROW()-ROW(Scostamenti_di_marketing[[#Headers],[Ago]]),1),INDEX(Piano_marketing[],,1),0),MATCH(Scostamenti_di_marketing[[#Headers],[Ago]],Piano_marketing[#Headers],0))-INDEX(Costi_di_marketing_effettivi[],MATCH(INDEX(Scostamenti_di_marketing[],ROW()-ROW(Scostamenti_di_marketing[[#Headers],[Ago]]),1),INDEX(Piano_marketing[],,1),0),MATCH(Scostamenti_di_marketing[[#Headers],[Ago]],Costi_di_marketing_effettivi[#Headers],0))","v":{"v":200,"d":"€ 200.00"}},{"$f":"INDEX(Piano_marketing[],MATCH(INDEX(Scostamenti_di_marketing[],ROW()-ROW(Scostamenti_di_marketing[[#Headers],[Set]]),1),INDEX(Piano_marketing[],,1),0),MATCH(Scostamenti_di_marketing[[#Headers],[Set]],Piano_marketing[#Headers],0))-INDEX(Costi_di_marketing_effettivi[],MATCH(INDEX(Scostamenti_di_marketing[],ROW()-ROW(Scostamenti_di_marketing[[#Headers],[Set]]),1),INDEX(Piano_marketing[],,1),0),MATCH(Scostamenti_di_marketing[[#Headers],[Set]],Costi_di_marketing_effettivi[#Headers],0))","v":{"v":200,"d":"€ 200.00"}},{"$f":"INDEX(Piano_marketing[],MATCH(INDEX(Scostamenti_di_marketing[],ROW()-ROW(Scostamenti_di_marketing[[#Headers],[Ott]]),1),INDEX(Piano_marketing[],,1),0),MATCH(Scostamenti_di_marketing[[#Headers],[Ott]],Piano_marketing[#Headers],0))-INDEX(Costi_di_marketing_effettivi[],MATCH(INDEX(Scostamenti_di_marketing[],ROW()-ROW(Scostamenti_di_marketing[[#Headers],[Ott]]),1),INDEX(Piano_marketing[],,1),0),MATCH(Scostamenti_di_marketing[[#Headers],[Ott]],Costi_di_marketing_effettivi[#Headers],0))","v":{"v":200,"d":"€ 200.00"}},{"$f":"INDEX(Piano_marketing[],MATCH(INDEX(Scostamenti_di_marketing[],ROW()-ROW(Scostamenti_di_marketing[[#Headers],[Nov]]),1),INDEX(Piano_marketing[],,1),0),MATCH(Scostamenti_di_marketing[[#Headers],[Nov]],Piano_marketing[#Headers],0))-INDEX(Costi_di_marketing_effettivi[],MATCH(INDEX(Scostamenti_di_marketing[],ROW()-ROW(Scostamenti_di_marketing[[#Headers],[Nov]]),1),INDEX(Piano_marketing[],,1),0),MATCH(Scostamenti_di_marketing[[#Headers],[Nov]],Costi_di_marketing_effettivi[#Headers],0))","v":{"v":200,"d":"€ 200.00"}},{"$f":"INDEX(Piano_marketing[],MATCH(INDEX(Scostamenti_di_marketing[],ROW()-ROW(Scostamenti_di_marketing[[#Headers],[Dic]]),1),INDEX(Piano_marketing[],,1),0),MATCH(Scostamenti_di_marketing[[#Headers],[Dic]],Piano_marketing[#Headers],0))-INDEX(Costi_di_marketing_effettivi[],MATCH(INDEX(Scostamenti_di_marketing[],ROW()-ROW(Scostamenti_di_marketing[[#Headers],[Dic]]),1),INDEX(Piano_marketing[],,1),0),MATCH(Scostamenti_di_marketing[[#Headers],[Dic]],Costi_di_marketing_effettivi[#Headers],0))","v":{"v":1000,"d":"€ 1,000.00"}},{"$f":"SUM(Scostamenti_di_marketing[[#This Row],[Gen]:[Dic]])","v":{"v":1500,"d":"€ 1,500.00"}}]
[null,"Preparazione materiale",{"$f":"INDEX(Piano_marketing[],MATCH(INDEX(Scostamenti_di_marketing[],ROW()-ROW(Scostamenti_di_marketing[[#Headers],[Gen]]),1),INDEX(Piano_marketing[],,1),0),MATCH(Scostamenti_di_marketing[[#Headers],[Gen]],Piano_marketing[#Headers],0))-INDEX(Costi_di_marketing_effettivi[],MATCH(INDEX(Scostamenti_di_marketing[],ROW()-ROW(Scostamenti_di_marketing[[#Headers],[Gen]]),1),INDEX(Piano_marketing[],,1),0),MATCH(Scostamenti_di_marketing[[#Headers],[Gen]],Costi_di_marketing_effettivi[#Headers],0))","v":{"v":200,"d":"€ 200.00"}},{"$f":"INDEX(Piano_marketing[],MATCH(INDEX(Scostamenti_di_marketing[],ROW()-ROW(Scostamenti_di_marketing[[#Headers],[Feb]]),1),INDEX(Piano_marketing[],,1),0),MATCH(Scostamenti_di_marketing[[#Headers],[Feb]],Piano_marketing[#Headers],0))-INDEX(Costi_di_marketing_effettivi[],MATCH(INDEX(Scostamenti_di_marketing[],ROW()-ROW(Scostamenti_di_marketing[[#Headers],[Feb]]),1),INDEX(Piano_marketing[],,1),0),MATCH(Scostamenti_di_marketing[[#Headers],[Feb]],Costi_di_marketing_effettivi[#Headers],0))","v":{"v":0,"d":"€ 0.00"}},{"$f":"INDEX(Piano_marketing[],MATCH(INDEX(Scostamenti_di_marketing[],ROW()-ROW(Scostamenti_di_marketing[[#Headers],[Mar]]),1),INDEX(Piano_marketing[],,1),0),MATCH(Scostamenti_di_marketing[[#Headers],[Mar]],Piano_marketing[#Headers],0))-INDEX(Costi_di_marketing_effettivi[],MATCH(INDEX(Scostamenti_di_marketing[],ROW()-ROW(Scostamenti_di_marketing[[#Headers],[Mar]]),1),INDEX(Piano_marketing[],,1),0),MATCH(Scostamenti_di_marketing[[#Headers],[Mar]],Costi_di_marketing_effettivi[#Headers],0))","v":{"v":0,"d":"€ 0.00"}},{"$f":"INDEX(Piano_marketing[],MATCH(INDEX(Scostamenti_di_marketing[],ROW()-ROW(Scostamenti_di_marketing[[#Headers],[Apr]]),1),INDEX(Piano_marketing[],,1),0),MATCH(Scostamenti_di_marketing[[#Headers],[Apr]],Piano_marketing[#Headers],0))-INDEX(Costi_di_marketing_effettivi[],MATCH(INDEX(Scostamenti_di_marketing[],ROW()-ROW(Scostamenti_di_marketing[[#Headers],[Apr]]),1),INDEX(Piano_marketing[],,1),0),MATCH(Scostamenti_di_marketing[[#Headers],[Apr]],Costi_di_marketing_effettivi[#Headers],0))","v":{"v":-500,"d":"-€ 500.00"}},{"$f":"INDEX(Piano_marketing[],MATCH(INDEX(Scostamenti_di_marketing[],ROW()-ROW(Scostamenti_di_marketing[[#Headers],[Mag]]),1),INDEX(Piano_marketing[],,1),0),MATCH(Scostamenti_di_marketing[[#Headers],[Mag]],Piano_marketing[#Headers],0))-INDEX(Costi_di_marketing_effettivi[],MATCH(INDEX(Scostamenti_di_marketing[],ROW()-ROW(Scostamenti_di_marketing[[#Headers],[Mag]]),1),INDEX(Piano_marketing[],,1),0),MATCH(Scostamenti_di_marketing[[#Headers],[Mag]],Costi_di_marketing_effettivi[#Headers],0))","v":{"v":0,"d":"€ 0.00"}},{"$f":"INDEX(Piano_marketing[],MATCH(INDEX(Scostamenti_di_marketing[],ROW()-ROW(Scostamenti_di_marketing[[#Headers],[Giu]]),1),INDEX(Piano_marketing[],,1),0),MATCH(Scostamenti_di_marketing[[#Headers],[Giu]],Piano_marketing[#Headers],0))-INDEX(Costi_di_marketing_effettivi[],MATCH(INDEX(Scostamenti_di_marketing[],ROW()-ROW(Scostamenti_di_marketing[[#Headers],[Giu]]),1),INDEX(Piano_marketing[],,1),0),MATCH(Scostamenti_di_marketing[[#Headers],[Giu]],Costi_di_marketing_effettivi[#Headers],0))","v":{"v":0,"d":"€ 0.00"}},{"$f":"INDEX(Piano_marketing[],MATCH(INDEX(Scostamenti_di_marketing[],ROW()-ROW(Scostamenti_di_marketing[[#Headers],[Lug]]),1),INDEX(Piano_marketing[],,1),0),MATCH(Scostamenti_di_marketing[[#Headers],[Lug]],Piano_marketing[#Headers],0))-INDEX(Costi_di_marketing_effettivi[],MATCH(INDEX(Scostamenti_di_marketing[],ROW()-ROW(Scostamenti_di_marketing[[#Headers],[Lug]]),1),INDEX(Piano_marketing[],,1),0),MATCH(Scostamenti_di_marketing[[#Headers],[Lug]],Costi_di_marketing_effettivi[#Headers],0))","v":{"v":5000,"d":"€ 5,000.00"}},{"$f":"INDEX(Piano_marketing[],MATCH(INDEX(Scostamenti_di_marketing[],ROW()-ROW(Scostamenti_di_marketing[[#Headers],[Ago]]),1),INDEX(Piano_marketing[],,1),0),MATCH(Scostamenti_di_marketing[[#Headers],[Ago]],Piano_marketing[#Headers],0))-INDEX(Costi_di_marketing_effettivi[],MATCH(INDEX(Scostamenti_di_marketing[],ROW()-ROW(Scostamenti_di_marketing[[#Headers],[Ago]]),1),INDEX(Piano_marketing[],,1),0),MATCH(Scostamenti_di_marketing[[#Headers],[Ago]],Costi_di_marketing_effettivi[#Headers],0))","v":{"v":0,"d":"€ 0.00"}},{"$f":"INDEX(Piano_marketing[],MATCH(INDEX(Scostamenti_di_marketing[],ROW()-ROW(Scostamenti_di_marketing[[#Headers],[Set]]),1),INDEX(Piano_marketing[],,1),0),MATCH(Scostamenti_di_marketing[[#Headers],[Set]],Piano_marketing[#Headers],0))-INDEX(Costi_di_marketing_effettivi[],MATCH(INDEX(Scostamenti_di_marketing[],ROW()-ROW(Scostamenti_di_marketing[[#Headers],[Set]]),1),INDEX(Piano_marketing[],,1),0),MATCH(Scostamenti_di_marketing[[#Headers],[Set]],Costi_di_marketing_effettivi[#Headers],0))","v":{"v":0,"d":"€ 0.00"}},{"$f":"INDEX(Piano_marketing[],MATCH(INDEX(Scostamenti_di_marketing[],ROW()-ROW(Scostamenti_di_marketing[[#Headers],[Ott]]),1),INDEX(Piano_marketing[],,1),0),MATCH(Scostamenti_di_marketing[[#Headers],[Ott]],Piano_marketing[#Headers],0))-INDEX(Costi_di_marketing_effettivi[],MATCH(INDEX(Scostamenti_di_marketing[],ROW()-ROW(Scostamenti_di_marketing[[#Headers],[Ott]]),1),INDEX(Piano_marketing[],,1),0),MATCH(Scostamenti_di_marketing[[#Headers],[Ott]],Costi_di_marketing_effettivi[#Headers],0))","v":{"v":5000,"d":"€ 5,000.00"}},{"$f":"INDEX(Piano_marketing[],MATCH(INDEX(Scostamenti_di_marketing[],ROW()-ROW(Scostamenti_di_marketing[[#Headers],[Nov]]),1),INDEX(Piano_marketing[],,1),0),MATCH(Scostamenti_di_marketing[[#Headers],[Nov]],Piano_marketing[#Headers],0))-INDEX(Costi_di_marketing_effettivi[],MATCH(INDEX(Scostamenti_di_marketing[],ROW()-ROW(Scostamenti_di_marketing[[#Headers],[Nov]]),1),INDEX(Piano_marketing[],,1),0),MATCH(Scostamenti_di_marketing[[#Headers],[Nov]],Costi_di_marketing_effettivi[#Headers],0))","v":{"v":0,"d":"€ 0.00"}},{"$f":"INDEX(Piano_marketing[],MATCH(INDEX(Scostamenti_di_marketing[],ROW()-ROW(Scostamenti_di_marketing[[#Headers],[Dic]]),1),INDEX(Piano_marketing[],,1),0),MATCH(Scostamenti_di_marketing[[#Headers],[Dic]],Piano_marketing[#Headers],0))-INDEX(Costi_di_marketing_effettivi[],MATCH(INDEX(Scostamenti_di_marketing[],ROW()-ROW(Scostamenti_di_marketing[[#Headers],[Dic]]),1),INDEX(Piano_marketing[],,1),0),MATCH(Scostamenti_di_marketing[[#Headers],[Dic]],Costi_di_marketing_effettivi[#Headers],0))","v":{"v":0,"d":"€ 0.00"}},{"$f":"SUM(Scostamenti_di_marketing[[#This Row],[Gen]:[Dic]])","v":{"v":9700,"d":"€ 9,700.00"}}]
[null,"Stampa materiale",{"$f":"INDEX(Piano_marketing[],MATCH(INDEX(Scostamenti_di_marketing[],ROW()-ROW(Scostamenti_di_marketing[[#Headers],[Gen]]),1),INDEX(Piano_marketing[],,1),0),MATCH(Scostamenti_di_marketing[[#Headers],[Gen]],Piano_marketing[#Headers],0))-INDEX(Costi_di_marketing_effettivi[],MATCH(INDEX(Scostamenti_di_marketing[],ROW()-ROW(Scostamenti_di_marketing[[#Headers],[Gen]]),1),INDEX(Piano_marketing[],,1),0),MATCH(Scostamenti_di_marketing[[#Headers],[Gen]],Costi_di_marketing_effettivi[#Headers],0))","v":{"v":100,"d":"€ 100.00"}},{"$f":"INDEX(Piano_marketing[],MATCH(INDEX(Scostamenti_di_marketing[],ROW()-ROW(Scostamenti_di_marketing[[#Headers],[Feb]]),1),INDEX(Piano_marketing[],,1),0),MATCH(Scostamenti_di_marketing[[#Headers],[Feb]],Piano_marketing[#Headers],0))-INDEX(Costi_di_marketing_effettivi[],MATCH(INDEX(Scostamenti_di_marketing[],ROW()-ROW(Scostamenti_di_marketing[[#Headers],[Feb]]),1),INDEX(Piano_marketing[],,1),0),MATCH(Scostamenti_di_marketing[[#Headers],[Feb]],Costi_di_marketing_effettivi[#Headers],0))","v":{"v":-300,"d":"-€ 300.00"}},{"$f":"INDEX(Piano_marketing[],MATCH(INDEX(Scostamenti_di_marketing[],ROW()-ROW(Scostamenti_di_marketing[[#Headers],[Mar]]),1),INDEX(Piano_marketing[],,1),0),MATCH(Scostamenti_di_marketing[[#Headers],[Mar]],Piano_marketing[#Headers],0))-INDEX(Costi_di_marketing_effettivi[],MATCH(INDEX(Scostamenti_di_marketing[],ROW()-ROW(Scostamenti_di_marketing[[#Headers],[Mar]]),1),INDEX(Piano_marketing[],,1),0),MATCH(Scostamenti_di_marketing[[#Headers],[Mar]],Costi_di_marketing_effettivi[#Headers],0))","v":{"v":100,"d":"€ 100.00"}},{"$f":"INDEX(Piano_marketing[],MATCH(INDEX(Scostamenti_di_marketing[],ROW()-ROW(Scostamenti_di_marketing[[#Headers],[Apr]]),1),INDEX(Piano_marketing[],,1),0),MATCH(Scostamenti_di_marketing[[#Headers],[Apr]],Piano_marketing[#Headers],0))-INDEX(Costi_di_marketing_effettivi[],MATCH(INDEX(Scostamenti_di_marketing[],ROW()-ROW(Scostamenti_di_marketing[[#Headers],[Apr]]),1),INDEX(Piano_marketing[],,1),0),MATCH(Scostamenti_di_marketing[[#Headers],[Apr]],Costi_di_marketing_effettivi[#Headers],0))","v":{"v":100,"d":"€ 100.00"}},{"$f":"INDEX(Piano_marketing[],MATCH(INDEX(Scostamenti_di_marketing[],ROW()-ROW(Scostamenti_di_marketing[[#Headers],[Mag]]),1),INDEX(Piano_marketing[],,1),0),MATCH(Scostamenti_di_marketing[[#Headers],[Mag]],Piano_marketing[#Headers],0))-INDEX(Costi_di_marketing_effettivi[],MATCH(INDEX(Scostamenti_di_marketing[],ROW()-ROW(Scostamenti_di_marketing[[#Headers],[Mag]]),1),INDEX(Piano_marketing[],,1),0),MATCH(Scostamenti_di_marketing[[#Headers],[Mag]],Costi_di_marketing_effettivi[#Headers],0))","v":{"v":-400,"d":"-€ 400.00"}},{"$f":"INDEX(Piano_marketing[],MATCH(INDEX(Scostamenti_di_marketing[],ROW()-ROW(Scostamenti_di_marketing[[#Headers],[Giu]]),1),INDEX(Piano_marketing[],,1),0),MATCH(Scostamenti_di_marketing[[#Headers],[Giu]],Piano_marketing[#Headers],0))-INDEX(Costi_di_marketing_effettivi[],MATCH(INDEX(Scostamenti_di_marketing[],ROW()-ROW(Scostamenti_di_marketing[[#Headers],[Giu]]),1),INDEX(Piano_marketing[],,1),0),MATCH(Scostamenti_di_marketing[[#Headers],[Giu]],Costi_di_marketing_effettivi[#Headers],0))","v":{"v":20,"d":"€ 20.00"}},{"$f":"INDEX(Piano_marketing[],MATCH(INDEX(Scostamenti_di_marketing[],ROW()-ROW(Scostamenti_di_marketing[[#Headers],[Lug]]),1),INDEX(Piano_marketing[],,1),0),MATCH(Scostamenti_di_marketing[[#Headers],[Lug]],Piano_marketing[#Headers],0))-INDEX(Costi_di_marketing_effettivi[],MATCH(INDEX(Scostamenti_di_marketing[],ROW()-ROW(Scostamenti_di_marketing[[#Headers],[Lug]]),1),INDEX(Piano_marketing[],,1),0),MATCH(Scostamenti_di_marketing[[#Headers],[Lug]],Costi_di_marketing_effettivi[#Headers],0))","v":{"v":200,"d":"€ 200.00"}},{"$f":"INDEX(Piano_marketing[],MATCH(INDEX(Scostamenti_di_marketing[],ROW()-ROW(Scostamenti_di_marketing[[#Headers],[Ago]]),1),INDEX(Piano_marketing[],,1),0),MATCH(Scostamenti_di_marketing[[#Headers],[Ago]],Piano_marketing[#Headers],0))-INDEX(Costi_di_marketing_effettivi[],MATCH(INDEX(Scostamenti_di_marketing[],ROW()-ROW(Scostamenti_di_marketing[[#Headers],[Ago]]),1),INDEX(Piano_marketing[],,1),0),MATCH(Scostamenti_di_marketing[[#Headers],[Ago]],Costi_di_marketing_effettivi[#Headers],0))","v":{"v":200,"d":"€ 200.00"}},{"$f":"INDEX(Piano_marketing[],MATCH(INDEX(Scostamenti_di_marketing[],ROW()-ROW(Scostamenti_di_marketing[[#Headers],[Set]]),1),INDEX(Piano_marketing[],,1),0),MATCH(Scostamenti_di_marketing[[#Headers],[Set]],Piano_marketing[#Headers],0))-INDEX(Costi_di_marketing_effettivi[],MATCH(INDEX(Scostamenti_di_marketing[],ROW()-ROW(Scostamenti_di_marketing[[#Headers],[Set]]),1),INDEX(Piano_marketing[],,1),0),MATCH(Scostamenti_di_marketing[[#Headers],[Set]],Costi_di_marketing_effettivi[#Headers],0))","v":{"v":200,"d":"€ 200.00"}},{"$f":"INDEX(Piano_marketing[],MATCH(INDEX(Scostamenti_di_marketing[],ROW()-ROW(Scostamenti_di_marketing[[#Headers],[Ott]]),1),INDEX(Piano_marketing[],,1),0),MATCH(Scostamenti_di_marketing[[#Headers],[Ott]],Piano_marketing[#Headers],0))-INDEX(Costi_di_marketing_effettivi[],MATCH(INDEX(Scostamenti_di_marketing[],ROW()-ROW(Scostamenti_di_marketing[[#Headers],[Ott]]),1),INDEX(Piano_marketing[],,1),0),MATCH(Scostamenti_di_marketing[[#Headers],[Ott]],Costi_di_marketing_effettivi[#Headers],0))","v":{"v":200,"d":"€ 200.00"}},{"$f":"INDEX(Piano_marketing[],MATCH(INDEX(Scostamenti_di_marketing[],ROW()-ROW(Scostamenti_di_marketing[[#Headers],[Nov]]),1),INDEX(Piano_marketing[],,1),0),MATCH(Scostamenti_di_marketing[[#Headers],[Nov]],Piano_marketing[#Headers],0))-INDEX(Costi_di_marketing_effettivi[],MATCH(INDEX(Scostamenti_di_marketing[],ROW()-ROW(Scostamenti_di_marketing[[#Headers],[Nov]]),1),INDEX(Piano_marketing[],,1),0),MATCH(Scostamenti_di_marketing[[#Headers],[Nov]],Costi_di_marketing_effettivi[#Headers],0))","v":{"v":200,"d":"€ 200.00"}},{"$f":"INDEX(Piano_marketing[],MATCH(INDEX(Scostamenti_di_marketing[],ROW()-ROW(Scostamenti_di_marketing[[#Headers],[Dic]]),1),INDEX(Piano_marketing[],,1),0),MATCH(Scostamenti_di_marketing[[#Headers],[Dic]],Piano_marketing[#Headers],0))-INDEX(Costi_di_marketing_effettivi[],MATCH(INDEX(Scostamenti_di_marketing[],ROW()-ROW(Scostamenti_di_marketing[[#Headers],[Dic]]),1),INDEX(Piano_marketing[],,1),0),MATCH(Scostamenti_di_marketing[[#Headers],[Dic]],Costi_di_marketing_effettivi[#Headers],0))","v":{"v":200,"d":"€ 200.00"}},{"$f":"SUM(Scostamenti_di_marketing[[#This Row],[Gen]:[Dic]])","v":{"v":820,"d":"€ 820.00"}}]
[null,"Eventi di marketing",{"$f":"INDEX(Piano_marketing[],MATCH(INDEX(Scostamenti_di_marketing[],ROW()-ROW(Scostamenti_di_marketing[[#Headers],[Gen]]),1),INDEX(Piano_marketing[],,1),0),MATCH(Scostamenti_di_marketing[[#Headers],[Gen]],Piano_marketing[#Headers],0))-INDEX(Costi_di_marketing_effettivi[],MATCH(INDEX(Scostamenti_di_marketing[],ROW()-ROW(Scostamenti_di_marketing[[#Headers],[Gen]]),1),INDEX(Piano_marketing[],,1),0),MATCH(Scostamenti_di_marketing[[#Headers],[Gen]],Costi_di_marketing_effettivi[#Headers],0))","v":{"v":200,"d":"€ 200.00"}},{"$f":"INDEX(Piano_marketing[],MATCH(INDEX(Scostamenti_di_marketing[],ROW()-ROW(Scostamenti_di_marketing[[#Headers],[Feb]]),1),INDEX(Piano_marketing[],,1),0),MATCH(Scostamenti_di_marketing[[#Headers],[Feb]],Piano_marketing[#Headers],0))-INDEX(Costi_di_marketing_effettivi[],MATCH(INDEX(Scostamenti_di_marketing[],ROW()-ROW(Scostamenti_di_marketing[[#Headers],[Feb]]),1),INDEX(Piano_marketing[],,1),0),MATCH(Scostamenti_di_marketing[[#Headers],[Feb]],Costi_di_marketing_effettivi[#Headers],0))","v":{"v":-200,"d":"-€ 200.00"}},{"$f":"INDEX(Piano_marketing[],MATCH(INDEX(Scostamenti_di_marketing[],ROW()-ROW(Scostamenti_di_marketing[[#Headers],[Mar]]),1),INDEX(Piano_marketing[],,1),0),MATCH(Scostamenti_di_marketing[[#Headers],[Mar]],Piano_marketing[#Headers],0))-INDEX(Costi_di_marketing_effettivi[],MATCH(INDEX(Scostamenti_di_marketing[],ROW()-ROW(Scostamenti_di_marketing[[#Headers],[Mar]]),1),INDEX(Piano_marketing[],,1),0),MATCH(Scostamenti_di_marketing[[#Headers],[Mar]],Costi_di_marketing_effettivi[#Headers],0))","v":{"v":-200,"d":"-€ 200.00"}},{"$f":"INDEX(Piano_marketing[],MATCH(INDEX(Scostamenti_di_marketing[],ROW()-ROW(Scostamenti_di_marketing[[#Headers],[Apr]]),1),INDEX(Piano_marketing[],,1),0),MATCH(Scostamenti_di_marketing[[#Headers],[Apr]],Piano_marketing[#Headers],0))-INDEX(Costi_di_marketing_effettivi[],MATCH(INDEX(Scostamenti_di_marketing[],ROW()-ROW(Scostamenti_di_marketing[[#Headers],[Apr]]),1),INDEX(Piano_marketing[],,1),0),MATCH(Scostamenti_di_marketing[[#Headers],[Apr]],Costi_di_marketing_effettivi[#Headers],0))","v":{"v":300,"d":"€ 300.00"}},{"$f":"INDEX(Piano_marketing[],MATCH(INDEX(Scostamenti_di_marketing[],ROW()-ROW(Scostamenti_di_marketing[[#Headers],[Mag]]),1),INDEX(Piano_marketing[],,1),0),MATCH(Scostamenti_di_marketing[[#Headers],[Mag]],Piano_marketing[#Headers],0))-INDEX(Costi_di_marketing_effettivi[],MATCH(INDEX(Scostamenti_di_marketing[],ROW()-ROW(Scostamenti_di_marketing[[#Headers],[Mag]]),1),INDEX(Piano_marketing[],,1),0),MATCH(Scostamenti_di_marketing[[#Headers],[Mag]],Costi_di_marketing_effettivi[#Headers],0))","v":{"v":500,"d":"€ 500.00"}},{"$f":"INDEX(Piano_marketing[],MATCH(INDEX(Scostamenti_di_marketing[],ROW()-ROW(Scostamenti_di_marketing[[#Headers],[Giu]]),1),INDEX(Piano_marketing[],,1),0),MATCH(Scostamenti_di_marketing[[#Headers],[Giu]],Piano_marketing[#Headers],0))-INDEX(Costi_di_marketing_effettivi[],MATCH(INDEX(Scostamenti_di_marketing[],ROW()-ROW(Scostamenti_di_marketing[[#Headers],[Giu]]),1),INDEX(Piano_marketing[],,1),0),MATCH(Scostamenti_di_marketing[[#Headers],[Giu]],Costi_di_marketing_effettivi[#Headers],0))","v":{"v":-300,"d":"-€ 300.00"}},{"$f":"INDEX(Piano_marketing[],MATCH(INDEX(Scostamenti_di_marketing[],ROW()-ROW(Scostamenti_di_marketing[[#Headers],[Lug]]),1),INDEX(Piano_marketing[],,1),0),MATCH(Scostamenti_di_marketing[[#Headers],[Lug]],Piano_marketing[#Headers],0))-INDEX(Costi_di_marketing_effettivi[],MATCH(INDEX(Scostamenti_di_marketing[],ROW()-ROW(Scostamenti_di_marketing[[#Headers],[Lug]]),1),INDEX(Piano_marketing[],,1),0),MATCH(Scostamenti_di_marketing[[#Headers],[Lug]],Costi_di_marketing_effettivi[#Headers],0))","v":{"v":2000,"d":"€ 2,000.00"}},{"$f":"INDEX(Piano_marketing[],MATCH(INDEX(Scostamenti_di_marketing[],ROW()-ROW(Scostamenti_di_marketing[[#Headers],[Ago]]),1),INDEX(Piano_marketing[],,1),0),MATCH(Scostamenti_di_marketing[[#Headers],[Ago]],Piano_marketing[#Headers],0))-INDEX(Costi_di_marketing_effettivi[],MATCH(INDEX(Scostamenti_di_marketing[],ROW()-ROW(Scostamenti_di_marketing[[#Headers],[Ago]]),1),INDEX(Piano_marketing[],,1),0),MATCH(Scostamenti_di_marketing[[#Headers],[Ago]],Costi_di_marketing_effettivi[#Headers],0))","v":{"v":5000,"d":"€ 5,000.00"}},{"$f":"INDEX(Piano_marketing[],MATCH(INDEX(Scostamenti_di_marketing[],ROW()-ROW(Scostamenti_di_marketing[[#Headers],[Set]]),1),INDEX(Piano_marketing[],,1),0),MATCH(Scostamenti_di_marketing[[#Headers],[Set]],Piano_marketing[#Headers],0))-INDEX(Costi_di_marketing_effettivi[],MATCH(INDEX(Scostamenti_di_marketing[],ROW()-ROW(Scostamenti_di_marketing[[#Headers],[Set]]),1),INDEX(Piano_marketing[],,1),0),MATCH(Scostamenti_di_marketing[[#Headers],[Set]],Costi_di_marketing_effettivi[#Headers],0))","v":{"v":2000,"d":"€ 2,000.00"}},{"$f":"INDEX(Piano_marketing[],MATCH(INDEX(Scostamenti_di_marketing[],ROW()-ROW(Scostamenti_di_marketing[[#Headers],[Ott]]),1),INDEX(Piano_marketing[],,1),0),MATCH(Scostamenti_di_marketing[[#Headers],[Ott]],Piano_marketing[#Headers],0))-INDEX(Costi_di_marketing_effettivi[],MATCH(INDEX(Scostamenti_di_marketing[],ROW()-ROW(Scostamenti_di_marketing[[#Headers],[Ott]]),1),INDEX(Piano_marketing[],,1),0),MATCH(Scostamenti_di_marketing[[#Headers],[Ott]],Costi_di_marketing_effettivi[#Headers],0))","v":{"v":2000,"d":"€ 2,000.00"}},{"$f":"INDEX(Piano_marketing[],MATCH(INDEX(Scostamenti_di_marketing[],ROW()-ROW(Scostamenti_di_marketing[[#Headers],[Nov]]),1),INDEX(Piano_marketing[],,1),0),MATCH(Scostamenti_di_marketing[[#Headers],[Nov]],Piano_marketing[#Headers],0))-INDEX(Costi_di_marketing_effettivi[],MATCH(INDEX(Scostamenti_di_marketing[],ROW()-ROW(Scostamenti_di_marketing[[#Headers],[Nov]]),1),INDEX(Piano_marketing[],,1),0),MATCH(Scostamenti_di_marketing[[#Headers],[Nov]],Costi_di_marketing_effettivi[#Headers],0))","v":{"v":2000,"d":"€ 2,000.00"}},{"$f":"INDEX(Piano_marketing[],MATCH(INDEX(Scostamenti_di_marketing[],ROW()-ROW(Scostamenti_di_marketing[[#Headers],[Dic]]),1),INDEX(Piano_marketing[],,1),0),MATCH(Scostamenti_di_marketing[[#Headers],[Dic]],Piano_marketing[#Headers],0))-INDEX(Costi_di_marketing_effettivi[],MATCH(INDEX(Scostamenti_di_marketing[],ROW()-ROW(Scostamenti_di_marketing[[#Headers],[Dic]]),1),INDEX(Piano_marketing[],,1),0),MATCH(Scostamenti_di_marketing[[#Headers],[Dic]],Costi_di_marketing_effettivi[#Headers],0))","v":{"v":5000,"d":"€ 5,000.00"}},{"$f":"SUM(Scostamenti_di_marketing[[#This Row],[Gen]:[Dic]])","v":{"v":18300,"d":"€ 18,300.00"}}]
[null,"Spese varie",{"$f":"INDEX(Piano_marketing[],MATCH(INDEX(Scostamenti_di_marketing[],ROW()-ROW(Scostamenti_di_marketing[[#Headers],[Gen]]),1),INDEX(Piano_marketing[],,1),0),MATCH(Scostamenti_di_marketing[[#Headers],[Gen]],Piano_marketing[#Headers],0))-INDEX(Costi_di_marketing_effettivi[],MATCH(INDEX(Scostamenti_di_marketing[],ROW()-ROW(Scostamenti_di_marketing[[#Headers],[Gen]]),1),INDEX(Piano_marketing[],,1),0),MATCH(Scostamenti_di_marketing[[#Headers],[Gen]],Costi_di_marketing_effettivi[#Headers],0))","v":{"v":55,"d":"€ 55.00"}},{"$f":"INDEX(Piano_marketing[],MATCH(INDEX(Scostamenti_di_marketing[],ROW()-ROW(Scostamenti_di_marketing[[#Headers],[Feb]]),1),INDEX(Piano_marketing[],,1),0),MATCH(Scostamenti_di_marketing[[#Headers],[Feb]],Piano_marketing[#Headers],0))-INDEX(Costi_di_marketing_effettivi[],MATCH(INDEX(Scostamenti_di_marketing[],ROW()-ROW(Scostamenti_di_marketing[[#Headers],[Feb]]),1),INDEX(Piano_marketing[],,1),0),MATCH(Scostamenti_di_marketing[[#Headers],[Feb]],Costi_di_marketing_effettivi[#Headers],0))","v":{"v":44,"d":"€ 44.00"}},{"$f":"INDEX(Piano_marketing[],MATCH(INDEX(Scostamenti_di_marketing[],ROW()-ROW(Scostamenti_di_marketing[[#Headers],[Mar]]),1),INDEX(Piano_marketing[],,1),0),MATCH(Scostamenti_di_marketing[[#Headers],[Mar]],Piano_marketing[#Headers],0))-INDEX(Costi_di_marketing_effettivi[],MATCH(INDEX(Scostamenti_di_marketing[],ROW()-ROW(Scostamenti_di_marketing[[#Headers],[Mar]]),1),INDEX(Piano_marketing[],,1),0),MATCH(Scostamenti_di_marketing[[#Headers],[Mar]],Costi_di_marketing_effettivi[#Headers],0))","v":{"v":77,"d":"€ 77.00"}},{"$f":"INDEX(Piano_marketing[],MATCH(INDEX(Scostamenti_di_marketing[],ROW()-ROW(Scostamenti_di_marketing[[#Headers],[Apr]]),1),INDEX(Piano_marketing[],,1),0),MATCH(Scostamenti_di_marketing[[#Headers],[Apr]],Piano_marketing[#Headers],0))-INDEX(Costi_di_marketing_effettivi[],MATCH(INDEX(Scostamenti_di_marketing[],ROW()-ROW(Scostamenti_di_marketing[[#Headers],[Apr]]),1),INDEX(Piano_marketing[],,1),0),MATCH(Scostamenti_di_marketing[[#Headers],[Apr]],Costi_di_marketing_effettivi[#Headers],0))","v":{"v":-23,"d":"-€ 23.00"}},{"$f":"INDEX(Piano_marketing[],MATCH(INDEX(Scostamenti_di_marketing[],ROW()-ROW(Scostamenti_di_marketing[[#Headers],[Mag]]),1),INDEX(Piano_marketing[],,1),0),MATCH(Scostamenti_di_marketing[[#Headers],[Mag]],Piano_marketing[#Headers],0))-INDEX(Costi_di_marketing_effettivi[],MATCH(INDEX(Scostamenti_di_marketing[],ROW()-ROW(Scostamenti_di_marketing[[#Headers],[Mag]]),1),INDEX(Piano_marketing[],,1),0),MATCH(Scostamenti_di_marketing[[#Headers],[Mag]],Costi_di_marketing_effettivi[#Headers],0))","v":{"v":13,"d":"€ 13.00"}},{"$f":"INDEX(Piano_marketing[],MATCH(INDEX(Scostamenti_di_marketing[],ROW()-ROW(Scostamenti_di_marketing[[#Headers],[Giu]]),1),INDEX(Piano_marketing[],,1),0),MATCH(Scostamenti_di_marketing[[#Headers],[Giu]],Piano_marketing[#Headers],0))-INDEX(Costi_di_marketing_effettivi[],MATCH(INDEX(Scostamenti_di_marketing[],ROW()-ROW(Scostamenti_di_marketing[[#Headers],[Giu]]),1),INDEX(Piano_marketing[],,1),0),MATCH(Scostamenti_di_marketing[[#Headers],[Giu]],Costi_di_marketing_effettivi[#Headers],0))","v":{"v":-45,"d":"-€ 45.00"}},{"$f":"INDEX(Piano_marketing[],MATCH(INDEX(Scostamenti_di_marketing[],ROW()-ROW(Scostamenti_di_marketing[[#Headers],[Lug]]),1),INDEX(Piano_marketing[],,1),0),MATCH(Scostamenti_di_marketing[[#Headers],[Lug]],Piano_marketing[#Headers],0))-INDEX(Costi_di_marketing_effettivi[],MATCH(INDEX(Scostamenti_di_marketing[],ROW()-ROW(Scostamenti_di_marketing[[#Headers],[Lug]]),1),INDEX(Piano_marketing[],,1),0),MATCH(Scostamenti_di_marketing[[#Headers],[Lug]],Costi_di_marketing_effettivi[#Headers],0))","v":{"v":200,"d":"€ 200.00"}},{"$f":"INDEX(Piano_marketing[],MATCH(INDEX(Scostamenti_di_marketing[],ROW()-ROW(Scostamenti_di_marketing[[#Headers],[Ago]]),1),INDEX(Piano_marketing[],,1),0),MATCH(Scostamenti_di_marketing[[#Headers],[Ago]],Piano_marketing[#Headers],0))-INDEX(Costi_di_marketing_effettivi[],MATCH(INDEX(Scostamenti_di_marketing[],ROW()-ROW(Scostamenti_di_marketing[[#Headers],[Ago]]),1),INDEX(Piano_marketing[],,1),0),MATCH(Scostamenti_di_marketing[[#Headers],[Ago]],Costi_di_marketing_effettivi[#Headers],0))","v":{"v":200,"d":"€ 200.00"}},{"$f":"INDEX(Piano_marketing[],MATCH(INDEX(Scostamenti_di_marketing[],ROW()-ROW(Scostamenti_di_marketing[[#Headers],[Set]]),1),INDEX(Piano_marketing[],,1),0),MATCH(Scostamenti_di_marketing[[#Headers],[Set]],Piano_marketing[#Headers],0))-INDEX(Costi_di_marketing_effettivi[],MATCH(INDEX(Scostamenti_di_marketing[],ROW()-ROW(Scostamenti_di_marketing[[#Headers],[Set]]),1),INDEX(Piano_marketing[],,1),0),MATCH(Scostamenti_di_marketing[[#Headers],[Set]],Costi_di_marketing_effettivi[#Headers],0))","v":{"v":200,"d":"€ 200.00"}},{"$f":"INDEX(Piano_marketing[],MATCH(INDEX(Scostamenti_di_marketing[],ROW()-ROW(Scostamenti_di_marketing[[#Headers],[Ott]]),1),INDEX(Piano_marketing[],,1),0),MATCH(Scostamenti_di_marketing[[#Headers],[Ott]],Piano_marketing[#Headers],0))-INDEX(Costi_di_marketing_effettivi[],MATCH(INDEX(Scostamenti_di_marketing[],ROW()-ROW(Scostamenti_di_marketing[[#Headers],[Ott]]),1),INDEX(Piano_marketing[],,1),0),MATCH(Scostamenti_di_marketing[[#Headers],[Ott]],Costi_di_marketing_effettivi[#Headers],0))","v":{"v":200,"d":"€ 200.00"}},{"$f":"INDEX(Piano_marketing[],MATCH(INDEX(Scostamenti_di_marketing[],ROW()-ROW(Scostamenti_di_marketing[[#Headers],[Nov]]),1),INDEX(Piano_marketing[],,1),0),MATCH(Scostamenti_di_marketing[[#Headers],[Nov]],Piano_marketing[#Headers],0))-INDEX(Costi_di_marketing_effettivi[],MATCH(INDEX(Scostamenti_di_marketing[],ROW()-ROW(Scostamenti_di_marketing[[#Headers],[Nov]]),1),INDEX(Piano_marketing[],,1),0),MATCH(Scostamenti_di_marketing[[#Headers],[Nov]],Costi_di_marketing_effettivi[#Headers],0))","v":{"v":200,"d":"€ 200.00"}},{"$f":"INDEX(Piano_marketing[],MATCH(INDEX(Scostamenti_di_marketing[],ROW()-ROW(Scostamenti_di_marketing[[#Headers],[Dic]]),1),INDEX(Piano_marketing[],,1),0),MATCH(Scostamenti_di_marketing[[#Headers],[Dic]],Piano_marketing[#Headers],0))-INDEX(Costi_di_marketing_effettivi[],MATCH(INDEX(Scostamenti_di_marketing[],ROW()-ROW(Scostamenti_di_marketing[[#Headers],[Dic]]),1),INDEX(Piano_marketing[],,1),0),MATCH(Scostamenti_di_marketing[[#Headers],[Dic]],Costi_di_marketing_effettivi[#Headers],0))","v":{"v":200,"d":"€ 200.00"}},{"$f":"SUM(Scostamenti_di_marketing[[#This Row],[Gen]:[Dic]])","v":{"v":1321,"d":"€ 1,321.00"}}]
[null,"Subtotale",{"$f":"SUBTOTAL(109,Scostamenti_di_marketing[Gen])","v":{"v":555,"d":"€ 555.00"}},{"$f":"SUBTOTAL(109,Scostamenti_di_marketing[Feb])","v":{"v":-456,"d":"-€ 456.00"}},{"$f":"SUBTOTAL(109,Scostamenti_di_marketing[Mar])","v":{"v":-23,"d":"-€ 23.00"}},{"$f":"SUBTOTAL(109,Scostamenti_di_marketing[Apr])","v":{"v":-123,"d":"-€ 123.00"}},{"$f":"SUBTOTAL(109,Scostamenti_di_marketing[Mag])","v":{"v":113,"d":"€ 113.00"}},{"$f":"SUBTOTAL(109,Scostamenti_di_marketing[Giu])","v":{"v":-825,"d":"-€ 825.00"}},{"$f":"SUBTOTAL(109,Scostamenti_di_marketing[Lug])","v":{"v":8100,"d":"€ 8,100.00"}},{"$f":"SUBTOTAL(109,Scostamenti_di_marketing[Ago])","v":{"v":6100,"d":"€ 6,100.00"}},{"$f":"SUBTOTAL(109,Scostamenti_di_marketing[Set])","v":{"v":3100,"d":"€ 3,100.00"}},{"$f":"SUBTOTAL(109,Scostamenti_di_marketing[Ott])","v":{"v":8100,"d":"€ 8,100.00"}},{"$f":"SUBTOTAL(109,Scostamenti_di_marketing[Nov])","v":{"v":3100,"d":"€ 3,100.00"}},{"$f":"SUBTOTAL(109,Scostamenti_di_marketing[Dic])","v":{"v":6900,"d":"€ 6,900.00"}},{"$f":"SUBTOTAL(109,Scostamenti_di_marketing[ANNO])","v":{"v":34641,"d":"€ 34,641.00"}}]
[]
["Lo scostamento in Costi di formazione e di viaggio viene calcolato automaticamente nella tabella Scostamenti di formazione e di viaggio partendo dalla cella a destra. L'istruzione successiva si trova nella cella A35.","Formazione/viaggi","Gen","Feb","Mar","Apr","Mag","Giu","Lug","Ago","Set","Ott","Nov","Dic","ANNO"]
[null,"Corsi di formazione",{"$f":"INDEX(Piano_formazione_e_viaggi[],MATCH(INDEX(Scostamenti_di_formazione_e_di_viaggio[],ROW()-ROW(Scostamenti_di_formazione_e_di_viaggio[[#Headers],[Gen]]),1),INDEX(Piano_formazione_e_viaggi[],,1),0),MATCH(Scostamenti_di_formazione_e_di_viaggio[[#Headers],[Gen]],Piano_formazione_e_viaggi[#Headers],0))-INDEX(Costi_di_formazione_e_di_viaggio_effettivi[],MATCH(INDEX(Scostamenti_di_formazione_e_di_viaggio[],ROW()-ROW(Scostamenti_di_formazione_e_di_viaggio[[#Headers],[Gen]]),1),INDEX(Piano_formazione_e_viaggi[],,1),0),MATCH(Scostamenti_di_formazione_e_di_viaggio[[#Headers],[Gen]],Costi_di_formazione_e_di_viaggio_effettivi[#Headers],0))","v":{"v":400,"d":"€ 400.00"}},{"$f":"INDEX(Piano_formazione_e_viaggi[],MATCH(INDEX(Scostamenti_di_formazione_e_di_viaggio[],ROW()-ROW(Scostamenti_di_formazione_e_di_viaggio[[#Headers],[Feb]]),1),INDEX(Piano_formazione_e_viaggi[],,1),0),MATCH(Scostamenti_di_formazione_e_di_viaggio[[#Headers],[Feb]],Piano_formazione_e_viaggi[#Headers],0))-INDEX(Costi_di_formazione_e_di_viaggio_effettivi[],MATCH(INDEX(Scostamenti_di_formazione_e_di_viaggio[],ROW()-ROW(Scostamenti_di_formazione_e_di_viaggio[[#Headers],[Feb]]),1),INDEX(Piano_formazione_e_viaggi[],,1),0),MATCH(Scostamenti_di_formazione_e_di_viaggio[[#Headers],[Feb]],Costi_di_formazione_e_di_viaggio_effettivi[#Headers],0))","v":{"v":-400,"d":"-€ 400.00"}},{"$f":"INDEX(Piano_formazione_e_viaggi[],MATCH(INDEX(Scostamenti_di_formazione_e_di_viaggio[],ROW()-ROW(Scostamenti_di_formazione_e_di_viaggio[[#Headers],[Mar]]),1),INDEX(Piano_formazione_e_viaggi[],,1),0),MATCH(Scostamenti_di_formazione_e_di_viaggio[[#Headers],[Mar]],Piano_formazione_e_viaggi[#Headers],0))-INDEX(Costi_di_formazione_e_di_viaggio_effettivi[],MATCH(INDEX(Scostamenti_di_formazione_e_di_viaggio[],ROW()-ROW(Scostamenti_di_formazione_e_di_viaggio[[#Headers],[Mar]]),1),INDEX(Piano_formazione_e_viaggi[],,1),0),MATCH(Scostamenti_di_formazione_e_di_viaggio[[#Headers],[Mar]],Costi_di_formazione_e_di_viaggio_effettivi[#Headers],0))","v":{"v":600,"d":"€ 600.00"}},{"$f":"INDEX(Piano_formazione_e_viaggi[],MATCH(INDEX(Scostamenti_di_formazione_e_di_viaggio[],ROW()-ROW(Scostamenti_di_formazione_e_di_viaggio[[#Headers],[Apr]]),1),INDEX(Piano_formazione_e_viaggi[],,1),0),MATCH(Scostamenti_di_formazione_e_di_viaggio[[#Headers],[Apr]],Piano_formazione_e_viaggi[#Headers],0))-INDEX(Costi_di_formazione_e_di_viaggio_effettivi[],MATCH(INDEX(Scostamenti_di_formazione_e_di_viaggio[],ROW()-ROW(Scostamenti_di_formazione_e_di_viaggio[[#Headers],[Apr]]),1),INDEX(Piano_formazione_e_viaggi[],,1),0),MATCH(Scostamenti_di_formazione_e_di_viaggio[[#Headers],[Apr]],Costi_di_formazione_e_di_viaggio_effettivi[#Headers],0))","v":{"v":400,"d":"€ 400.00"}},{"$f":"INDEX(Piano_formazione_e_viaggi[],MATCH(INDEX(Scostamenti_di_formazione_e_di_viaggio[],ROW()-ROW(Scostamenti_di_formazione_e_di_viaggio[[#Headers],[Mag]]),1),INDEX(Piano_formazione_e_viaggi[],,1),0),MATCH(Scostamenti_di_formazione_e_di_viaggio[[#Headers],[Mag]],Piano_formazione_e_viaggi[#Headers],0))-INDEX(Costi_di_formazione_e_di_viaggio_effettivi[],MATCH(INDEX(Scostamenti_di_formazione_e_di_viaggio[],ROW()-ROW(Scostamenti_di_formazione_e_di_viaggio[[#Headers],[Mag]]),1),INDEX(Piano_formazione_e_viaggi[],,1),0),MATCH(Scostamenti_di_formazione_e_di_viaggio[[#Headers],[Mag]],Costi_di_formazione_e_di_viaggio_effettivi[#Headers],0))","v":{"v":800,"d":"€ 800.00"}},{"$f":"INDEX(Piano_formazione_e_viaggi[],MATCH(INDEX(Scostamenti_di_formazione_e_di_viaggio[],ROW()-ROW(Scostamenti_di_formazione_e_di_viaggio[[#Headers],[Giu]]),1),INDEX(Piano_formazione_e_viaggi[],,1),0),MATCH(Scostamenti_di_formazione_e_di_viaggio[[#Headers],[Giu]],Piano_formazione_e_viaggi[#Headers],0))-INDEX(Costi_di_formazione_e_di_viaggio_effettivi[],MATCH(INDEX(Scostamenti_di_formazione_e_di_viaggio[],ROW()-ROW(Scostamenti_di_formazione_e_di_viaggio[[#Headers],[Giu]]),1),INDEX(Piano_formazione_e_viaggi[],,1),0),MATCH(Scostamenti_di_formazione_e_di_viaggio[[#Headers],[Giu]],Costi_di_formazione_e_di_viaggio_effettivi[#Headers],0))","v":{"v":-800,"d":"-€ 800.00"}},{"$f":"INDEX(Piano_formazione_e_viaggi[],MATCH(INDEX(Scostamenti_di_formazione_e_di_viaggio[],ROW()-ROW(Scostamenti_di_formazione_e_di_viaggio[[#Headers],[Lug]]),1),INDEX(Piano_formazione_e_viaggi[],,1),0),MATCH(Scostamenti_di_formazione_e_di_viaggio[[#Headers],[Lug]],Piano_formazione_e_viaggi[#Headers],0))-INDEX(Costi_di_formazione_e_di_viaggio_effettivi[],MATCH(INDEX(Scostamenti_di_formazione_e_di_viaggio[],ROW()-ROW(Scostamenti_di_formazione_e_di_viaggio[[#Headers],[Lug]]),1),INDEX(Piano_formazione_e_viaggi[],,1),0),MATCH(Scostamenti_di_formazione_e_di_viaggio[[#Headers],[Lug]],Costi_di_formazione_e_di_viaggio_effettivi[#Headers],0))","v":{"v":2000,"d":"€ 2,000.00"}},{"$f":"INDEX(Piano_formazione_e_viaggi[],MATCH(INDEX(Scostamenti_di_formazione_e_di_viaggio[],ROW()-ROW(Scostamenti_di_formazione_e_di_viaggio[[#Headers],[Ago]]),1),INDEX(Piano_formazione_e_viaggi[],,1),0),MATCH(Scostamenti_di_formazione_e_di_viaggio[[#Headers],[Ago]],Piano_formazione_e_viaggi[#Headers],0))-INDEX(Costi_di_formazione_e_di_viaggio_effettivi[],MATCH(INDEX(Scostamenti_di_formazione_e_di_viaggio[],ROW()-ROW(Scostamenti_di_formazione_e_di_viaggio[[#Headers],[Ago]]),1),INDEX(Piano_formazione_e_viaggi[],,1),0),MATCH(Scostamenti_di_formazione_e_di_viaggio[[#Headers],[Ago]],Costi_di_formazione_e_di_viaggio_effettivi[#Headers],0))","v":{"v":2000,"d":"€ 2,000.00"}},{"$f":"INDEX(Piano_formazione_e_viaggi[],MATCH(INDEX(Scostamenti_di_formazione_e_di_viaggio[],ROW()-ROW(Scostamenti_di_formazione_e_di_viaggio[[#Headers],[Set]]),1),INDEX(Piano_formazione_e_viaggi[],,1),0),MATCH(Scostamenti_di_formazione_e_di_viaggio[[#Headers],[Set]],Piano_formazione_e_viaggi[#Headers],0))-INDEX(Costi_di_formazione_e_di_viaggio_effettivi[],MATCH(INDEX(Scostamenti_di_formazione_e_di_viaggio[],ROW()-ROW(Scostamenti_di_formazione_e_di_viaggio[[#Headers],[Set]]),1),INDEX(Piano_formazione_e_viaggi[],,1),0),MATCH(Scostamenti_di_formazione_e_di_viaggio[[#Headers],[Set]],Costi_di_formazione_e_di_viaggio_effettivi[#Headers],0))","v":{"v":2000,"d":"€ 2,000.00"}},{"$f":"INDEX(Piano_formazione_e_viaggi[],MATCH(INDEX(Scostamenti_di_formazione_e_di_viaggio[],ROW()-ROW(Scostamenti_di_formazione_e_di_viaggio[[#Headers],[Ott]]),1),INDEX(Piano_formazione_e_viaggi[],,1),0),MATCH(Scostamenti_di_formazione_e_di_viaggio[[#Headers],[Ott]],Piano_formazione_e_viaggi[#Headers],0))-INDEX(Costi_di_formazione_e_di_viaggio_effettivi[],MATCH(INDEX(Scostamenti_di_formazione_e_di_viaggio[],ROW()-ROW(Scostamenti_di_formazione_e_di_viaggio[[#Headers],[Ott]]),1),INDEX(Piano_formazione_e_viaggi[],,1),0),MATCH(Scostamenti_di_formazione_e_di_viaggio[[#Headers],[Ott]],Costi_di_formazione_e_di_viaggio_effettivi[#Headers],0))","v":{"v":2000,"d":"€ 2,000.00"}},{"$f":"INDEX(Piano_formazione_e_viaggi[],MATCH(INDEX(Scostamenti_di_formazione_e_di_viaggio[],ROW()-ROW(Scostamenti_di_formazione_e_di_viaggio[[#Headers],[Nov]]),1),INDEX(Piano_formazione_e_viaggi[],,1),0),MATCH(Scostamenti_di_formazione_e_di_viaggio[[#Headers],[Nov]],Piano_formazione_e_viaggi[#Headers],0))-INDEX(Costi_di_formazione_e_di_viaggio_effettivi[],MATCH(INDEX(Scostamenti_di_formazione_e_di_viaggio[],ROW()-ROW(Scostamenti_di_formazione_e_di_viaggio[[#Headers],[Nov]]),1),INDEX(Piano_formazione_e_viaggi[],,1),0),MATCH(Scostamenti_di_formazione_e_di_viaggio[[#Headers],[Nov]],Costi_di_formazione_e_di_viaggio_effettivi[#Headers],0))","v":{"v":2000,"d":"€ 2,000.00"}},{"$f":"INDEX(Piano_formazione_e_viaggi[],MATCH(INDEX(Scostamenti_di_formazione_e_di_viaggio[],ROW()-ROW(Scostamenti_di_formazione_e_di_viaggio[[#Headers],[Dic]]),1),INDEX(Piano_formazione_e_viaggi[],,1),0),MATCH(Scostamenti_di_formazione_e_di_viaggio[[#Headers],[Dic]],Piano_formazione_e_viaggi[#Headers],0))-INDEX(Costi_di_formazione_e_di_viaggio_effettivi[],MATCH(INDEX(Scostamenti_di_formazione_e_di_viaggio[],ROW()-ROW(Scostamenti_di_formazione_e_di_viaggio[[#Headers],[Dic]]),1),INDEX(Piano_formazione_e_viaggi[],,1),0),MATCH(Scostamenti_di_formazione_e_di_viaggio[[#Headers],[Dic]],Costi_di_formazione_e_di_viaggio_effettivi[#Headers],0))","v":{"v":2000,"d":"€ 2,000.00"}},{"$f":"SUM(Scostamenti_di_formazione_e_di_viaggio[[#This Row],[Gen]:[Dic]])","v":{"v":13000,"d":"€ 13,000.00"}}]
[null,"Costi di viaggio relativi alla formazione",{"$f":"INDEX(Piano_formazione_e_viaggi[],MATCH(INDEX(Scostamenti_di_formazione_e_di_viaggio[],ROW()-ROW(Scostamenti_di_formazione_e_di_viaggio[[#Headers],[Gen]]),1),INDEX(Piano_formazione_e_viaggi[],,1),0),MATCH(Scostamenti_di_formazione_e_di_viaggio[[#Headers],[Gen]],Piano_formazione_e_viaggi[#Headers],0))-INDEX(Costi_di_formazione_e_di_viaggio_effettivi[],MATCH(INDEX(Scostamenti_di_formazione_e_di_viaggio[],ROW()-ROW(Scostamenti_di_formazione_e_di_viaggio[[#Headers],[Gen]]),1),INDEX(Piano_formazione_e_viaggi[],,1),0),MATCH(Scostamenti_di_formazione_e_di_viaggio[[#Headers],[Gen]],Costi_di_formazione_e_di_viaggio_effettivi[#Headers],0))","v":{"v":800,"d":"€ 800.00"}},{"$f":"INDEX(Piano_formazione_e_viaggi[],MATCH(INDEX(Scostamenti_di_formazione_e_di_viaggio[],ROW()-ROW(Scostamenti_di_formazione_e_di_viaggio[[#Headers],[Feb]]),1),INDEX(Piano_formazione_e_viaggi[],,1),0),MATCH(Scostamenti_di_formazione_e_di_viaggio[[#Headers],[Feb]],Piano_formazione_e_viaggi[#Headers],0))-INDEX(Costi_di_formazione_e_di_viaggio_effettivi[],MATCH(INDEX(Scostamenti_di_formazione_e_di_viaggio[],ROW()-ROW(Scostamenti_di_formazione_e_di_viaggio[[#Headers],[Feb]]),1),INDEX(Piano_formazione_e_viaggi[],,1),0),MATCH(Scostamenti_di_formazione_e_di_viaggio[[#Headers],[Feb]],Costi_di_formazione_e_di_viaggio_effettivi[#Headers],0))","v":{"v":-200,"d":"-€ 200.00"}},{"$f":"INDEX(Piano_formazione_e_viaggi[],MATCH(INDEX(Scostamenti_di_formazione_e_di_viaggio[],ROW()-ROW(Scostamenti_di_formazione_e_di_viaggio[[#Headers],[Mar]]),1),INDEX(Piano_formazione_e_viaggi[],,1),0),MATCH(Scostamenti_di_formazione_e_di_viaggio[[#Headers],[Mar]],Piano_formazione_e_viaggi[#Headers],0))-INDEX(Costi_di_formazione_e_di_viaggio_effettivi[],MATCH(INDEX(Scostamenti_di_formazione_e_di_viaggio[],ROW()-ROW(Scostamenti_di_formazione_e_di_viaggio[[#Headers],[Mar]]),1),INDEX(Piano_formazione_e_viaggi[],,1),0),MATCH(Scostamenti_di_formazione_e_di_viaggio[[#Headers],[Mar]],Costi_di_formazione_e_di_viaggio_effettivi[#Headers],0))","v":{"v":600,"d":"€ 600.00"}},{"$f":"INDEX(Piano_formazione_e_viaggi[],MATCH(INDEX(Scostamenti_di_formazione_e_di_viaggio[],ROW()-ROW(Scostamenti_di_formazione_e_di_viaggio[[#Headers],[Apr]]),1),INDEX(Piano_formazione_e_viaggi[],,1),0),MATCH(Scostamenti_di_formazione_e_di_viaggio[[#Headers],[Apr]],Piano_formazione_e_viaggi[#Headers],0))-INDEX(Costi_di_formazione_e_di_viaggio_effettivi[],MATCH(INDEX(Scostamenti_di_formazione_e_di_viaggio[],ROW()-ROW(Scostamenti_di_formazione_e_di_viaggio[[#Headers],[Apr]]),1),INDEX(Piano_formazione_e_viaggi[],,1),0),MATCH(Scostamenti_di_formazione_e_di_viaggio[[#Headers],[Apr]],Costi_di_formazione_e_di_viaggio_effettivi[#Headers],0))","v":{"v":800,"d":"€ 800.00"}},{"$f":"INDEX(Piano_formazione_e_viaggi[],MATCH(INDEX(Scostamenti_di_formazione_e_di_viaggio[],ROW()-ROW(Scostamenti_di_formazione_e_di_viaggio[[#Headers],[Mag]]),1),INDEX(Piano_formazione_e_viaggi[],,1),0),MATCH(Scostamenti_di_formazione_e_di_viaggio[[#Headers],[Mag]],Piano_formazione_e_viaggi[#Headers],0))-INDEX(Costi_di_formazione_e_di_viaggio_effettivi[],MATCH(INDEX(Scostamenti_di_formazione_e_di_viaggio[],ROW()-ROW(Scostamenti_di_formazione_e_di_viaggio[[#Headers],[Mag]]),1),INDEX(Piano_formazione_e_viaggi[],,1),0),MATCH(Scostamenti_di_formazione_e_di_viaggio[[#Headers],[Mag]],Costi_di_formazione_e_di_viaggio_effettivi[#Headers],0))","v":{"v":1200,"d":"€ 1,200.00"}},{"$f":"INDEX(Piano_formazione_e_viaggi[],MATCH(INDEX(Scostamenti_di_formazione_e_di_viaggio[],ROW()-ROW(Scostamenti_di_formazione_e_di_viaggio[[#Headers],[Giu]]),1),INDEX(Piano_formazione_e_viaggi[],,1),0),MATCH(Scostamenti_di_formazione_e_di_viaggio[[#Headers],[Giu]],Piano_formazione_e_viaggi[#Headers],0))-INDEX(Costi_di_formazione_e_di_viaggio_effettivi[],MATCH(INDEX(Scostamenti_di_formazione_e_di_viaggio[],ROW()-ROW(Scostamenti_di_formazione_e_di_viaggio[[#Headers],[Giu]]),1),INDEX(Piano_formazione_e_viaggi[],,1),0),MATCH(Scostamenti_di_formazione_e_di_viaggio[[#Headers],[Giu]],Costi_di_formazione_e_di_viaggio_effettivi[#Headers],0))","v":{"v":-1500,"d":"-€ 1,500.00"}},{"$f":"INDEX(Piano_formazione_e_viaggi[],MATCH(INDEX(Scostamenti_di_formazione_e_di_viaggio[],ROW()-ROW(Scostamenti_di_formazione_e_di_viaggio[[#Headers],[Lug]]),1),INDEX(Piano_formazione_e_viaggi[],,1),0),MATCH(Scostamenti_di_formazione_e_di_viaggio[[#Headers],[Lug]],Piano_formazione_e_viaggi[#Headers],0))-INDEX(Costi_di_formazione_e_di_viaggio_effettivi[],MATCH(INDEX(Scostamenti_di_formazione_e_di_viaggio[],ROW()-ROW(Scostamenti_di_formazione_e_di_viaggio[[#Headers],[Lug]]),1),INDEX(Piano_formazione_e_viaggi[],,1),0),MATCH(Scostamenti_di_formazione_e_di_viaggio[[#Headers],[Lug]],Costi_di_formazione_e_di_viaggio_effettivi[#Headers],0))","v":{"v":2000,"d":"€ 2,000.00"}},{"$f":"INDEX(Piano_formazione_e_viaggi[],MATCH(INDEX(Scostamenti_di_formazione_e_di_viaggio[],ROW()-ROW(Scostamenti_di_formazione_e_di_viaggio[[#Headers],[Ago]]),1),INDEX(Piano_formazione_e_viaggi[],,1),0),MATCH(Scostamenti_di_formazione_e_di_viaggio[[#Headers],[Ago]],Piano_formazione_e_viaggi[#Headers],0))-INDEX(Costi_di_formazione_e_di_viaggio_effettivi[],MATCH(INDEX(Scostamenti_di_formazione_e_di_viaggio[],ROW()-ROW(Scostamenti_di_formazione_e_di_viaggio[[#Headers],[Ago]]),1),INDEX(Piano_formazione_e_viaggi[],,1),0),MATCH(Scostamenti_di_formazione_e_di_viaggio[[#Headers],[Ago]],Costi_di_formazione_e_di_viaggio_effettivi[#Headers],0))","v":{"v":2000,"d":"€ 2,000.00"}},{"$f":"INDEX(Piano_formazione_e_viaggi[],MATCH(INDEX(Scostamenti_di_formazione_e_di_viaggio[],ROW()-ROW(Scostamenti_di_formazione_e_di_viaggio[[#Headers],[Set]]),1),INDEX(Piano_formazione_e_viaggi[],,1),0),MATCH(Scostamenti_di_formazione_e_di_viaggio[[#Headers],[Set]],Piano_formazione_e_viaggi[#Headers],0))-INDEX(Costi_di_formazione_e_di_viaggio_effettivi[],MATCH(INDEX(Scostamenti_di_formazione_e_di_viaggio[],ROW()-ROW(Scostamenti_di_formazione_e_di_viaggio[[#Headers],[Set]]),1),INDEX(Piano_formazione_e_viaggi[],,1),0),MATCH(Scostamenti_di_formazione_e_di_viaggio[[#Headers],[Set]],Costi_di_formazione_e_di_viaggio_effettivi[#Headers],0))","v":{"v":2000,"d":"€ 2,000.00"}},{"$f":"INDEX(Piano_formazione_e_viaggi[],MATCH(INDEX(Scostamenti_di_formazione_e_di_viaggio[],ROW()-ROW(Scostamenti_di_formazione_e_di_viaggio[[#Headers],[Ott]]),1),INDEX(Piano_formazione_e_viaggi[],,1),0),MATCH(Scostamenti_di_formazione_e_di_viaggio[[#Headers],[Ott]],Piano_formazione_e_viaggi[#Headers],0))-INDEX(Costi_di_formazione_e_di_viaggio_effettivi[],MATCH(INDEX(Scostamenti_di_formazione_e_di_viaggio[],ROW()-ROW(Scostamenti_di_formazione_e_di_viaggio[[#Headers],[Ott]]),1),INDEX(Piano_formazione_e_viaggi[],,1),0),MATCH(Scostamenti_di_formazione_e_di_viaggio[[#Headers],[Ott]],Costi_di_formazione_e_di_viaggio_effettivi[#Headers],0))","v":{"v":2000,"d":"€ 2,000.00"}},{"$f":"INDEX(Piano_formazione_e_viaggi[],MATCH(INDEX(Scostamenti_di_formazione_e_di_viaggio[],ROW()-ROW(Scostamenti_di_formazione_e_di_viaggio[[#Headers],[Nov]]),1),INDEX(Piano_formazione_e_viaggi[],,1),0),MATCH(Scostamenti_di_formazione_e_di_viaggio[[#Headers],[Nov]],Piano_formazione_e_viaggi[#Headers],0))-INDEX(Costi_di_formazione_e_di_viaggio_effettivi[],MATCH(INDEX(Scostamenti_di_formazione_e_di_viaggio[],ROW()-ROW(Scostamenti_di_formazione_e_di_viaggio[[#Headers],[Nov]]),1),INDEX(Piano_formazione_e_viaggi[],,1),0),MATCH(Scostamenti_di_formazione_e_di_viaggio[[#Headers],[Nov]],Costi_di_formazione_e_di_viaggio_effettivi[#Headers],0))","v":{"v":2000,"d":"€ 2,000.00"}},{"$f":"INDEX(Piano_formazione_e_viaggi[],MATCH(INDEX(Scostamenti_di_formazione_e_di_viaggio[],ROW()-ROW(Scostamenti_di_formazione_e_di_viaggio[[#Headers],[Dic]]),1),INDEX(Piano_formazione_e_viaggi[],,1),0),MATCH(Scostamenti_di_formazione_e_di_viaggio[[#Headers],[Dic]],Piano_formazione_e_viaggi[#Headers],0))-INDEX(Costi_di_formazione_e_di_viaggio_effettivi[],MATCH(INDEX(Scostamenti_di_formazione_e_di_viaggio[],ROW()-ROW(Scostamenti_di_formazione_e_di_viaggio[[#Headers],[Dic]]),1),INDEX(Piano_formazione_e_viaggi[],,1),0),MATCH(Scostamenti_di_formazione_e_di_viaggio[[#Headers],[Dic]],Costi_di_formazione_e_di_viaggio_effettivi[#Headers],0))","v":{"v":2000,"d":"€ 2,000.00"}},{"$f":"SUM(Scostamenti_di_formazione_e_di_viaggio[[#This Row],[Gen]:[Dic]])","v":{"v":13700,"d":"€ 13,700.00"}}]
[null,"Subtotale",{"$f":"SUBTOTAL(109,Scostamenti_di_formazione_e_di_viaggio[Gen])","v":{"v":1200,"d":"€ 1,200.00"}},{"$f":"SUBTOTAL(109,Scostamenti_di_formazione_e_di_viaggio[Feb])","v":{"v":-600,"d":"-€ 600.00"}},{"$f":"SUBTOTAL(109,Scostamenti_di_formazione_e_di_viaggio[Mar])","v":{"v":1200,"d":"€ 1,200.00"}},{"$f":"SUBTOTAL(109,Scostamenti_di_formazione_e_di_viaggio[Apr])","v":{"v":1200,"d":"€ 1,200.00"}},{"$f":"SUBTOTAL(109,Scostamenti_di_formazione_e_di_viaggio[Mag])","v":{"v":2000,"d":"€ 2,000.00"}},{"$f":"SUBTOTAL(109,Scostamenti_di_formazione_e_di_viaggio[Giu])","v":{"v":-2300,"d":"-€ 2,300.00"}},{"$f":"SUBTOTAL(109,Scostamenti_di_formazione_e_di_viaggio[Lug])","v":{"v":4000,"d":"€ 4,000.00"}},{"$f":"SUBTOTAL(109,Scostamenti_di_formazione_e_di_viaggio[Ago])","v":{"v":4000,"d":"€ 4,000.00"}},{"$f":"SUBTOTAL(109,Scostamenti_di_formazione_e_di_viaggio[Set])","v":{"v":4000,"d":"€ 4,000.00"}},{"$f":"SUBTOTAL(109,Scostamenti_di_formazione_e_di_viaggio[Ott])","v":{"v":4000,"d":"€ 4,000.00"}},{"$f":"SUBTOTAL(109,Scostamenti_di_formazione_e_di_viaggio[Nov])","v":{"v":4000,"d":"€ 4,000.00"}},{"$f":"SUBTOTAL(109,Scostamenti_di_formazione_e_di_viaggio[Dic])","v":{"v":4000,"d":"€ 4,000.00"}},{"$f":"SUBTOTAL(109,Scostamenti_di_formazione_e_di_viaggio[ANNO])","v":{"v":26700,"d":"€ 26,700.00"}}]
[]
["Gli scostamenti di spese vengono calcolati automaticamente nella tabella Scostamenti totali partendo dalla cella a destra.","TOTALI","Gen","Feb","Mar","Apr","Mag","Giu","Lug","Ago","Set","Ott","Nov","Dic","Anno"]
[null,"Spese effettive mensili",{"$f":"Scostamenti_di_formazione_e_di_viaggio[[#Totals],[Gen]]+Scostamenti_di_marketing[[#Totals],[Gen]]+Scostamenti_di_ufficio[[#Totals],[Gen]]+Scostamenti_dei_dipendenti[[#Totals],[Gen]]","v":{"v":1738,"d":"€ 1,738.00"}},{"$f":"Scostamenti_di_formazione_e_di_viaggio[[#Totals],[Feb]]+Scostamenti_di_marketing[[#Totals],[Feb]]+Scostamenti_di_ufficio[[#Totals],[Feb]]+Scostamenti_dei_dipendenti[[#Totals],[Feb]]","v":{"v":-984,"d":"-€ 984.00"}},{"$f":"Scostamenti_di_formazione_e_di_viaggio[[#Totals],[Mar]]+Scostamenti_di_marketing[[#Totals],[Mar]]+Scostamenti_di_ufficio[[#Totals],[Mar]]+Scostamenti_dei_dipendenti[[#Totals],[Mar]]","v":{"v":1255,"d":"€ 1,255.00"}},{"$f":"Scostamenti_di_formazione_e_di_viaggio[[#Totals],[Apr]]+Scostamenti_di_marketing[[#Totals],[Apr]]+Scostamenti_di_ufficio[[#Totals],[Apr]]+Scostamenti_dei_dipendenti[[#Totals],[Apr]]","v":{"v":301,"d":"€ 301.00"}},{"$f":"Scostamenti_di_formazione_e_di_viaggio[[#Totals],[Mag]]+Scostamenti_di_marketing[[#Totals],[Mag]]+Scostamenti_di_ufficio[[#Totals],[Mag]]+Scostamenti_dei_dipendenti[[#Totals],[Mag]]","v":{"v":1440,"d":"€ 1,440.00"}},{"$f":"Scostamenti_di_formazione_e_di_viaggio[[#Totals],[Giu]]+Scostamenti_di_marketing[[#Totals],[Giu]]+Scostamenti_di_ufficio[[#Totals],[Giu]]+Scostamenti_dei_dipendenti[[#Totals],[Giu]]","v":{"v":-3744,"d":"-€ 3,744.00"}},{"$f":"Scostamenti_di_formazione_e_di_viaggio[[#Totals],[Lug]]+Scostamenti_di_marketing[[#Totals],[Lug]]+Scostamenti_di_ufficio[[#Totals],[Lug]]+Scostamenti_dei_dipendenti[[#Totals],[Lug]]","v":{"v":134695,"d":"€ 134,695.00"}},{"$f":"Scostamenti_di_formazione_e_di_viaggio[[#Totals],[Ago]]+Scostamenti_di_marketing[[#Totals],[Ago]]+Scostamenti_di_ufficio[[#Totals],[Ago]]+Scostamenti_dei_dipendenti[[#Totals],[Ago]]","v":{"v":138918,"d":"€ 138,918.00"}},{"$f":"Scostamenti_di_formazione_e_di_viaggio[[#Totals],[Set]]+Scostamenti_di_marketing[[#Totals],[Set]]+Scostamenti_di_ufficio[[#Totals],[Set]]+Scostamenti_dei_dipendenti[[#Totals],[Set]]","v":{"v":135918,"d":"€ 135,918.00"}},{"$f":"Scostamenti_di_formazione_e_di_viaggio[[#Totals],[Ott]]+Scostamenti_di_marketing[[#Totals],[Ott]]+Scostamenti_di_ufficio[[#Totals],[Ott]]+Scostamenti_dei_dipendenti[[#Totals],[Ott]]","v":{"v":140918,"d":"€ 140,918.00"}},{"$f":"Scostamenti_di_formazione_e_di_viaggio[[#Totals],[Nov]]+Scostamenti_di_marketing[[#Totals],[Nov]]+Scostamenti_di_ufficio[[#Totals],[Nov]]+Scostamenti_dei_dipendenti[[#Totals],[Nov]]","v":{"v":136218,"d":"€ 136,218.00"}},{"$f":"Scostamenti_di_formazione_e_di_viaggio[[#Totals],[Dic]]+Scostamenti_di_marketing[[#Totals],[Dic]]+Scostamenti_di_ufficio[[#Totals],[Dic]]+Scostamenti_dei_dipendenti[[#Totals],[Dic]]","v":{"v":140018,"d":"€ 140,018.00"}},{"$f":"Scostamenti_di_formazione_e_di_viaggio[[#Totals],[ANNO]]+Scostamenti_di_marketing[[#Totals],[ANNO]]+Scostamenti_di_ufficio[[#Totals],[ANNO]]+Scostamenti_dei_dipendenti[[#Totals],[ANNO]]","v":{"v":826691,"d":"€ 826,691.00"}}]
[null,"Spese effettive TOTALI",{"$f":"SUM($C$36:C36)","v":{"v":1738,"d":"€ 1,738.00"}},{"$f":"SUM($C$36:D36)","v":{"v":754,"d":"€ 754.00"}},{"$f":"SUM($C$36:E36)","v":{"v":2009,"d":"€ 2,009.00"}},{"$f":"SUM($C$36:F36)","v":{"v":2310,"d":"€ 2,310.00"}},{"$f":"SUM($C$36:G36)","v":{"v":3750,"d":"€ 3,750.00"}},{"$f":"SUM($C$36:H36)","v":{"v":6,"d":"€ 6.00"}},{"$f":"SUM($C$36:I36)","v":{"v":134701,"d":"€ 134,701.00"}},{"$f":"SUM($C$36:J36)","v":{"v":273619,"d":"€ 273,619.00"}},{"$f":"SUM($C$36:K36)","v":{"v":409537,"d":"€ 409,537.00"}},{"$f":"SUM($C$36:L36)","v":{"v":550455,"d":"€ 550,455.00"}},{"$f":"SUM($C$36:M36)","v":{"v":686673,"d":"€ 686,673.00"}},{"$f":"SUM($C$36:N36)","v":{"v":826691,"d":"€ 826,691.00"}}]

{"sheet":"ANALISI DELLE SPESE","index":4,"n_rows":14,"n_cols":16,"rows_kept":14,"merged":[[1,1,2,3],[1,5,1,6],[2,4,2,6],[11,1,11,2],[11,3,11,5],[13,1,36,5]]}
["Spese annuali pianificate e spese effettive, scostamenti di spese e percentuale di scostamento vengono aggiornati automaticamente per ogni categoria di spesa nel foglio di lavoro. Istruzioni utili per l'uso di questo foglio di lavoro si trovano nelle celle di questa colonna. Freccia verso il basso per iniziare. ",{"$nulls":5}," ",{"$nulls":8}," "]
["Il nome della società viene aggiornato automaticamente nella cella a destra. Immettere il logo nella cella F2.",{"$f":"'SPESE PIANIFICATE'!B2:D3","v":"Nome società"},{"$nulls":3},"Il segnaposto del logo si trova in questa cella."]
["Il titolo di questo foglio di lavoro si trova nella cella E3. L'istruzione successiva si trova nella cella A5.",{"$nulls":3},{"$f":"worksheet_title","v":"Previsioni di spesa dettagliate"}]
[]
["Spese pianificate, spese effettive, scostamento di spese e percentuale di scostamento vengono calcolati automaticamente nella tabella Analisi partendo dalla cella a destra. L’istruzione successiva si trova nella cella A12.","Categoria di spesa","Spese pianificate","Spese effettive","Scostamenti di spese","Percentuale di scostamento"]
[null,"Costi dei dipendenti",{"$f":"Piano_dipendenti[[#Totals],[ANNO]]","v":{"v":1355090,"d":"€ 1,355,090.00"}},{"$f":"Costi_effettivi_dei_dipendenti[[#Totals],[ANNO]]","v":{"v":659130,"d":"€ 659,130.00"}},{"$f":"C6-D6","v":{"v":695960,"d":"€ 695,960.00"}},{"$f":"E6/C6","v":{"v":0.5135895032802249,"d":"51%"}}]
[null,{"$f":"'SPESE PIANIFICATE'!B10","v":"Costi di ufficio"},{"$f":"Piano_ufficio[[#Totals],[ANNO]]","v":{"v":138740,"d":"€ 138,740.00"}},{"$f":"Costi_di_ufficio_effettivi[[#Totals],[ANNO]]","v":{"v":69350,"d":"€ 69,350.00"}},{"$f":"C7-D7","v":{"v":69390,"d":"€ 69,390.00"}},{"$f":"E7/C7","v":{"v":0.5001441545336601,"d":"50%"}}]
[null,{"$f":"'SPESE PIANIFICATE'!B21","v":"Costi di marketing"},{"$f":"Piano_marketing[[#Totals],[ANNO]]","v":{"v":67800,"d":"€ 67,800.00"}},{"$f":"Costi_di_marketing_effettivi[[#Totals],[ANNO]]","v":{"v":33159,"d":"€ 33,159.00"}},{"$f":"C8-D8","v":{"v":34641,"d":"€ 34,641.00"}},{"$f":"E8/C8","v":{"v":0.510929203539823,"d":"51%"}}]
[null,{"$f":"'SPESE PIANIFICATE'!B30","v":"Formazione/viaggi"},{"$f":"Piano_formazione_e_viaggi[[#Totals],[ANNO]]","v":{"v":48000,"d":"€ 48,000.00"}},{"$f":"Costi_di_formazione_e_di_viaggio_effettivi[[#Totals],[ANNO]]","v":{"v":21300,"d":"€ 21,300.00"}},{"$f":"C9-D9","v":{"v":26700,"d":"€ 26,700.00"}},{"$f":"E9/C9","v":{"v":0.55625,"d":"56%"}}]
[null,{"$f":"'SPESE PIANIFICATE'!B35","v":"TOTALI"},{"$f":"'SPESE PIANIFICATE'!O36","v":{"v":1609630,"d":"€ 1,609,630.00"}},{"$f":"'SPESE EFFETTIVE'!O36","v":{"v":782939,"d":"€ 782,939.00"}},{"$f":"C10-D10","v":{"v":826691,"d":"€ 826,691.00"}},{"$f":"E10/C10","v":{"v":0.5135907009685455,"d":"51%"}}]
[]
["Il grafico a torta Spese pianificate si trova nella cella a destra e il grafico a torta Spese effettive nella cella D12. L’istruzione successiva si trova nella cella A14.","Il grafico a torta che mostra le spese pianificate nelle diverse categorie si trova in questa cella.",null,"Il grafico a torta che mostra le spese effettive affrontate nelle diverse categorie si trova in questa cella."]
[]
["Il grafico che mostra le spese pianificate, effettive e lo scostamento nelle spese mensili si trova nella cella a destra."]